PublisherLabel,PublisherURI,"Body name","Body","Service area","Service division","Responsible unit","Expenses type","Date","Transaction","Amount","Supplier name"
"Bracknell Forest Council","http://opendatacommunities.org/id/unitary-authority/bracknell-forest","Bracknell Forest Council","00MA","Older People (Aged 65 or Over)","Residential Care Home Placements","Bridgewell Unit - Q274E","Cost of Goods Sold",26/02/2014 00:00:00,"30237895",101.29,"3663"
"Bracknell Forest Council","http://opendatacommunities.org/id/unitary-authority/bracknell-forest","Bracknell Forest Council","00MA","Older People (Aged 65 or Over)","Residential Care Home Placements","Bridgewell Unit - Q274E","Cost of Goods Sold",26/02/2014 00:00:00,"30237895",23.26,"3663"
"Bracknell Forest Council","http://opendatacommunities.org/id/unitary-authority/bracknell-forest","Bracknell Forest Council","00MA","Older People (Aged 65 or Over)","Residential Care Home Placements","Heathlands EPH - Q603R","Cost of Goods Sold",26/02/2014 00:00:00,"30237895",690.66,"3663"
"Bracknell Forest Council","http://opendatacommunities.org/id/unitary-authority/bracknell-forest","Bracknell Forest Council","00MA","Older People (Aged 65 or Over)","Nursing Home Placements","Nursing Home Placements-Elderly - Q211B","Contracted Services",11/03/2014 00:00:00,"30238130",2461.44,"AMBERBROOK MANAGEMENT LTD"
"Bracknell Forest Council","http://opendatacommunities.org/id/unitary-authority/bracknell-forest","Bracknell Forest Council","00MA","Older People (Aged 65 or Over)","Nursing Home Placements","Nursing Home Placements-Elderly - Q211B","Contracted Services",11/03/2014 00:00:00,"30238130",2461.44,"AMBERBROOK MANAGEMENT LTD"
"Bracknell Forest Council","http://opendatacommunities.org/id/unitary-authority/bracknell-forest","Bracknell Forest Council","00MA","Older People (Aged 65 or Over)","Nursing Home Placements","Nursing Home Placements-Elderly - Q211B","Contracted Services",11/03/2014 00:00:00,"30238130",2461.44,"AMBERBROOK MANAGEMENT LTD"
"Bracknell Forest Council","http://opendatacommunities.org/id/unitary-authority/bracknell-forest","Bracknell Forest Council","00MA","Older People (Aged 65 or Over)","Nursing Home Placements","Nursing Home Placements-Elderly - Q211B","Contracted Services",11/03/2014 00:00:00,"30238130",2461.44,"AMBERBROOK MANAGEMENT LTD"
"Bracknell Forest Council","http://opendatacommunities.org/id/unitary-authority/bracknell-forest","Bracknell Forest Council","00MA","Older People (Aged 65 or Over)","Nursing Home Placements","Nursing EMI Placements - Elderly - Q110B","Contracted Services",11/03/2014 00:00:00,"30238130",2754.4,"AMBERBROOK MANAGEMENT LTD"
"Bracknell Forest Council","http://opendatacommunities.org/id/unitary-authority/bracknell-forest","Bracknell Forest Council","00MA","Older People (Aged 65 or Over)","Nursing Home Placements","Nursing EMI Placements - Elderly - Q110B","Contracted Services",11/03/2014 00:00:00,"30238130",2461.44,"AMBERBROOK MANAGEMENT LTD"
"Bracknell Forest Council","http://opendatacommunities.org/id/unitary-authority/bracknell-forest","Bracknell Forest Council","00MA","Older People (Aged 65 or Over)","Residential Care Home Placements","Residential Placements-Elderly - Q210B","Contracted Services",11/03/2014 00:00:00,"30238130",1901.88,"AMBERBROOK MANAGEMENT LTD"
"Bracknell Forest Council","http://opendatacommunities.org/id/unitary-authority/bracknell-forest","Bracknell Forest Council","00MA","Older People (Aged 65 or Over)","Residential Care Home Placements","Residential EMI Placements - Elderly - Q111B","Contracted Services",11/03/2014 00:00:00,"30238130",3088.63,"AMBERBROOK MANAGEMENT LTD"
"Bracknell Forest Council","http://opendatacommunities.org/id/unitary-authority/bracknell-forest","Bracknell Forest Council","00MA","Older People (Aged 65 or Over)","Residential Care Home Placements","Residential EMI Placements - Elderly - Q111B","Contracted Services",11/03/2014 00:00:00,"30238130",2011.2,"AMBERBROOK MANAGEMENT LTD"
"Bracknell Forest Council","http://opendatacommunities.org/id/unitary-authority/bracknell-forest","Bracknell Forest Council","00MA","Older People (Aged 65 or Over)","Residential Care Home Placements","Residential EMI Placements - Elderly - Q111B","Contracted Services",11/03/2014 00:00:00,"30238130",4022.4,"AMBERBROOK MANAGEMENT LTD"
"Bracknell Forest Council","http://opendatacommunities.org/id/unitary-authority/bracknell-forest","Bracknell Forest Council","00MA","Older People (Aged 65 or Over)","Residential Care Home Placements","Residential EMI Placements - Elderly - Q111B","Contracted Services",11/03/2014 00:00:00,"30238130",2011.2,"AMBERBROOK MANAGEMENT LTD"
"Bracknell Forest Council","http://opendatacommunities.org/id/unitary-authority/bracknell-forest","Bracknell Forest Council","00MA","Older People (Aged 65 or Over)","Nursing Home Placements","Nursing Home Placements MH 65 and Over - Q150B","Contracted Services",11/03/2014 00:00:00,"30238130",2461.44,"AMBERBROOK MANAGEMENT LTD"
"Bracknell Forest Council","http://opendatacommunities.org/id/unitary-authority/bracknell-forest","Bracknell Forest Council","00MA","Older People (Aged 65 or Over)","Residential Care Home Placements","Residential EMI Placements - Elderly - Q111B","Contracted Services",09/04/2014 00:00:00,"30240736",2037.06,"AMBERBROOK MANAGEMENT LTD"
"Bracknell Forest Council","http://opendatacommunities.org/id/unitary-authority/bracknell-forest","Bracknell Forest Council","00MA","Older People (Aged 65 or Over)","Residential Care Home Placements","Residential EMI Placements - Elderly - Q111B","Contracted Services",09/04/2014 00:00:00,"30240736",4074.12,"AMBERBROOK MANAGEMENT LTD"
"Bracknell Forest Council","http://opendatacommunities.org/id/unitary-authority/bracknell-forest","Bracknell Forest Council","00MA","Older People (Aged 65 or Over)","Residential Care Home Placements","Residential EMI Placements - Elderly - Q111B","Contracted Services",09/04/2014 00:00:00,"30240736",2037.06,"AMBERBROOK MANAGEMENT LTD"
"Bracknell Forest Council","http://opendatacommunities.org/id/unitary-authority/bracknell-forest","Bracknell Forest Council","00MA","Older People (Aged 65 or Over)","Nursing Home Placements","Nursing Home Placements MH 65 and Over - Q150B","Contracted Services",09/04/2014 00:00:00,"30240736",2487.44,"AMBERBROOK MANAGEMENT LTD"
"Bracknell Forest Council","http://opendatacommunities.org/id/unitary-authority/bracknell-forest","Bracknell Forest Council","00MA","Older People (Aged 65 or Over)","Nursing Home Placements","Nursing EMI Placements - Elderly - Q110B","Contracted Services",09/04/2014 00:00:00,"30240736",2784.17,"AMBERBROOK MANAGEMENT LTD"
"Bracknell Forest Council","http://opendatacommunities.org/id/unitary-authority/bracknell-forest","Bracknell Forest Council","00MA","Older People (Aged 65 or Over)","Residential Care Home Placements","Residential Placements-Elderly - Q210B","Contracted Services",09/04/2014 00:00:00,"30240736",1926.33,"AMBERBROOK MANAGEMENT LTD"
"Bracknell Forest Council","http://opendatacommunities.org/id/unitary-authority/bracknell-forest","Bracknell Forest Council","00MA","Older People (Aged 65 or Over)","Residential Care Home Placements","Residential Placements-Elderly - Q210B","Contracted Services",09/04/2014 00:00:00,"30240736",2037.06,"AMBERBROOK MANAGEMENT LTD"
"Bracknell Forest Council","http://opendatacommunities.org/id/unitary-authority/bracknell-forest","Bracknell Forest Council","00MA","Older People (Aged 65 or Over)","Nursing Home Placements","Nursing Home Placements-Elderly - Q211B","Contracted Services",09/04/2014 00:00:00,"30240736",351.64,"AMBERBROOK MANAGEMENT LTD"
"Bracknell Forest Council","http://opendatacommunities.org/id/unitary-authority/bracknell-forest","Bracknell Forest Council","00MA","Older People (Aged 65 or Over)","Nursing Home Placements","Nursing EMI Placements - Elderly - Q110B","Contracted Services",09/04/2014 00:00:00,"30240736",1100.66,"AMBERBROOK MANAGEMENT LTD"
"Bracknell Forest Council","http://opendatacommunities.org/id/unitary-authority/bracknell-forest","Bracknell Forest Council","00MA","Older People (Aged 65 or Over)","Nursing Home Placements","Nursing Home Placements-Elderly - Q211B","Contracted Services",09/04/2014 00:00:00,"30240736",2487.44,"AMBERBROOK MANAGEMENT LTD"
"Bracknell Forest Council","http://opendatacommunities.org/id/unitary-authority/bracknell-forest","Bracknell Forest Council","00MA","Older People (Aged 65 or Over)","Nursing Home Placements","Nursing Home Placements-Elderly - Q211B","Contracted Services",09/04/2014 00:00:00,"30240736",6355.42,"AMBERBROOK MANAGEMENT LTD"
"Bracknell Forest Council","http://opendatacommunities.org/id/unitary-authority/bracknell-forest","Bracknell Forest Council","00MA","Older People (Aged 65 or Over)","Nursing Home Placements","Nursing Home Placements-Elderly - Q211B","Contracted Services",09/04/2014 00:00:00,"30240736",2487.44,"AMBERBROOK MANAGEMENT LTD"
"Bracknell Forest Council","http://opendatacommunities.org/id/unitary-authority/bracknell-forest","Bracknell Forest Council","00MA","Older People (Aged 65 or Over)","Nursing Home Placements","Nursing EMI Placements - Elderly - Q110B","Contracted Services",09/04/2014 00:00:00,"30240736",2487.44,"AMBERBROOK MANAGEMENT LTD"
"Bracknell Forest Council","http://opendatacommunities.org/id/unitary-authority/bracknell-forest","Bracknell Forest Council","00MA","Older People (Aged 65 or Over)","Nursing Home Placements","Nursing EMI Placements - Elderly - Q110B","Contracted Services",09/04/2014 00:00:00,"30240736",2487.44,"AMBERBROOK MANAGEMENT LTD"
"Bracknell Forest Council","http://opendatacommunities.org/id/unitary-authority/bracknell-forest","Bracknell Forest Council","00MA","Physical Disability/Sensory Impairment","Nursing Home Placements","Nursing Home Placements-Physical Disabty - Q210A","Contracted Services",09/04/2014 00:00:00,"30240736",2784.17,"AMBERBROOK MANAGEMENT LTD"
"Bracknell Forest Council","http://opendatacommunities.org/id/unitary-authority/bracknell-forest","Bracknell Forest Council","00MA","Older People (Aged 65 or Over)","Nursing Home Placements","Nursing Home Placements-Elderly - Q211B","Contracted Services",09/04/2014 00:00:00,"30240736",2487.44,"AMBERBROOK MANAGEMENT LTD"
"Bracknell Forest Council","http://opendatacommunities.org/id/unitary-authority/bracknell-forest","Bracknell Forest Council","00MA","Older People (Aged 65 or Over)","Nursing Home Placements","Nursing Home Placements-Elderly - Q211B","Contracted Services",09/04/2014 00:00:00,"30240736",2487.44,"AMBERBROOK MANAGEMENT LTD"
"Bracknell Forest Council","http://opendatacommunities.org/id/unitary-authority/bracknell-forest","Bracknell Forest Council","00MA","Older People (Aged 65 or Over)","Nursing Home Placements","Nursing EMI Placements - Elderly - Q110B","Contracted Services",09/04/2014 00:00:00,"30240736",2784.14,"AMBERBROOK MANAGEMENT LTD"
"Bracknell Forest Council","http://opendatacommunities.org/id/unitary-authority/bracknell-forest","Bracknell Forest Council","00MA","Older People (Aged 65 or Over)","Nursing Home Placements","Nursing Home Placements-Elderly - Q211B","Contracted Services",09/04/2014 00:00:00,"30240736",1683.51,"AMBERBROOK MANAGEMENT LTD"
"Bracknell Forest Council","http://opendatacommunities.org/id/unitary-authority/bracknell-forest","Bracknell Forest Council","00MA","Older People (Aged 65 or Over)","Nursing Home Placements","Nursing Home Placements-Elderly - Q211B","Contracted Services",09/04/2014 00:00:00,"30240736",2487.44,"AMBERBROOK MANAGEMENT LTD"
"Bracknell Forest Council","http://opendatacommunities.org/id/unitary-authority/bracknell-forest","Bracknell Forest Council","00MA","Business Support","Premises Development","Easthampstead Park Conference Centre","R&M - Service Contracts",04/02/2014 00:00:00,"6541158",1042.34,"AMBIUS"
"Bracknell Forest Council","http://opendatacommunities.org/id/unitary-authority/bracknell-forest","Bracknell Forest Council","00MA","Community Development","Community Development","Chief Executive Office excl Communications","Staff Advertising",13/03/2014 00:00:00,"6544901",876,"AMBLEGLOW LTD"
"Bracknell Forest Council","http://opendatacommunities.org/id/unitary-authority/bracknell-forest","Bracknell Forest Council","00MA","Central Support Services - COF","Customer Service Centre","Customer Services","Equipment - Purchase",21/02/2014 00:00:00,"6542989",1848,"AMG OFFICE FURNITURE LIMITED"
"Bracknell Forest Council","http://opendatacommunities.org/id/unitary-authority/bracknell-forest","Bracknell Forest Council","00MA","Open Spaces","Community Parks & Open Spaces","Urban Parks  - Maintenance","Contracted Services",11/03/2014 00:00:00,"6543126",1100,"ANB GROUNDCARE"
"Bracknell Forest Council","http://opendatacommunities.org/id/unitary-authority/bracknell-forest","Bracknell Forest Council","00MA","","","Snaprails Improvements","Construction - Other Direct Expenses",13/03/2014 00:00:00,"6543579",650,"ANB GROUNDCARE"
"Bracknell Forest Council","http://opendatacommunities.org/id/unitary-authority/bracknell-forest","Bracknell Forest Council","00MA","Older People (Aged 65 or Over)","Residential Care Home Placements","Residential Placements-Elderly - Q210B","Contracted Services",11/03/2014 00:00:00,"30238130",1732.36,"ANCHOR TRUST"
"Bracknell Forest Council","http://opendatacommunities.org/id/unitary-authority/bracknell-forest","Bracknell Forest Council","00MA","Older People (Aged 65 or Over)","Residential Care Home Placements","Residential Placements-Elderly - Q210B","Contracted Services",09/04/2014 00:00:00,"30240736",1754.65,"ANCHOR TRUST"
"Bracknell Forest Council","http://opendatacommunities.org/id/unitary-authority/bracknell-forest","Bracknell Forest Council","00MA","Mental Health Needs (Under 65)","Nursing Home Placements","Nursing Home Placements-Mental Illness - Q150A","Contracted Services",11/03/2014 00:00:00,"30238130",4400,"APPLE HILL NURSING HOME"
"Bracknell Forest Council","http://opendatacommunities.org/id/unitary-authority/bracknell-forest","Bracknell Forest Council","00MA","Mental Health Needs (Under 65)","Nursing Home Placements","Nursing Home Placements-Mental Illness - Q150A","Contracted Services",09/04/2014 00:00:00,"30240736",4400,"APPLE HILL NURSING HOME"
"Bracknell Forest Council","http://opendatacommunities.org/id/unitary-authority/bracknell-forest","Bracknell Forest Council","00MA","Open Spaces","Community Parks & Open Spaces","Tree Service","Contracted Services",27/02/2014 00:00:00,"6542612",600,"ARBORFIELD TREE CARE"
"Bracknell Forest Council","http://opendatacommunities.org/id/unitary-authority/bracknell-forest","Bracknell Forest Council","00MA","Open Spaces","Community Parks & Open Spaces","Tree Service","Contracted Services",26/02/2014 00:00:00,"6543964",800,"ARBORFIELD TREE CARE"
"Bracknell Forest Council","http://opendatacommunities.org/id/unitary-authority/bracknell-forest","Bracknell Forest Council","00MA","Open Spaces","Community Parks & Open Spaces","Tree Service","Contracted Services",27/03/2014 00:00:00,"6545878",2500,"ARBORFIELD TREE CARE"
"Bracknell Forest Council","http://opendatacommunities.org/id/unitary-authority/bracknell-forest","Bracknell Forest Council","00MA","","","Community Capacity Grant","Furniture & Fittings",02/02/2014 00:00:00,"6540200",527.64,"ARGOS BUSINESS SOLUTIONS"
"Bracknell Forest Council","http://opendatacommunities.org/id/unitary-authority/bracknell-forest","Bracknell Forest Council","00MA","Other School Related Education Services","Special Education","SEN Reform","Computer Software",30/03/2014 00:00:00,"6544646",2264.6,"ARGOS BUSINESS SOLUTIONS"
"Bracknell Forest Council","http://opendatacommunities.org/id/unitary-authority/bracknell-forest","Bracknell Forest Council","00MA","Services to Young People","Other Services to Young People","Positive Activities for Young People (PAYP)","Equipment - Purchase",30/03/2014 00:00:00,"6544647",1190.93,"ARGOS BUSINESS SOLUTIONS"
"Bracknell Forest Council","http://opendatacommunities.org/id/unitary-authority/bracknell-forest","Bracknell Forest Council","00MA","Older People (Aged 65 or Over)","Equipment and Adaptations","Aids & Adaptations-Elderly - Q241C","Equipment - Purchase",31/03/2014 00:00:00,"6545688",6195,"ARJOHUNTLEIGH UK"
"Bracknell Forest Council","http://opendatacommunities.org/id/unitary-authority/bracknell-forest","Bracknell Forest Council","00MA","Older People (Aged 65 or Over)","Equipment and Adaptations","Aids & Adaptations-Elderly - Q241C","Equipment - Purchase",31/03/2014 00:00:00,"6545690",5775,"ARJOHUNTLEIGH UK"
"Bracknell Forest Council","http://opendatacommunities.org/id/unitary-authority/bracknell-forest","Bracknell Forest Council","00MA","Physical Disability/Sensory Impairment","Homecare","Home Care-Phys Disab - Q214A","Contracted Services",04/03/2014 00:00:00,"30237634",304,"BRIDGES HOME CARE LTD"
"Bracknell Forest Council","http://opendatacommunities.org/id/unitary-authority/bracknell-forest","Bracknell Forest Council","00MA","Physical Disability/Sensory Impairment","Homecare","Home Care-Phys Disab - Q214A","Contracted Services",04/03/2014 00:00:00,"30237634",2819.6,"BRIDGES HOME CARE LTD"
"Bracknell Forest Council","http://opendatacommunities.org/id/unitary-authority/bracknell-forest","Bracknell Forest Council","00MA","Older People (Aged 65 or Over)","Home Care","Home Care-Elderly  - Q214B","Contracted Services",04/03/2014 00:00:00,"30237634",2241.6,"BRIDGES HOME CARE LTD"
"Bracknell Forest Council","http://opendatacommunities.org/id/unitary-authority/bracknell-forest","Bracknell Forest Council","00MA","Older People (Aged 65 or Over)","Home Care","Home Care-Elderly  - Q214B","Contracted Services",04/03/2014 00:00:00,"30237634",775.2,"BRIDGES HOME CARE LTD"
"Bracknell Forest Council","http://opendatacommunities.org/id/unitary-authority/bracknell-forest","Bracknell Forest Council","00MA","Older People (Aged 65 or Over)","Home Care","Homecare PD 65 and Over - Q214B","Contracted Services",04/03/2014 00:00:00,"30237634",836,"BRIDGES HOME CARE LTD"
"Bracknell Forest Council","http://opendatacommunities.org/id/unitary-authority/bracknell-forest","Bracknell Forest Council","00MA","Older People (Aged 65 or Over)","Home Care","Home Care-Elderly  - Q214B","Contracted Services",04/03/2014 00:00:00,"30237634",820.8,"BRIDGES HOME CARE LTD"
"Bracknell Forest Council","http://opendatacommunities.org/id/unitary-authority/bracknell-forest","Bracknell Forest Council","00MA","Older People (Aged 65 or Over)","Home Care","Home Care-Elderly  - Q214B","Contracted Services",04/03/2014 00:00:00,"30237634",1269.2,"BRIDGES HOME CARE LTD"
"Bracknell Forest Council","http://opendatacommunities.org/id/unitary-authority/bracknell-forest","Bracknell Forest Council","00MA","Mental Health Needs (Under 65)","Homecare","Homecare EMI Under 65 - Q114A","Contracted Services",04/03/2014 00:00:00,"30237634",839.8,"BRIDGES HOME CARE LTD"
"Bracknell Forest Council","http://opendatacommunities.org/id/unitary-authority/bracknell-forest","Bracknell Forest Council","00MA","Physical Disability/Sensory Impairment","Homecare","Home Care-Phys Disab - Q214A","Contracted Services",04/03/2014 00:00:00,"30237634",520.6,"BRIDGES HOME CARE LTD"
"Bracknell Forest Council","http://opendatacommunities.org/id/unitary-authority/bracknell-forest","Bracknell Forest Council","00MA","Older People (Aged 65 or Over)","Home Care","Home Care-Elderly  - Q214B","Contracted Services",04/03/2014 00:00:00,"30237634",152,"BRIDGES HOME CARE LTD"
"Bracknell Forest Council","http://opendatacommunities.org/id/unitary-authority/bracknell-forest","Bracknell Forest Council","00MA","Older People (Aged 65 or Over)","Home Care","Home Care-Elderly  - Q214B","Contracted Services",04/03/2014 00:00:00,"30237634",790.4,"BRIDGES HOME CARE LTD"
"Bracknell Forest Council","http://opendatacommunities.org/id/unitary-authority/bracknell-forest","Bracknell Forest Council","00MA","Older People (Aged 65 or Over)","Home Care","Home Care-Elderly  - Q214B","Contracted Services",04/03/2014 00:00:00,"30237634",1972.2,"BRIDGES HOME CARE LTD"
"Bracknell Forest Council","http://opendatacommunities.org/id/unitary-authority/bracknell-forest","Bracknell Forest Council","00MA","Older People (Aged 65 or Over)","Home Care","Home Care-Elderly  - Q214B","Contracted Services",04/03/2014 00:00:00,"30237634",2128,"BRIDGES HOME CARE LTD"
"Bracknell Forest Council","http://opendatacommunities.org/id/unitary-authority/bracknell-forest","Bracknell Forest Council","00MA","Older People (Aged 65 or Over)","Home Care","Home Care-Elderly  - Q214B","Contracted Services",04/03/2014 00:00:00,"30237634",691.6,"BRIDGES HOME CARE LTD"
"Bracknell Forest Council","http://opendatacommunities.org/id/unitary-authority/bracknell-forest","Bracknell Forest Council","00MA","Family Support Services","Home care","Assistance Cash in Kind/Care Needs","Voluntary Sector Service Providers",20/01/2014 00:00:00,"6543385",717.6,"ARK HOME HEALTHCARE LTD"
"Bracknell Forest Council","http://opendatacommunities.org/id/unitary-authority/bracknell-forest","Bracknell Forest Council","00MA","Family Support Services","Home care","Assistance Cash in Kind/Care Needs","Voluntary Sector Service Providers",12/03/2014 00:00:00,"6544020",612.4,"ARK HOME HEALTHCARE LTD"
"Bracknell Forest Council","http://opendatacommunities.org/id/unitary-authority/bracknell-forest","Bracknell Forest Council","00MA","Services to Young People","Other Services to Young People","Sandhurst Youth Centre","Equipment - Purchase",12/03/2014 00:00:00,"6543793",650,"ARROW ENTERTAINMENT"
"Bracknell Forest Council","http://opendatacommunities.org/id/unitary-authority/bracknell-forest","Bracknell Forest Council","00MA","Learning Disability (under 65)","Support Services & Management Costs","Development & Admin Team - Q129M","Other Support to Clients",20/02/2014 00:00:00,"6541825",2030,"ART BEYOND BELIEF"
"Bracknell Forest Council","http://opendatacommunities.org/id/unitary-authority/bracknell-forest","Bracknell Forest Council","00MA","Central Support Services - COF","Finance","Insurance Management","Insurance Premiums",04/03/2014 00:00:00,"6545079",600.85,"ARTHUR J GALLAGHER (UK) LIMITED"
"Bracknell Forest Council","http://opendatacommunities.org/id/unitary-authority/bracknell-forest","Bracknell Forest Council","00MA","","","Community Capacity Grant","Furniture & Fittings",10/02/2014 00:00:00,"6543822",1572,"ASB BLINDS LTD"
"Bracknell Forest Council","http://opendatacommunities.org/id/unitary-authority/bracknell-forest","Bracknell Forest Council","00MA","Early Years","Centrally managed Expenditure - Early Years","Early Years and Childcare","Grants and Donations",27/03/2014 00:00:00,"30239558",-238.8,"ASCOT & CRANBOURNE PRE-SCHOOL"
"Bracknell Forest Council","http://opendatacommunities.org/id/unitary-authority/bracknell-forest","Bracknell Forest Council","00MA","Early Years","Centrally managed Expenditure - Early Years","Early Years and Childcare","Grants and Donations",27/03/2014 00:00:00,"30239566",12080,"ASCOT & CRANBOURNE PRE-SCHOOL"
"Bracknell Forest Council","http://opendatacommunities.org/id/unitary-authority/bracknell-forest","Bracknell Forest Council","00MA","Physical Disability/Sensory Impairment","Nursing Home Placements","Nursing Home Placements-Physical Disabty - Q210A","Contracted Services",11/03/2014 00:00:00,"30238130",4356.92,"ASCOT NURSING HOME LTD"
"Bracknell Forest Council","http://opendatacommunities.org/id/unitary-authority/bracknell-forest","Bracknell Forest Council","00MA","Mental Health Needs (Under 65)","Nursing Home Placements","Nursing Home Placements-Mental Illness - Q150A","Contracted Services",11/03/2014 00:00:00,"30238130",2609.44,"ASCOT NURSING HOME LTD"
"Bracknell Forest Council","http://opendatacommunities.org/id/unitary-authority/bracknell-forest","Bracknell Forest Council","00MA","Older People (Aged 65 or Over)","Nursing Home Placements","Nursing Home Placements MH 65 and Over - Q150B","Contracted Services",11/03/2014 00:00:00,"30238130",4238.28,"ASCOT NURSING HOME LTD"
"Bracknell Forest Council","http://opendatacommunities.org/id/unitary-authority/bracknell-forest","Bracknell Forest Council","00MA","Older People (Aged 65 or Over)","Nursing Home Placements","Nursing Home Placements MH 65 and Over - Q150B","Contracted Services",09/04/2014 00:00:00,"30240736",4287.13,"ASCOT NURSING HOME LTD"
"Bracknell Forest Council","http://opendatacommunities.org/id/unitary-authority/bracknell-forest","Bracknell Forest Council","00MA","Physical Disability/Sensory Impairment","Nursing Home Placements","Nursing Home Placements-Physical Disabty - Q210A","Contracted Services",09/04/2014 00:00:00,"30240736",4407.29,"ASCOT NURSING HOME LTD"
"Bracknell Forest Council","http://opendatacommunities.org/id/unitary-authority/bracknell-forest","Bracknell Forest Council","00MA","Mental Health Needs (Under 65)","Nursing Home Placements","Nursing Home Placements-Mental Illness - Q150A","Contracted Services",09/04/2014 00:00:00,"30240736",2637.35,"ASCOT NURSING HOME LTD"
"Bracknell Forest Council","http://opendatacommunities.org/id/unitary-authority/bracknell-forest","Bracknell Forest Council","00MA","Older People (Aged 65 or Over)","Nursing Home Placements","Nursing Home Placements-Elderly - Q211B","Contracted Services",11/03/2014 00:00:00,"30238130",3235.44,"ASCOT RESIDENTIAL HOMES LTD"
"Bracknell Forest Council","http://opendatacommunities.org/id/unitary-authority/bracknell-forest","Bracknell Forest Council","00MA","Older People (Aged 65 or Over)","Nursing Home Placements","Nursing Home Placements-Elderly - Q211B","Contracted Services",11/03/2014 00:00:00,"30238130",3235.44,"ASCOT RESIDENTIAL HOMES LTD"
"Bracknell Forest Council","http://opendatacommunities.org/id/unitary-authority/bracknell-forest","Bracknell Forest Council","00MA","Older People (Aged 65 or Over)","Nursing Home Placements","Nursing Home Placements-Elderly - Q211B","Contracted Services",11/03/2014 00:00:00,"30238130",3235.44,"ASCOT RESIDENTIAL HOMES LTD"
"Bracknell Forest Council","http://opendatacommunities.org/id/unitary-authority/bracknell-forest","Bracknell Forest Council","00MA","Older People (Aged 65 or Over)","Nursing Home Placements","Nursing EMI Placements - Elderly - Q110B","Contracted Services",09/04/2014 00:00:00,"30240736",5197.52,"ASCOT RESIDENTIAL HOMES LTD"
"Bracknell Forest Council","http://opendatacommunities.org/id/unitary-authority/bracknell-forest","Bracknell Forest Council","00MA","Older People (Aged 65 or Over)","Nursing Home Placements","Nursing Home Placements-Elderly - Q211B","Contracted Services",09/04/2014 00:00:00,"30240736",3271.39,"ASCOT RESIDENTIAL HOMES LTD"
"Bracknell Forest Council","http://opendatacommunities.org/id/unitary-authority/bracknell-forest","Bracknell Forest Council","00MA","Older People (Aged 65 or Over)","Nursing Home Placements","Nursing Home Placements-Elderly - Q211B","Contracted Services",09/04/2014 00:00:00,"30240736",3271.39,"ASCOT RESIDENTIAL HOMES LTD"
"Bracknell Forest Council","http://opendatacommunities.org/id/unitary-authority/bracknell-forest","Bracknell Forest Council","00MA","Older People (Aged 65 or Over)","Nursing Home Placements","Nursing Home Placements-Elderly - Q211B","Contracted Services",09/04/2014 00:00:00,"30240736",3271.39,"ASCOT RESIDENTIAL HOMES LTD"
"Bracknell Forest Council","http://opendatacommunities.org/id/unitary-authority/bracknell-forest","Bracknell Forest Council","00MA","Recreation, Sports and Leisure","Golf Courses","Leisure DSO - Downshire Golf Course","Minor Improvement Schemes",26/02/2014 00:00:00,"6545733",959,"ASCOT WHOLESALE"
"Bracknell Forest Council","http://opendatacommunities.org/id/unitary-authority/bracknell-forest","Bracknell Forest Council","00MA","Libraries","Stock Ordering, Cataloguing & Distribution","Library Book Fund","Audio/Visual materials",24/02/2014 00:00:00,"6542256",680.38,"ASKEWS & HOLTS LIBRARY SERVICE"
"Bracknell Forest Council","http://opendatacommunities.org/id/unitary-authority/bracknell-forest","Bracknell Forest Council","00MA","Management and Support Services - CYPL","Holding Codes - net nil","Education Library Service - Resources","Audio/Visual materials",17/03/2014 00:00:00,"6543236",1947.38,"ASKEWS & HOLTS LIBRARY SERVICE"
"Bracknell Forest Council","http://opendatacommunities.org/id/unitary-authority/bracknell-forest","Bracknell Forest Council","00MA","Management and Support Services - CYPL","Holding Codes - net nil","Education Library Service - Resources","Audio/Visual materials",03/03/2014 00:00:00,"6543237",1505.06,"ASKEWS & HOLTS LIBRARY SERVICE"
"Bracknell Forest Council","http://opendatacommunities.org/id/unitary-authority/bracknell-forest","Bracknell Forest Council","00MA","Management and Support Services - CYPL","Holding Codes - net nil","Education Library Service - Resources","Audio/Visual materials",10/03/2014 00:00:00,"6543630",2900.54,"ASKEWS & HOLTS LIBRARY SERVICE"
"Bracknell Forest Council","http://opendatacommunities.org/id/unitary-authority/bracknell-forest","Bracknell Forest Council","00MA","Libraries","Stock Ordering, Cataloguing & Distribution","Library Book Fund","Audio/Visual materials",24/03/2014 00:00:00,"6544594",6306.46,"ASKEWS & HOLTS LIBRARY SERVICE"
"Bracknell Forest Council","http://opendatacommunities.org/id/unitary-authority/bracknell-forest","Bracknell Forest Council","00MA","Libraries","Stock Ordering, Cataloguing & Distribution","Library Book Fund","Audio/Visual materials",24/03/2014 00:00:00,"6544594",5596.77,"ASKEWS & HOLTS LIBRARY SERVICE"
"Bracknell Forest Council","http://opendatacommunities.org/id/unitary-authority/bracknell-forest","Bracknell Forest Council","00MA","Libraries","Stock Ordering, Cataloguing & Distribution","Library Book Fund","Audio/Visual materials",24/03/2014 00:00:00,"6544594",3915.34,"ASKEWS & HOLTS LIBRARY SERVICE"
"Bracknell Forest Council","http://opendatacommunities.org/id/unitary-authority/bracknell-forest","Bracknell Forest Council","00MA","Libraries","Stock Ordering, Cataloguing & Distribution","Library Book Fund","Audio/Visual materials",03/03/2014 00:00:00,"6544596",5456.76,"ASKEWS & HOLTS LIBRARY SERVICE"
"Bracknell Forest Council","http://opendatacommunities.org/id/unitary-authority/bracknell-forest","Bracknell Forest Council","00MA","Libraries","Stock Ordering, Cataloguing & Distribution","Library Book Fund","Audio/Visual materials",03/03/2014 00:00:00,"6544596",10329.07,"ASKEWS & HOLTS LIBRARY SERVICE"
"Bracknell Forest Council","http://opendatacommunities.org/id/unitary-authority/bracknell-forest","Bracknell Forest Council","00MA","Libraries","Stock Ordering, Cataloguing & Distribution","Library Book Fund","Audio/Visual materials",03/03/2014 00:00:00,"6544596",5500.59,"ASKEWS & HOLTS LIBRARY SERVICE"
"Bracknell Forest Council","http://opendatacommunities.org/id/unitary-authority/bracknell-forest","Bracknell Forest Council","00MA","Libraries","Stock Ordering, Cataloguing & Distribution","Library Book Fund","Audio/Visual materials",10/03/2014 00:00:00,"6544598",2198.69,"ASKEWS & HOLTS LIBRARY SERVICE"
"Bracknell Forest Council","http://opendatacommunities.org/id/unitary-authority/bracknell-forest","Bracknell Forest Council","00MA","Libraries","Stock Ordering, Cataloguing & Distribution","Library Book Fund","Audio/Visual materials",10/03/2014 00:00:00,"6544598",1404.84,"ASKEWS & HOLTS LIBRARY SERVICE"
"Bracknell Forest Council","http://opendatacommunities.org/id/unitary-authority/bracknell-forest","Bracknell Forest Council","00MA","Libraries","Stock Ordering, Cataloguing & Distribution","Library Book Fund","Audio/Visual materials",10/03/2014 00:00:00,"6544598",914.72,"ASKEWS & HOLTS LIBRARY SERVICE"
"Bracknell Forest Council","http://opendatacommunities.org/id/unitary-authority/bracknell-forest","Bracknell Forest Council","00MA","Libraries","Stock Ordering, Cataloguing & Distribution","Library Book Fund","Audio/Visual materials",17/03/2014 00:00:00,"6544603",1189.61,"ASKEWS & HOLTS LIBRARY SERVICE"
"Bracknell Forest Council","http://opendatacommunities.org/id/unitary-authority/bracknell-forest","Bracknell Forest Council","00MA","Libraries","Stock Ordering, Cataloguing & Distribution","Library Book Fund","Audio/Visual materials",17/03/2014 00:00:00,"6544603",684.03,"ASKEWS & HOLTS LIBRARY SERVICE"
"Bracknell Forest Council","http://opendatacommunities.org/id/unitary-authority/bracknell-forest","Bracknell Forest Council","00MA","Libraries","Stock Ordering, Cataloguing & Distribution","Library Book Fund","Audio/Visual materials",17/03/2014 00:00:00,"6544603",861.83,"ASKEWS & HOLTS LIBRARY SERVICE"
"Bracknell Forest Council","http://opendatacommunities.org/id/unitary-authority/bracknell-forest","Bracknell Forest Council","00MA","Management and Support Services - CYPL","Holding Codes - net nil","Education Library Service - Resources","Audio/Visual materials",24/03/2014 00:00:00,"6544649",844.42,"ASKEWS & HOLTS LIBRARY SERVICE"
"Bracknell Forest Council","http://opendatacommunities.org/id/unitary-authority/bracknell-forest","Bracknell Forest Council","00MA","Management and Support Services - CYPL","Holding Codes - net nil","Education Library Service - Resources","Audio/Visual materials",31/03/2014 00:00:00,"6544698",3305.45,"ASKEWS & HOLTS LIBRARY SERVICE"
"Bracknell Forest Council","http://opendatacommunities.org/id/unitary-authority/bracknell-forest","Bracknell Forest Council","00MA","Libraries","Stock Ordering, Cataloguing & Distribution","Library Book Fund","Audio/Visual materials",31/03/2014 00:00:00,"6545082",1865.55,"ASKEWS & HOLTS LIBRARY SERVICE"
"Bracknell Forest Council","http://opendatacommunities.org/id/unitary-authority/bracknell-forest","Bracknell Forest Council","00MA","Libraries","Stock Ordering, Cataloguing & Distribution","Library Book Fund","Audio/Visual materials",31/03/2014 00:00:00,"6545082",1719.99,"ASKEWS & HOLTS LIBRARY SERVICE"
"Bracknell Forest Council","http://opendatacommunities.org/id/unitary-authority/bracknell-forest","Bracknell Forest Council","00MA","Libraries","Stock Ordering, Cataloguing & Distribution","Library Book Fund","Audio/Visual materials",31/03/2014 00:00:00,"6545082",841.67,"ASKEWS & HOLTS LIBRARY SERVICE"
"Bracknell Forest Council","http://opendatacommunities.org/id/unitary-authority/bracknell-forest","Bracknell Forest Council","00MA","Libraries","Stock Ordering, Cataloguing & Distribution","Library Book Fund","Audio/Visual materials",31/03/2014 00:00:00,"6545082",1024.44,"ASKEWS & HOLTS LIBRARY SERVICE"
"Bracknell Forest Council","http://opendatacommunities.org/id/unitary-authority/bracknell-forest","Bracknell Forest Council","00MA","Management and Support Services - CYPL","Holding Codes - net nil","Education Library Service - Resources","Audio/Visual materials",24/02/2014 00:00:00,"6545388",2185.52,"ASKEWS & HOLTS LIBRARY SERVICE"
"Bracknell Forest Council","http://opendatacommunities.org/id/unitary-authority/bracknell-forest","Bracknell Forest Council","00MA","Management and Support Services - CYPL","CYPL Departmental Management Team","Management Team","Professional Subscriptions & Legal Practising Cert",06/03/2014 00:00:00,"6543115",1567.5,"ASSOC OF DIRECTORS OF CHILDREN'S SERVICES"
"Bracknell Forest Council","http://opendatacommunities.org/id/unitary-authority/bracknell-forest","Bracknell Forest Council","00MA","Central Support Services - COF","Customer Service Centre","Cashiers Services","Equipment - Purchase",21/03/2014 00:00:00,"6545598",850,"ASSOCIATED SAFE SYSTEMS LTD"
"Bracknell Forest Council","http://opendatacommunities.org/id/unitary-authority/bracknell-forest","Bracknell Forest Council","00MA","Management and Support Services - CYPL","Unallocated Schools Budget Related Expenditure","Official Staff Absence","Teachers",05/03/2014 00:00:00,"6541996",3801,"ASSOCIATION OF TEACHERS AND LECTURERS"
"Bracknell Forest Council","http://opendatacommunities.org/id/unitary-authority/bracknell-forest","Bracknell Forest Council","00MA","","","Primary Capital Programme","Consultant Fees",20/03/2014 00:00:00,"6544234",9390,"ATKINS LIMITED"
"Bracknell Forest Council","http://opendatacommunities.org/id/unitary-authority/bracknell-forest","Bracknell Forest Council","00MA","","","Coral Reef Roof Replacement","Consultant Fees",26/03/2014 00:00:00,"6544882",36935,"ATKINS LIMITED"
"Bracknell Forest Council","http://opendatacommunities.org/id/unitary-authority/bracknell-forest","Bracknell Forest Council","00MA","","","Ascot Heath Junior-MTC","Construction - Contract Payments",27/02/2014 00:00:00,"6542201",670,"ATKINS LTD"
"Bracknell Forest Council","http://opendatacommunities.org/id/unitary-authority/bracknell-forest","Bracknell Forest Council","00MA","","","Blue Mountain Learning Village","Consultant Fees",17/02/2014 00:00:00,"6542734",67597.74,"ATKINS LTD"
"Bracknell Forest Council","http://opendatacommunities.org/id/unitary-authority/bracknell-forest","Bracknell Forest Council","00MA","","","Garth Hill Post 16 Expansion","Consultant Fees",10/03/2014 00:00:00,"6542735",123640.88,"ATKINS LTD"
"Bracknell Forest Council","http://opendatacommunities.org/id/unitary-authority/bracknell-forest","Bracknell Forest Council","00MA","Structural Maintenance","Bridges","Bridges - Other Roads","Contracted Services",04/03/2014 00:00:00,"6542959",2011.53,"ATKINS LTD"
"Bracknell Forest Council","http://opendatacommunities.org/id/unitary-authority/bracknell-forest","Bracknell Forest Council","00MA","","","Maintenance of Car Parks","Consultant Fees",04/03/2014 00:00:00,"6542959",3452.15,"ATKINS LTD"
"Bracknell Forest Council","http://opendatacommunities.org/id/unitary-authority/bracknell-forest","Bracknell Forest Council","00MA","","","Maintenance of Car Parks","Consultant Fees",04/03/2014 00:00:00,"6542959",629.57,"ATKINS LTD"
"Bracknell Forest Council","http://opendatacommunities.org/id/unitary-authority/bracknell-forest","Bracknell Forest Council","00MA","","","Owlsmoor Suitability","Consultant Fees",24/02/2014 00:00:00,"6543240",885.42,"ATKINS LTD"
"Bracknell Forest Council","http://opendatacommunities.org/id/unitary-authority/bracknell-forest","Bracknell Forest Council","00MA","","","Brakenhale Science Block","Consultant Fees",24/02/2014 00:00:00,"6543240",885.42,"ATKINS LTD"
"Bracknell Forest Council","http://opendatacommunities.org/id/unitary-authority/bracknell-forest","Bracknell Forest Council","00MA","","","The Pines Primary","Consultant Fees",24/02/2014 00:00:00,"6543240",1770.83,"ATKINS LTD"
"Bracknell Forest Council","http://opendatacommunities.org/id/unitary-authority/bracknell-forest","Bracknell Forest Council","00MA","Older People (Aged 65 or Over)","Residential Care Home Placements","Heathlands EPH - Q603R","Cost of Goods Sold",26/02/2014 00:00:00,"30237895",69.22,"3663"
"Bracknell Forest Council","http://opendatacommunities.org/id/unitary-authority/bracknell-forest","Bracknell Forest Council","00MA","Recreation, Sports and Leisure","Golf Courses","Leisure DSO - Downshire Catering","Cost of Goods Sold",27/02/2014 00:00:00,"30237895",-26.94,"3663"
"Bracknell Forest Council","http://opendatacommunities.org/id/unitary-authority/bracknell-forest","Bracknell Forest Council","00MA","Recreation, Sports and Leisure","Indoor Sports & Recreation Facilities","Coral Reef - Catering & Bar","Cost of Goods Sold",26/02/2014 00:00:00,"30237895",-8.8,"3663"
"Bracknell Forest Council","http://opendatacommunities.org/id/unitary-authority/bracknell-forest","Bracknell Forest Council","00MA","Business Support","Premises Development","Easthampstead Park Centre - Catering","Cost of Goods Sold",28/02/2014 00:00:00,"30237895",44.98,"3663"
"Bracknell Forest Council","http://opendatacommunities.org/id/unitary-authority/bracknell-forest","Bracknell Forest Council","00MA","Business Support","Premises Development","Easthampstead Park Centre - Catering","Cost of Goods Sold",05/03/2014 00:00:00,"30237895",467.02,"3663"
"Bracknell Forest Council","http://opendatacommunities.org/id/unitary-authority/bracknell-forest","Bracknell Forest Council","00MA","Business Support","Premises Development","Easthampstead Park Centre - Catering","Cost of Goods Sold",05/03/2014 00:00:00,"30237895",-36.36,"3663"
"Bracknell Forest Council","http://opendatacommunities.org/id/unitary-authority/bracknell-forest","Bracknell Forest Council","00MA","Business Support","Premises Development","Easthampstead Park Centre - Catering","Cost of Goods Sold",28/02/2014 00:00:00,"30237895",447.31,"3663"
"Bracknell Forest Council","http://opendatacommunities.org/id/unitary-authority/bracknell-forest","Bracknell Forest Council","00MA","Recreation, Sports and Leisure","Indoor Sports & Recreation Facilities","Coral Reef - Catering & Bar","Cost of Goods Sold",21/02/2014 00:00:00,"30237895",271.97,"3663"
"Bracknell Forest Council","http://opendatacommunities.org/id/unitary-authority/bracknell-forest","Bracknell Forest Council","00MA","Recreation, Sports and Leisure","Golf Courses","Leisure DSO - Downshire Catering","Cost of Goods Sold",25/02/2014 00:00:00,"30237895",16.89,"3663"
"Bracknell Forest Council","http://opendatacommunities.org/id/unitary-authority/bracknell-forest","Bracknell Forest Council","00MA","Recreation, Sports and Leisure","Golf Courses","Leisure DSO - Downshire Catering","Cost of Goods Sold",25/02/2014 00:00:00,"30237895",479.43,"3663"
"Bracknell Forest Council","http://opendatacommunities.org/id/unitary-authority/bracknell-forest","Bracknell Forest Council","00MA","Recreation, Sports and Leisure","Indoor Sports & Recreation Facilities","Leisure Centre - Catering General","Cost of Goods Sold",26/02/2014 00:00:00,"30237895",511.95,"3663"
"Bracknell Forest Council","http://opendatacommunities.org/id/unitary-authority/bracknell-forest","Bracknell Forest Council","00MA","Recreation, Sports and Leisure","Indoor Sports & Recreation Facilities","Leisure Centre - Catering General","Cost of Goods Sold",26/02/2014 00:00:00,"30237895",17.72,"3663"
"Bracknell Forest Council","http://opendatacommunities.org/id/unitary-authority/bracknell-forest","Bracknell Forest Council","00MA","Recreation, Sports and Leisure","Golf Courses","Leisure DSO - Downshire Catering","Cost of Goods Sold",27/02/2014 00:00:00,"30237895",24.14,"3663"
"Bracknell Forest Council","http://opendatacommunities.org/id/unitary-authority/bracknell-forest","Bracknell Forest Council","00MA","Business Support","Premises Development","Easthampstead Park Centre - Catering","Cost of Goods Sold",26/02/2014 00:00:00,"30237895",298.56,"3663"
"Bracknell Forest Council","http://opendatacommunities.org/id/unitary-authority/bracknell-forest","Bracknell Forest Council","00MA","Business Support","Premises Development","Easthampstead Park Centre - Catering","Cost of Goods Sold",26/02/2014 00:00:00,"30237895",47.96,"3663"
"Bracknell Forest Council","http://opendatacommunities.org/id/unitary-authority/bracknell-forest","Bracknell Forest Council","00MA","Business Support","Premises Development","Easthampstead Park Centre - Catering","Cost of Goods Sold",27/02/2014 00:00:00,"30237895",86.27,"3663"
"Bracknell Forest Council","http://opendatacommunities.org/id/unitary-authority/bracknell-forest","Bracknell Forest Council","00MA","Business Support","Premises Development","Easthampstead Park Centre - Catering","Cost of Goods Sold",27/02/2014 00:00:00,"30237895",13.02,"3663"
"Bracknell Forest Council","http://opendatacommunities.org/id/unitary-authority/bracknell-forest","Bracknell Forest Council","00MA","Recreation, Sports and Leisure","Indoor Sports & Recreation Facilities","Leisure Centre - Catering General","Cost of Goods Sold",07/03/2014 00:00:00,"30238319",179.25,"3663"
"Bracknell Forest Council","http://opendatacommunities.org/id/unitary-authority/bracknell-forest","Bracknell Forest Council","00MA","Recreation, Sports and Leisure","Indoor Sports & Recreation Facilities","Leisure Centre - Catering General","Cost of Goods Sold",07/03/2014 00:00:00,"30238319",17.85,"3663"
"Bracknell Forest Council","http://opendatacommunities.org/id/unitary-authority/bracknell-forest","Bracknell Forest Council","00MA","Recreation, Sports and Leisure","Indoor Sports & Recreation Facilities","Leisure Centre - Catering General","Cost of Goods Sold",07/03/2014 00:00:00,"30238319",25.02,"3663"
"Bracknell Forest Council","http://opendatacommunities.org/id/unitary-authority/bracknell-forest","Bracknell Forest Council","00MA","Business Support","Premises Development","Easthampstead Park Centre - Catering","Cost of Goods Sold",07/03/2014 00:00:00,"30238319",54.72,"3663"
"Bracknell Forest Council","http://opendatacommunities.org/id/unitary-authority/bracknell-forest","Bracknell Forest Council","00MA","Business Support","Premises Development","Easthampstead Park Centre - Catering","Cost of Goods Sold",07/03/2014 00:00:00,"30238319",-37.77,"3663"
"Bracknell Forest Council","http://opendatacommunities.org/id/unitary-authority/bracknell-forest","Bracknell Forest Council","00MA","Business Support","Premises Development","Easthampstead Park Centre - Catering","Cost of Goods Sold",10/03/2014 00:00:00,"30238319",237.85,"3663"
"Bracknell Forest Council","http://opendatacommunities.org/id/unitary-authority/bracknell-forest","Bracknell Forest Council","00MA","Business Support","Premises Development","Easthampstead Park Centre - Catering","Cost of Goods Sold",10/03/2014 00:00:00,"30238319",39.86,"3663"
"Bracknell Forest Council","http://opendatacommunities.org/id/unitary-authority/bracknell-forest","Bracknell Forest Council","00MA","Business Support","Premises Development","Easthampstead Park Centre - Catering","Cost of Goods Sold",11/03/2014 00:00:00,"30238319",538.85,"3663"
"Bracknell Forest Council","http://opendatacommunities.org/id/unitary-authority/bracknell-forest","Bracknell Forest Council","00MA","Older People (Aged 65 or Over)","Home Care","Home Care-Elderly  - Q214B","Contracted Services",25/03/2014 00:00:00,"30239142",-53.2,"BRIDGES HOME CARE LTD"
"Bracknell Forest Council","http://opendatacommunities.org/id/unitary-authority/bracknell-forest","Bracknell Forest Council","00MA","Older People (Aged 65 or Over)","Home Care","Homecare EMI - Q114B","Contracted Services",01/04/2014 00:00:00,"30239783",1775.84,"BRIDGES HOME CARE LTD"
"Bracknell Forest Council","http://opendatacommunities.org/id/unitary-authority/bracknell-forest","Bracknell Forest Council","00MA","Older People (Aged 65 or Over)","Home Care","Homecare EMI - Q114B","Contracted Services",01/04/2014 00:00:00,"30239783",866.4,"BRIDGES HOME CARE LTD"
"Bracknell Forest Council","http://opendatacommunities.org/id/unitary-authority/bracknell-forest","Bracknell Forest Council","00MA","Older People (Aged 65 or Over)","Home Care","Homecare EMI - Q114B","Contracted Services",01/04/2014 00:00:00,"30239783",1387,"BRIDGES HOME CARE LTD"
"Bracknell Forest Council","http://opendatacommunities.org/id/unitary-authority/bracknell-forest","Bracknell Forest Council","00MA","Older People (Aged 65 or Over)","Home Care","Home Care-Elderly  - Q214B","Contracted Services",01/04/2014 00:00:00,"30239783",2671.8,"BRIDGES HOME CARE LTD"
"Bracknell Forest Council","http://opendatacommunities.org/id/unitary-authority/bracknell-forest","Bracknell Forest Council","00MA","Older People (Aged 65 or Over)","Home Care","Home Care-Elderly  - Q214B","Contracted Services",01/04/2014 00:00:00,"30239783",722,"BRIDGES HOME CARE LTD"
"Bracknell Forest Council","http://opendatacommunities.org/id/unitary-authority/bracknell-forest","Bracknell Forest Council","00MA","Older People (Aged 65 or Over)","Home Care","Home Care-Elderly  - Q214B","Contracted Services",01/04/2014 00:00:00,"30239783",733.4,"BRIDGES HOME CARE LTD"
"Bracknell Forest Council","http://opendatacommunities.org/id/unitary-authority/bracknell-forest","Bracknell Forest Council","00MA","Mental Health Needs (Under 65)","Homecare","Homecare EMI Under 65 - Q114A","Contracted Services",01/04/2014 00:00:00,"30239783",1261.6,"BRIDGES HOME CARE LTD"
"Bracknell Forest Council","http://opendatacommunities.org/id/unitary-authority/bracknell-forest","Bracknell Forest Council","00MA","Older People (Aged 65 or Over)","Home Care","Home Care-Elderly  - Q214B","Contracted Services",01/04/2014 00:00:00,"30239783",140.6,"BRIDGES HOME CARE LTD"
"Bracknell Forest Council","http://opendatacommunities.org/id/unitary-authority/bracknell-forest","Bracknell Forest Council","00MA","Older People (Aged 65 or Over)","Home Care","Home Care-Elderly  - Q214B","Contracted Services",01/04/2014 00:00:00,"30239783",815.68,"BRIDGES HOME CARE LTD"
"Bracknell Forest Council","http://opendatacommunities.org/id/unitary-authority/bracknell-forest","Bracknell Forest Council","00MA","Physical Disability/Sensory Impairment","Homecare","Home Care-Phys Disab - Q214A","Contracted Services",01/04/2014 00:00:00,"30239783",532,"BRIDGES HOME CARE LTD"
"Bracknell Forest Council","http://opendatacommunities.org/id/unitary-authority/bracknell-forest","Bracknell Forest Council","00MA","Physical Disability/Sensory Impairment","Homecare","Home Care-Phys Disab - Q214A","Contracted Services",01/04/2014 00:00:00,"30239783",3366.8,"BRIDGES HOME CARE LTD"
"Bracknell Forest Council","http://opendatacommunities.org/id/unitary-authority/bracknell-forest","Bracknell Forest Council","00MA","Older People (Aged 65 or Over)","Home Care","Homecare PD 65 and Over - Q214B","Contracted Services",01/04/2014 00:00:00,"30239783",844.86,"BRIDGES HOME CARE LTD"
"Bracknell Forest Council","http://opendatacommunities.org/id/unitary-authority/bracknell-forest","Bracknell Forest Council","00MA","Older People (Aged 65 or Over)","Home Care","Home Care-Elderly  - Q214B","Contracted Services",01/04/2014 00:00:00,"30239783",767.6,"BRIDGES HOME CARE LTD"
"Bracknell Forest Council","http://opendatacommunities.org/id/unitary-authority/bracknell-forest","Bracknell Forest Council","00MA","Older People (Aged 65 or Over)","Home Care","Home Care-Elderly  - Q214B","Contracted Services",01/04/2014 00:00:00,"30239783",418,"BRIDGES HOME CARE LTD"
"Bracknell Forest Council","http://opendatacommunities.org/id/unitary-authority/bracknell-forest","Bracknell Forest Council","00MA","Business Support","Premises Development","Easthampstead Park Centre - Catering","Cost of Goods Sold",11/03/2014 00:00:00,"30238319",12.04,"3663"
"Bracknell Forest Council","http://opendatacommunities.org/id/unitary-authority/bracknell-forest","Bracknell Forest Council","00MA","Business Support","Premises Development","Easthampstead Park Centre - Catering","Cost of Goods Sold",11/03/2014 00:00:00,"30238319",20.5,"3663"
"Bracknell Forest Council","http://opendatacommunities.org/id/unitary-authority/bracknell-forest","Bracknell Forest Council","00MA","Recreation, Sports and Leisure","Golf Courses","Leisure DSO - Downshire Catering","Cost of Goods Sold",10/03/2014 00:00:00,"30238319",-9.55,"3663"
"Bracknell Forest Council","http://opendatacommunities.org/id/unitary-authority/bracknell-forest","Bracknell Forest Council","00MA","Business Support","Premises Development","Easthampstead Park Centre - Catering","Cost of Goods Sold",03/03/2014 00:00:00,"30238319",213.93,"3663"
"Bracknell Forest Council","http://opendatacommunities.org/id/unitary-authority/bracknell-forest","Bracknell Forest Council","00MA","Business Support","Premises Development","Easthampstead Park Centre - Catering","Cost of Goods Sold",03/03/2014 00:00:00,"30238319",30.06,"3663"
"Bracknell Forest Council","http://opendatacommunities.org/id/unitary-authority/bracknell-forest","Bracknell Forest Council","00MA","Business Support","Premises Development","Easthampstead Park Centre - Catering","Cost of Goods Sold",06/03/2014 00:00:00,"30238319",220.74,"3663"
"Bracknell Forest Council","http://opendatacommunities.org/id/unitary-authority/bracknell-forest","Bracknell Forest Council","00MA","Business Support","Premises Development","Easthampstead Park Centre - Catering","Cost of Goods Sold",06/03/2014 00:00:00,"30238319",50.09,"3663"
"Bracknell Forest Council","http://opendatacommunities.org/id/unitary-authority/bracknell-forest","Bracknell Forest Council","00MA","Recreation, Sports and Leisure","Indoor Sports & Recreation Facilities","Leisure Centre - Catering General","Cost of Goods Sold",05/03/2014 00:00:00,"30238319",50.96,"3663"
"Bracknell Forest Council","http://opendatacommunities.org/id/unitary-authority/bracknell-forest","Bracknell Forest Council","00MA","Recreation, Sports and Leisure","Golf Courses","Leisure DSO - Downshire Catering","Cost of Goods Sold",06/03/2014 00:00:00,"30238319",365.65,"3663"
"Bracknell Forest Council","http://opendatacommunities.org/id/unitary-authority/bracknell-forest","Bracknell Forest Council","00MA","Recreation, Sports and Leisure","Golf Courses","Leisure DSO - Downshire Catering","Cost of Goods Sold",06/03/2014 00:00:00,"30238319",74.68,"3663"
"Bracknell Forest Council","http://opendatacommunities.org/id/unitary-authority/bracknell-forest","Bracknell Forest Council","00MA","Older People (Aged 65 or Over)","Residential Care Home Placements","Bridgewell Unit - Q274E","Cost of Goods Sold",28/08/2013 00:00:00,"30238708",182.58,"3663"
"Bracknell Forest Council","http://opendatacommunities.org/id/unitary-authority/bracknell-forest","Bracknell Forest Council","00MA","Older People (Aged 65 or Over)","Residential Care Home Placements","Bridgewell Unit - Q274E","Cost of Goods Sold",28/08/2013 00:00:00,"30238708",65.48,"3663"
"Bracknell Forest Council","http://opendatacommunities.org/id/unitary-authority/bracknell-forest","Bracknell Forest Council","00MA","Older People (Aged 65 or Over)","Residential Care Home Placements","Heathlands EPH - Q603R","Cost of Goods Sold",05/03/2014 00:00:00,"30238708",689.09,"3663"
"Bracknell Forest Council","http://opendatacommunities.org/id/unitary-authority/bracknell-forest","Bracknell Forest Council","00MA","Older People (Aged 65 or Over)","Residential Care Home Placements","Heathlands EPH - Q603R","Cost of Goods Sold",05/03/2014 00:00:00,"30238708",35.56,"3663"
"Bracknell Forest Council","http://opendatacommunities.org/id/unitary-authority/bracknell-forest","Bracknell Forest Council","00MA","Older People (Aged 65 or Over)","Residential Care Home Placements","Heathlands EPH - Q603R","Cost of Goods Sold",12/03/2014 00:00:00,"30238708",479.83,"3663"
"Bracknell Forest Council","http://opendatacommunities.org/id/unitary-authority/bracknell-forest","Bracknell Forest Council","00MA","Older People (Aged 65 or Over)","Home Care","Home Care-Elderly  - Q214B","Contracted Services",01/04/2014 00:00:00,"30239783",1185.6,"BRIDGES HOME CARE LTD"
"Bracknell Forest Council","http://opendatacommunities.org/id/unitary-authority/bracknell-forest","Bracknell Forest Council","00MA","Older People (Aged 65 or Over)","Home Care","Home Care-Elderly  - Q214B","Contracted Services",01/04/2014 00:00:00,"30239783",91.2,"BRIDGES HOME CARE LTD"
"Bracknell Forest Council","http://opendatacommunities.org/id/unitary-authority/bracknell-forest","Bracknell Forest Council","00MA","Older People (Aged 65 or Over)","Home Care","Home Care-Elderly  - Q214B","Contracted Services",01/04/2014 00:00:00,"30239783",699.2,"BRIDGES HOME CARE LTD"
"Bracknell Forest Council","http://opendatacommunities.org/id/unitary-authority/bracknell-forest","Bracknell Forest Council","00MA","Older People (Aged 65 or Over)","Home Care","Home Care-Elderly  - Q214B","Contracted Services",01/04/2014 00:00:00,"30239783",513,"BRIDGES HOME CARE LTD"
"Bracknell Forest Council","http://opendatacommunities.org/id/unitary-authority/bracknell-forest","Bracknell Forest Council","00MA","Older People (Aged 65 or Over)","Home Care","Home Care-Elderly  - Q214B","Contracted Services",01/04/2014 00:00:00,"30239783",691.6,"BRIDGES HOME CARE LTD"
"Bracknell Forest Council","http://opendatacommunities.org/id/unitary-authority/bracknell-forest","Bracknell Forest Council","00MA","Early Years","Centrally managed Expenditure - Early Years","Early Years and Childcare","Grants and Donations",27/03/2014 00:00:00,"30239558",111.3,"BRIGHT HORIZONS"
"Bracknell Forest Council","http://opendatacommunities.org/id/unitary-authority/bracknell-forest","Bracknell Forest Council","00MA","Early Years","Centrally managed Expenditure - Early Years","Early Years and Childcare","Grants and Donations",27/03/2014 00:00:00,"30239566",8731,"BRIGHT HORIZONS"
"Bracknell Forest Council","http://opendatacommunities.org/id/unitary-authority/bracknell-forest","Bracknell Forest Council","00MA","Older People (Aged 65 or Over)","Home Care","Homecare EMI - Q114B","Contracted Services",04/03/2014 00:00:00,"30237634",121.6,"BRIGHT YELLOW SOLUTIONS LTD"
"Bracknell Forest Council","http://opendatacommunities.org/id/unitary-authority/bracknell-forest","Bracknell Forest Council","00MA","Physical Disability/Sensory Impairment","Homecare","Home Care-Phys Disab - Q214A","Contracted Services",04/03/2014 00:00:00,"30237634",11.4,"BRIGHT YELLOW SOLUTIONS LTD"
"Bracknell Forest Council","http://opendatacommunities.org/id/unitary-authority/bracknell-forest","Bracknell Forest Council","00MA","Older People (Aged 65 or Over)","Home Care","Homecare EMI - Q114B","Contracted Services",20/03/2014 00:00:00,"30238804",11087.8,"BRIGHT YELLOW SOLUTIONS LTD"
"Bracknell Forest Council","http://opendatacommunities.org/id/unitary-authority/bracknell-forest","Bracknell Forest Council","00MA","Physical Disability/Sensory Impairment","Homecare","Home Care-Phys Disab - Q214A","Contracted Services",20/03/2014 00:00:00,"30238804",801.8,"BRIGHT YELLOW SOLUTIONS LTD"
"Bracknell Forest Council","http://opendatacommunities.org/id/unitary-authority/bracknell-forest","Bracknell Forest Council","00MA","Older People (Aged 65 or Over)","Home Care","Home Care-Elderly  - Q214B","Contracted Services",20/03/2014 00:00:00,"30238804",506.4,"BRIGHT YELLOW SOLUTIONS LTD"
"Bracknell Forest Council","http://opendatacommunities.org/id/unitary-authority/bracknell-forest","Bracknell Forest Council","00MA","Older People (Aged 65 or Over)","Home Care","Home Care-Elderly  - Q214B","Contracted Services",20/03/2014 00:00:00,"30238804",16796,"BRIGHT YELLOW SOLUTIONS LTD"
"Bracknell Forest Council","http://opendatacommunities.org/id/unitary-authority/bracknell-forest","Bracknell Forest Council","00MA","Older People (Aged 65 or Over)","Home Care","Home Care-Elderly  - Q214B","Contracted Services",20/03/2014 00:00:00,"30238804",5069.2,"BRIGHT YELLOW SOLUTIONS LTD"
"Bracknell Forest Council","http://opendatacommunities.org/id/unitary-authority/bracknell-forest","Bracknell Forest Council","00MA","Older People (Aged 65 or Over)","Residential Care Home Placements","Heathlands EPH - Q603R","Cost of Goods Sold",12/03/2014 00:00:00,"30238708",62.02,"3663"
"Bracknell Forest Council","http://opendatacommunities.org/id/unitary-authority/bracknell-forest","Bracknell Forest Council","00MA","Recreation, Sports and Leisure","Indoor Sports & Recreation Facilities","Leisure Centre - Catering General","Cost of Goods Sold",12/03/2014 00:00:00,"30238708",394.43,"3663"
"Bracknell Forest Council","http://opendatacommunities.org/id/unitary-authority/bracknell-forest","Bracknell Forest Council","00MA","Recreation, Sports and Leisure","Indoor Sports & Recreation Facilities","Leisure Centre - Catering General","Cost of Goods Sold",12/03/2014 00:00:00,"30238708",48.14,"3663"
"Bracknell Forest Council","http://opendatacommunities.org/id/unitary-authority/bracknell-forest","Bracknell Forest Council","00MA","Recreation, Sports and Leisure","Golf Courses","Leisure DSO - Downshire Catering","Cost of Goods Sold",11/03/2014 00:00:00,"30238708",318.13,"3663"
"Bracknell Forest Council","http://opendatacommunities.org/id/unitary-authority/bracknell-forest","Bracknell Forest Council","00MA","Recreation, Sports and Leisure","Golf Courses","Leisure DSO - Downshire Catering","Cost of Goods Sold",11/03/2014 00:00:00,"30238708",79.34,"3663"
"Bracknell Forest Council","http://opendatacommunities.org/id/unitary-authority/bracknell-forest","Bracknell Forest Council","00MA","Business Support","Premises Development","Easthampstead Park Centre - Catering","Cost of Goods Sold",03/03/2014 00:00:00,"30238708",185.17,"3663"
"Bracknell Forest Council","http://opendatacommunities.org/id/unitary-authority/bracknell-forest","Bracknell Forest Council","00MA","Business Support","Premises Development","Easthampstead Park Centre - Catering","Cost of Goods Sold",12/03/2014 00:00:00,"30238708",300.79,"3663"
"Bracknell Forest Council","http://opendatacommunities.org/id/unitary-authority/bracknell-forest","Bracknell Forest Council","00MA","Business Support","Premises Development","Easthampstead Park Centre - Catering","Cost of Goods Sold",12/03/2014 00:00:00,"30238708",17.94,"3663"
"Bracknell Forest Council","http://opendatacommunities.org/id/unitary-authority/bracknell-forest","Bracknell Forest Council","00MA","Business Support","Premises Development","Easthampstead Park Centre - Catering","Cost of Goods Sold",12/03/2014 00:00:00,"30238708",10.84,"3663"
"Bracknell Forest Council","http://opendatacommunities.org/id/unitary-authority/bracknell-forest","Bracknell Forest Council","00MA","Recreation, Sports and Leisure","Indoor Sports & Recreation Facilities","Coral Reef - Catering & Bar","Cost of Goods Sold",14/03/2014 00:00:00,"30238708",370.32,"3663"
"Bracknell Forest Council","http://opendatacommunities.org/id/unitary-authority/bracknell-forest","Bracknell Forest Council","00MA","Business Support","Premises Development","Easthampstead Park Centre - Catering","Cost of Goods Sold",13/03/2014 00:00:00,"30238708",506.87,"3663"
"Bracknell Forest Council","http://opendatacommunities.org/id/unitary-authority/bracknell-forest","Bracknell Forest Council","00MA","Business Support","Premises Development","Easthampstead Park Centre - Catering","Cost of Goods Sold",13/03/2014 00:00:00,"30238708",81.55,"3663"
"Bracknell Forest Council","http://opendatacommunities.org/id/unitary-authority/bracknell-forest","Bracknell Forest Council","00MA","Business Support","Premises Development","Easthampstead Park Centre - Catering","Cost of Goods Sold",14/03/2014 00:00:00,"30238708",378.17,"3663"
"Bracknell Forest Council","http://opendatacommunities.org/id/unitary-authority/bracknell-forest","Bracknell Forest Council","00MA","Business Support","Premises Development","Easthampstead Park Centre - Catering","Cost of Goods Sold",14/03/2014 00:00:00,"30238708",8.63,"3663"
"Bracknell Forest Council","http://opendatacommunities.org/id/unitary-authority/bracknell-forest","Bracknell Forest Council","00MA","Business Support","Premises Development","Easthampstead Park Centre - Catering","Cost of Goods Sold",17/03/2014 00:00:00,"30238708",10.2,"3663"
"Bracknell Forest Council","http://opendatacommunities.org/id/unitary-authority/bracknell-forest","Bracknell Forest Council","00MA","Business Support","Premises Development","Easthampstead Park Centre - Catering","Cost of Goods Sold",17/03/2014 00:00:00,"30238708",59.63,"3663"
"Bracknell Forest Council","http://opendatacommunities.org/id/unitary-authority/bracknell-forest","Bracknell Forest Council","00MA","Business Support","Premises Development","Easthampstead Park Centre - Catering","Cost of Goods Sold",17/03/2014 00:00:00,"30238708",22.88,"3663"
"Bracknell Forest Council","http://opendatacommunities.org/id/unitary-authority/bracknell-forest","Bracknell Forest Council","00MA","Older People (Aged 65 or Over)","Residential Care Home Placements","Bridgewell Unit - Q274E","Cost of Goods Sold",19/03/2014 00:00:00,"30239321",219.13,"3663"
"Bracknell Forest Council","http://opendatacommunities.org/id/unitary-authority/bracknell-forest","Bracknell Forest Council","00MA","Older People (Aged 65 or Over)","Residential Care Home Placements","Bridgewell Unit - Q274E","Cost of Goods Sold",19/03/2014 00:00:00,"30239321",7.35,"3663"
"Bracknell Forest Council","http://opendatacommunities.org/id/unitary-authority/bracknell-forest","Bracknell Forest Council","00MA","Older People (Aged 65 or Over)","Residential Care Home Placements","Heathlands EPH - Q603R","Cost of Goods Sold",19/03/2014 00:00:00,"30239321",592.56,"3663"
"Bracknell Forest Council","http://opendatacommunities.org/id/unitary-authority/bracknell-forest","Bracknell Forest Council","00MA","Older People (Aged 65 or Over)","Residential Care Home Placements","Heathlands EPH - Q603R","Cost of Goods Sold",19/03/2014 00:00:00,"30239321",114.67,"3663"
"Bracknell Forest Council","http://opendatacommunities.org/id/unitary-authority/bracknell-forest","Bracknell Forest Council","00MA","Recreation, Sports and Leisure","Indoor Sports & Recreation Facilities","Leisure Centre - Catering General","Cost of Goods Sold",05/03/2014 00:00:00,"30239321",582.08,"3663"
"Bracknell Forest Council","http://opendatacommunities.org/id/unitary-authority/bracknell-forest","Bracknell Forest Council","00MA","Recreation, Sports and Leisure","Indoor Sports & Recreation Facilities","Leisure Centre - Catering General","Cost of Goods Sold",05/03/2014 00:00:00,"30239321",37.85,"3663"
"Bracknell Forest Council","http://opendatacommunities.org/id/unitary-authority/bracknell-forest","Bracknell Forest Council","00MA","Recreation, Sports and Leisure","Indoor Sports & Recreation Facilities","Leisure Centre - Catering General","Cost of Goods Sold",19/03/2014 00:00:00,"30239321",207.15,"3663"
"Bracknell Forest Council","http://opendatacommunities.org/id/unitary-authority/bracknell-forest","Bracknell Forest Council","00MA","Recreation, Sports and Leisure","Golf Courses","Leisure DSO - Downshire Catering","Cost of Goods Sold",18/03/2014 00:00:00,"30239321",569.78,"3663"
"Bracknell Forest Council","http://opendatacommunities.org/id/unitary-authority/bracknell-forest","Bracknell Forest Council","00MA","Recreation, Sports and Leisure","Golf Courses","Leisure DSO - Downshire Catering","Cost of Goods Sold",18/03/2014 00:00:00,"30239321",67.73,"3663"
"Bracknell Forest Council","http://opendatacommunities.org/id/unitary-authority/bracknell-forest","Bracknell Forest Council","00MA","Business Support","Premises Development","Easthampstead Park Centre - Catering","Cost of Goods Sold",19/03/2014 00:00:00,"30239321",188.7,"3663"
"Bracknell Forest Council","http://opendatacommunities.org/id/unitary-authority/bracknell-forest","Bracknell Forest Council","00MA","Business Support","Premises Development","Easthampstead Park Centre - Catering","Cost of Goods Sold",19/03/2014 00:00:00,"30239321",203.64,"3663"
"Bracknell Forest Council","http://opendatacommunities.org/id/unitary-authority/bracknell-forest","Bracknell Forest Council","00MA","Business Support","Premises Development","Easthampstead Park Centre - Catering","Cost of Goods Sold",19/03/2014 00:00:00,"30239321",10.82,"3663"
"Bracknell Forest Council","http://opendatacommunities.org/id/unitary-authority/bracknell-forest","Bracknell Forest Council","00MA","Business Support","Premises Development","Easthampstead Park Centre - Catering","Cost of Goods Sold",20/03/2014 00:00:00,"30239321",169.3,"3663"
"Bracknell Forest Council","http://opendatacommunities.org/id/unitary-authority/bracknell-forest","Bracknell Forest Council","00MA","Business Support","Premises Development","Easthampstead Park Centre - Catering","Cost of Goods Sold",20/03/2014 00:00:00,"30239321",61.51,"3663"
"Bracknell Forest Council","http://opendatacommunities.org/id/unitary-authority/bracknell-forest","Bracknell Forest Council","00MA","Business Support","Premises Development","Easthampstead Park Centre - Catering","Cost of Goods Sold",21/03/2014 00:00:00,"30239321",104.48,"3663"
"Bracknell Forest Council","http://opendatacommunities.org/id/unitary-authority/bracknell-forest","Bracknell Forest Council","00MA","Business Support","Premises Development","Easthampstead Park Centre - Catering","Cost of Goods Sold",24/03/2014 00:00:00,"30239321",97.4,"3663"
"Bracknell Forest Council","http://opendatacommunities.org/id/unitary-authority/bracknell-forest","Bracknell Forest Council","00MA","Business Support","Premises Development","Easthampstead Park Centre - Catering","Cost of Goods Sold",24/03/2014 00:00:00,"30239321",10.82,"3663"
"Bracknell Forest Council","http://opendatacommunities.org/id/unitary-authority/bracknell-forest","Bracknell Forest Council","00MA","Business Support","Premises Development","Easthampstead Park Centre - Catering","Cost of Goods Sold",25/03/2014 00:00:00,"30239321",132.43,"3663"
"Bracknell Forest Council","http://opendatacommunities.org/id/unitary-authority/bracknell-forest","Bracknell Forest Council","00MA","Business Support","Premises Development","Easthampstead Park Centre - Catering","Cost of Goods Sold",25/03/2014 00:00:00,"30239321",32.04,"3663"
"Bracknell Forest Council","http://opendatacommunities.org/id/unitary-authority/bracknell-forest","Bracknell Forest Council","00MA","Business Support","Premises Development","Easthampstead Park Centre - Catering","Cost of Goods Sold",18/03/2014 00:00:00,"30239321",-4.47,"3663"
"Bracknell Forest Council","http://opendatacommunities.org/id/unitary-authority/bracknell-forest","Bracknell Forest Council","00MA","Older People (Aged 65 or Over)","Residential Care Home Placements","Bridgewell Unit - Q274E","Cost of Goods Sold",26/03/2014 00:00:00,"30239983",288.01,"3663"
"Bracknell Forest Council","http://opendatacommunities.org/id/unitary-authority/bracknell-forest","Bracknell Forest Council","00MA","Older People (Aged 65 or Over)","Residential Care Home Placements","Bridgewell Unit - Q274E","Cost of Goods Sold",26/03/2014 00:00:00,"30239983",7.97,"3663"
"Bracknell Forest Council","http://opendatacommunities.org/id/unitary-authority/bracknell-forest","Bracknell Forest Council","00MA","Older People (Aged 65 or Over)","Residential Care Home Placements","Heathlands EPH - Q603R","Cost of Goods Sold",26/03/2014 00:00:00,"30239983",917.41,"3663"
"Bracknell Forest Council","http://opendatacommunities.org/id/unitary-authority/bracknell-forest","Bracknell Forest Council","00MA","Older People (Aged 65 or Over)","Residential Care Home Placements","Heathlands EPH - Q603R","Cost of Goods Sold",26/03/2014 00:00:00,"30239983",78.97,"3663"
"Bracknell Forest Council","http://opendatacommunities.org/id/unitary-authority/bracknell-forest","Bracknell Forest Council","00MA","Business Support","Premises Development","Easthampstead Park Centre - Catering","Cost of Goods Sold",26/03/2014 00:00:00,"30239983",236.89,"3663"
"Bracknell Forest Council","http://opendatacommunities.org/id/unitary-authority/bracknell-forest","Bracknell Forest Council","00MA","Business Support","Premises Development","Easthampstead Park Centre - Catering","Cost of Goods Sold",26/03/2014 00:00:00,"30239983",56.03,"3663"
"Bracknell Forest Council","http://opendatacommunities.org/id/unitary-authority/bracknell-forest","Bracknell Forest Council","00MA","Business Support","Premises Development","Easthampstead Park Centre - Catering","Cost of Goods Sold",27/03/2014 00:00:00,"30239983",117.06,"3663"
"Bracknell Forest Council","http://opendatacommunities.org/id/unitary-authority/bracknell-forest","Bracknell Forest Council","00MA","Business Support","Premises Development","Easthampstead Park Centre - Catering","Cost of Goods Sold",27/03/2014 00:00:00,"30239983",19.04,"3663"
"Bracknell Forest Council","http://opendatacommunities.org/id/unitary-authority/bracknell-forest","Bracknell Forest Council","00MA","Business Support","Premises Development","Easthampstead Park Centre - Catering","Cost of Goods Sold",28/03/2014 00:00:00,"30239983",213.17,"3663"
"Bracknell Forest Council","http://opendatacommunities.org/id/unitary-authority/bracknell-forest","Bracknell Forest Council","00MA","Recreation, Sports and Leisure","Indoor Sports & Recreation Facilities","Coral Reef - Catering & Bar","Cost of Goods Sold",31/03/2014 00:00:00,"30239983",584.22,"3663"
"Bracknell Forest Council","http://opendatacommunities.org/id/unitary-authority/bracknell-forest","Bracknell Forest Council","00MA","Business Support","Premises Development","Easthampstead Park Centre - Catering","Cost of Goods Sold",31/03/2014 00:00:00,"30239983",301.29,"3663"
"Bracknell Forest Council","http://opendatacommunities.org/id/unitary-authority/bracknell-forest","Bracknell Forest Council","00MA","Business Support","Premises Development","Easthampstead Park Centre - Catering","Cost of Goods Sold",31/03/2014 00:00:00,"30239983",12.06,"3663"
"Bracknell Forest Council","http://opendatacommunities.org/id/unitary-authority/bracknell-forest","Bracknell Forest Council","00MA","Recreation, Sports and Leisure","Indoor Sports & Recreation Facilities","Leisure Centre - Catering General","Cost of Goods Sold",17/03/2014 00:00:00,"30239983",234.84,"3663"
"Bracknell Forest Council","http://opendatacommunities.org/id/unitary-authority/bracknell-forest","Bracknell Forest Council","00MA","Recreation, Sports and Leisure","Golf Courses","Leisure DSO - Downshire Catering","Cost of Goods Sold",25/03/2014 00:00:00,"30239983",647.86,"3663"
"Bracknell Forest Council","http://opendatacommunities.org/id/unitary-authority/bracknell-forest","Bracknell Forest Council","00MA","Recreation, Sports and Leisure","Golf Courses","Leisure DSO - Downshire Catering","Cost of Goods Sold",25/03/2014 00:00:00,"30239983",48.49,"3663"
"Bracknell Forest Council","http://opendatacommunities.org/id/unitary-authority/bracknell-forest","Bracknell Forest Council","00MA","Recreation, Sports and Leisure","Golf Courses","Leisure DSO - Downshire Catering","Cost of Goods Sold",01/04/2014 00:00:00,"30240713",385.49,"3663"
"Bracknell Forest Council","http://opendatacommunities.org/id/unitary-authority/bracknell-forest","Bracknell Forest Council","00MA","Recreation, Sports and Leisure","Golf Courses","Leisure DSO - Downshire Catering","Cost of Goods Sold",01/04/2014 00:00:00,"30240713",75.14,"3663"
"Bracknell Forest Council","http://opendatacommunities.org/id/unitary-authority/bracknell-forest","Bracknell Forest Council","00MA","Recreation, Sports and Leisure","Golf Courses","Leisure DSO - Downshire Catering","Cost of Goods Sold",08/04/2014 00:00:00,"30240713",642.08,"3663"
"Bracknell Forest Council","http://opendatacommunities.org/id/unitary-authority/bracknell-forest","Bracknell Forest Council","00MA","Recreation, Sports and Leisure","Golf Courses","Leisure DSO - Downshire Catering","Cost of Goods Sold",08/04/2014 00:00:00,"30240713",80.05,"3663"
"Bracknell Forest Council","http://opendatacommunities.org/id/unitary-authority/bracknell-forest","Bracknell Forest Council","00MA","Business Support","Premises Development","Easthampstead Park Centre - Catering","Cost of Goods Sold",02/04/2014 00:00:00,"30240713",176.99,"3663"
"Bracknell Forest Council","http://opendatacommunities.org/id/unitary-authority/bracknell-forest","Bracknell Forest Council","00MA","Business Support","Premises Development","Easthampstead Park Centre - Catering","Cost of Goods Sold",04/04/2014 00:00:00,"30240713",434.75,"3663"
"Bracknell Forest Council","http://opendatacommunities.org/id/unitary-authority/bracknell-forest","Bracknell Forest Council","00MA","Business Support","Premises Development","Easthampstead Park Centre - Catering","Cost of Goods Sold",04/04/2014 00:00:00,"30240713",12.06,"3663"
"Bracknell Forest Council","http://opendatacommunities.org/id/unitary-authority/bracknell-forest","Bracknell Forest Council","00MA","Business Support","Premises Development","Easthampstead Park Centre - Catering","Cost of Goods Sold",07/04/2014 00:00:00,"30240713",29.69,"3663"
"Bracknell Forest Council","http://opendatacommunities.org/id/unitary-authority/bracknell-forest","Bracknell Forest Council","00MA","Business Support","Premises Development","Easthampstead Park Centre - Catering","Cost of Goods Sold",07/04/2014 00:00:00,"30240713",45.82,"3663"
"Bracknell Forest Council","http://opendatacommunities.org/id/unitary-authority/bracknell-forest","Bracknell Forest Council","00MA","Business Support","Premises Development","Easthampstead Park Centre - Catering","Cost of Goods Sold",08/04/2014 00:00:00,"30240713",246.04,"3663"
"Bracknell Forest Council","http://opendatacommunities.org/id/unitary-authority/bracknell-forest","Bracknell Forest Council","00MA","Business Support","Premises Development","Easthampstead Park Centre - Catering","Cost of Goods Sold",08/04/2014 00:00:00,"30240713",10.97,"3663"
"Bracknell Forest Council","http://opendatacommunities.org/id/unitary-authority/bracknell-forest","Bracknell Forest Council","00MA","Older People (Aged 65 or Over)","Residential Care Home Placements","Heathlands EPH - Q603R","Cost of Goods Sold",02/04/2014 00:00:00,"30240713",534.47,"3663"
"Bracknell Forest Council","http://opendatacommunities.org/id/unitary-authority/bracknell-forest","Bracknell Forest Council","00MA","Older People (Aged 65 or Over)","Residential Care Home Placements","Heathlands EPH - Q603R","Cost of Goods Sold",02/04/2014 00:00:00,"30240713",78.32,"3663"
"Bracknell Forest Council","http://opendatacommunities.org/id/unitary-authority/bracknell-forest","Bracknell Forest Council","00MA","Older People (Aged 65 or Over)","Residential Care Home Placements","Bridgewell Unit - Q274E","Cost of Goods Sold",02/04/2014 00:00:00,"30240713",131.33,"3663"
"Bracknell Forest Council","http://opendatacommunities.org/id/unitary-authority/bracknell-forest","Bracknell Forest Council","00MA","Older People (Aged 65 or Over)","Residential Care Home Placements","Bridgewell Unit - Q274E","Cost of Goods Sold",02/04/2014 00:00:00,"30240713",2.34,"3663"
"Bracknell Forest Council","http://opendatacommunities.org/id/unitary-authority/bracknell-forest","Bracknell Forest Council","00MA","Mental Health Needs (Under 65)","Residential Care Home Placements","Residential Placements-Mental Illness - Q151A","Contracted Services",11/03/2014 00:00:00,"30238130",2346,"2 CARE"
"Bracknell Forest Council","http://opendatacommunities.org/id/unitary-authority/bracknell-forest","Bracknell Forest Council","00MA","Mental Health Needs (Under 65)","Residential Care Home Placements","Residential Placements-Mental Illness - Q151A","Contracted Services",11/03/2014 00:00:00,"30238130",2346.08,"2 CARE"
"Bracknell Forest Council","http://opendatacommunities.org/id/unitary-authority/bracknell-forest","Bracknell Forest Council","00MA","Mental Health Needs (Under 65)","Residential Care Home Placements","Residential Placements-Mental Illness - Q151A","Contracted Services",09/04/2014 00:00:00,"30240736",2376.25,"2 CARE"
"Bracknell Forest Council","http://opendatacommunities.org/id/unitary-authority/bracknell-forest","Bracknell Forest Council","00MA","Mental Health Needs (Under 65)","Residential Care Home Placements","Residential Placements-Mental Illness - Q151A","Contracted Services",09/04/2014 00:00:00,"30240736",2376.18,"2 CARE"
"Bracknell Forest Council","http://opendatacommunities.org/id/unitary-authority/bracknell-forest","Bracknell Forest Council","00MA","","","Disabled Facilities Grant","Grants Paid",20/03/2014 00:00:00,"6543461",1245.7,"A & B BUILDERS"
"Bracknell Forest Council","http://opendatacommunities.org/id/unitary-authority/bracknell-forest","Bracknell Forest Council","00MA","","","Disabled Facilities Grant","Grants Paid",20/03/2014 00:00:00,"6543462",4993.86,"A & B BUILDERS"
"Bracknell Forest Council","http://opendatacommunities.org/id/unitary-authority/bracknell-forest","Bracknell Forest Council","00MA","Culture and Heritage","Heritage Museums & Galleries","The Look Out","Equipment - Purchase",17/03/2014 00:00:00,"6544205",2525,"A & E LEISURE LTD"
"Bracknell Forest Council","http://opendatacommunities.org/id/unitary-authority/bracknell-forest","Bracknell Forest Council","00MA","Recreation, Sports and Leisure","Indoor Sports & Recreation Facilities","Leisure DSO - Coral Reef","Window Cleaning",31/03/2014 00:00:00,"6545143",585,"A & S CLEANING SERVICES"
"Bracknell Forest Council","http://opendatacommunities.org/id/unitary-authority/bracknell-forest","Bracknell Forest Council","00MA","Recreation, Sports and Leisure","Indoor Sports & Recreation Facilities","Leisure DSO - Leisure Centre","Window Cleaning",31/03/2014 00:00:00,"6545181",600,"A & S CLEANING SERVICES"
"Bracknell Forest Council","http://opendatacommunities.org/id/unitary-authority/bracknell-forest","Bracknell Forest Council","00MA","Business Support","Premises Development","Easthampstead Park Conference Centre","R&M - Reactive",28/01/2014 00:00:00,"6541259",959.86,"A C SERVICES (SOUTHERN) LTD"
"Bracknell Forest Council","http://opendatacommunities.org/id/unitary-authority/bracknell-forest","Bracknell Forest Council","00MA","Open Spaces","Community Parks & Open Spaces","Play Areas","R&M - Planned",19/02/2014 00:00:00,"6541162",1397,"ABA (CONSTRUCTION) LTD T/A ARD PLAYGROUNDS"
"Bracknell Forest Council","http://opendatacommunities.org/id/unitary-authority/bracknell-forest","Bracknell Forest Council","00MA","Open Spaces","Community Parks & Open Spaces","Play Areas","R&M - Planned",12/03/2014 00:00:00,"6543333",1191.6,"ABA (CONSTRUCTION) LTD T/A ARD PLAYGROUNDS"
"Bracknell Forest Council","http://opendatacommunities.org/id/unitary-authority/bracknell-forest","Bracknell Forest Council","00MA","Open Spaces","Community Parks & Open Spaces","Play Areas","R&M - Planned",12/03/2014 00:00:00,"6543334",1390,"ABA (CONSTRUCTION) LTD T/A ARD PLAYGROUNDS"
"Bracknell Forest Council","http://opendatacommunities.org/id/unitary-authority/bracknell-forest","Bracknell Forest Council","00MA","Culture and Heritage","Heritage Museums & Galleries","The Look Out","R&M - Service Contracts",25/03/2014 00:00:00,"6544350",2315.6,"ABA (CONSTRUCTION) LTD T/A ARD PLAYGROUNDS"
"Bracknell Forest Council","http://opendatacommunities.org/id/unitary-authority/bracknell-forest","Bracknell Forest Council","00MA","Open Spaces","Community Parks & Open Spaces","Play Areas","R&M - Planned",31/03/2014 00:00:00,"6544569",525,"ABA (CONSTRUCTION) LTD T/A ARD PLAYGROUNDS"
"Bracknell Forest Council","http://opendatacommunities.org/id/unitary-authority/bracknell-forest","Bracknell Forest Council","00MA","Culture and Heritage","Heritage Museums & Galleries","The Look Out","Equipment - R&M",31/03/2014 00:00:00,"6544609",558.74,"ABA (CONSTRUCTION) LTD T/A ARD PLAYGROUNDS"
"Bracknell Forest Council","http://opendatacommunities.org/id/unitary-authority/bracknell-forest","Bracknell Forest Council","00MA","Supporting People","Supporting People","Supporting People Payments","Transfer Payments - Supporting People",01/04/2014 00:00:00,"6544457",624.2,"ABILITY HOUSING ASSOCIATION"
"Bracknell Forest Council","http://opendatacommunities.org/id/unitary-authority/bracknell-forest","Bracknell Forest Council","00MA","Support Services & Management Costs","Information and Communication Technology","IT -Q311S","Computer Maintenance",24/02/2014 00:00:00,"6542333",1149,"ABRITAS LTD"
"Bracknell Forest Council","http://opendatacommunities.org/id/unitary-authority/bracknell-forest","Bracknell Forest Council","00MA","Central Support Services - COF","Finance","Procurement","Subscriptions",05/03/2014 00:00:00,"6542586",700,"ACHILLES INFORMATION LIMITED"
"Bracknell Forest Council","http://opendatacommunities.org/id/unitary-authority/bracknell-forest","Bracknell Forest Council","00MA","Central Support Services - COF","Finance","Procurement","Training Costs",21/03/2014 00:00:00,"6544950",2000,"ACHILLES INFORMATION LIMITED"
"Bracknell Forest Council","http://opendatacommunities.org/id/unitary-authority/bracknell-forest","Bracknell Forest Council","00MA","Family Support Services","Other family support services","C&F Section 17 Over 11's Team","Voluntary Sector Service Providers",28/02/2014 00:00:00,"6542434",991.91,"ACTION FOR CHILDREN SERVICES LTD"
"Bracknell Forest Council","http://opendatacommunities.org/id/unitary-authority/bracknell-forest","Bracknell Forest Council","00MA","Commissioning and Social Work","Commissioning and Social Work","Children's Participation","Voluntary Sector Service Providers",31/03/2014 00:00:00,"6545189",4200,"ACTION FOR CHILDREN SERVICES LTD"
"Bracknell Forest Council","http://opendatacommunities.org/id/unitary-authority/bracknell-forest","Bracknell Forest Council","00MA","Commissioning and Social Work","Commissioning and Social Work","Children's Participation","Voluntary Sector Service Providers",31/03/2014 00:00:00,"6545417",1094.1,"ACTION FOR CHILDREN SERVICES LTD"
"Bracknell Forest Council","http://opendatacommunities.org/id/unitary-authority/bracknell-forest","Bracknell Forest Council","00MA","Management and Support Services - CYPL","Unallocated Schools Budget Related Expenditure","Supporting SEN - Post 16","Voluntary Sector Service Providers",21/03/2014 00:00:00,"6544999",21157,"ACTIVATE LEARNING"
"Bracknell Forest Council","http://opendatacommunities.org/id/unitary-authority/bracknell-forest","Bracknell Forest Council","00MA","Management and Support Services - CYPL","Unallocated Schools Budget Related Expenditure","Supporting SEN - Post 16","Voluntary Sector Service Providers",20/03/2014 00:00:00,"6545000",21157,"ACTIVATE LEARNING"
"Bracknell Forest Council","http://opendatacommunities.org/id/unitary-authority/bracknell-forest","Bracknell Forest Council","00MA","Recreation, Sports and Leisure","Golf Courses","Leisure DSO - Downshire Golf Shop","Cost of Goods Sold",07/01/2014 00:00:00,"6545566",918.68,"ACUSHNET EUROPE LTD"
"Bracknell Forest Council","http://opendatacommunities.org/id/unitary-authority/bracknell-forest","Bracknell Forest Council","00MA","Recreation, Sports and Leisure","Golf Courses","Leisure DSO - Downshire Golf Shop","Cost of Goods Sold",07/01/2014 00:00:00,"6545572",607.93,"ACUSHNET EUROPE LTD"
"Bracknell Forest Council","http://opendatacommunities.org/id/unitary-authority/bracknell-forest","Bracknell Forest Council","00MA","Recreation, Sports and Leisure","Golf Courses","Leisure DSO - Downshire Golf Shop","Cost of Goods Sold",04/02/2014 00:00:00,"6545576",901.71,"ACUSHNET EUROPE LTD"
"Bracknell Forest Council","http://opendatacommunities.org/id/unitary-authority/bracknell-forest","Bracknell Forest Council","00MA","Recreation, Sports and Leisure","Golf Courses","Leisure DSO - Downshire Golf Shop","Cost of Goods Sold",09/01/2014 00:00:00,"6545584",783.01,"ACUSHNET EUROPE LTD"
"Bracknell Forest Council","http://opendatacommunities.org/id/unitary-authority/bracknell-forest","Bracknell Forest Council","00MA","","","Disabled Facilities Grant","Grants Paid",11/03/2014 00:00:00,"6542644",2560.83,"ADAPTABLE BUILDING SERVICES"
"Bracknell Forest Council","http://opendatacommunities.org/id/unitary-authority/bracknell-forest","Bracknell Forest Council","00MA","","","Disabled Facilities Grant","Grants Paid",31/03/2014 00:00:00,"6544380",4580,"ADAPTABLE BUILDING SERVICES"
"Bracknell Forest Council","http://opendatacommunities.org/id/unitary-authority/bracknell-forest","Bracknell Forest Council","00MA","Culture and Heritage","Heritage Museums & Galleries","The Look Out","Equipment - Purchase",31/03/2014 00:00:00,"6545831",30345,"ADMIN SUPPORT AND IT SOLUTIONS"
"Bracknell Forest Council","http://opendatacommunities.org/id/unitary-authority/bracknell-forest","Bracknell Forest Council","00MA","Other Children's & Families Services","Adoption Services","QP - Adoption Support","Subscriptions",01/03/2014 00:00:00,"6545047",1150,"ADOPTION UK"
"Bracknell Forest Council","http://opendatacommunities.org/id/unitary-authority/bracknell-forest","Bracknell Forest Council","00MA","Children Looked After","Residential care","Children's Home Placements","Contracted Services",12/03/2014 00:00:00,"6544418",15500,"ADVANCED CHILDCARE"
"Bracknell Forest Council","http://opendatacommunities.org/id/unitary-authority/bracknell-forest","Bracknell Forest Council","00MA","Children Looked After","Residential care","Children's Home Placements","Contracted Services",12/03/2014 00:00:00,"6544420",15500,"ADVANCED CHILDCARE"
"Bracknell Forest Council","http://opendatacommunities.org/id/unitary-authority/bracknell-forest","Bracknell Forest Council","00MA","Management and Support Services - CYPL","Unallocated Schools Budget Related Expenditure","Pupil Premium Non Maintained Schools","Contracted Services",02/04/2014 00:00:00,"6544626",900,"ADVANCED CHILDCARE"
"Bracknell Forest Council","http://opendatacommunities.org/id/unitary-authority/bracknell-forest","Bracknell Forest Council","00MA","Services to Young People","Other Services to Young People","NEET Reduction Funding","Contracted Services",14/03/2014 00:00:00,"6544318",37265.92,"ADVIZA PARTNERSHIP"
"Bracknell Forest Council","http://opendatacommunities.org/id/unitary-authority/bracknell-forest","Bracknell Forest Council","00MA","Children Looked After","Education of LAC","Educational Attainment for Looked After Children","Contracted Services",14/03/2014 00:00:00,"6544318",1916,"ADVIZA PARTNERSHIP"
"Bracknell Forest Council","http://opendatacommunities.org/id/unitary-authority/bracknell-forest","Bracknell Forest Council","00MA","Learning Disability (under 65)","Residential Care Home Placements","Residential Placements-Lrng Disab - Q121A","Contracted Services",11/03/2014 00:00:00,"30238130",4760,"AFFINITY TRUST"
"Bracknell Forest Council","http://opendatacommunities.org/id/unitary-authority/bracknell-forest","Bracknell Forest Council","00MA","Learning Disability (under 65)","Residential Care Home Placements","Residential Placements-Lrng Disab - Q121A","Contracted Services",09/04/2014 00:00:00,"30240736",4760,"AFFINITY TRUST"
"Bracknell Forest Council","http://opendatacommunities.org/id/unitary-authority/bracknell-forest","Bracknell Forest Council","00MA","Older People (Aged 65 or Over)","Day Care","Day centre Placements-Elderly - Q215B","Contracted Services",06/03/2014 00:00:00,"30237893",92,"AGE CONCERN BRACKNELL FOREST"
"Bracknell Forest Council","http://opendatacommunities.org/id/unitary-authority/bracknell-forest","Bracknell Forest Council","00MA","Older People (Aged 65 or Over)","Day Care","Day centre Placements-Elderly - Q215B","Contracted Services",06/03/2014 00:00:00,"30237893",184,"AGE CONCERN BRACKNELL FOREST"
"Bracknell Forest Council","http://opendatacommunities.org/id/unitary-authority/bracknell-forest","Bracknell Forest Council","00MA","Older People (Aged 65 or Over)","Day Care","Day centre Placements-Elderly - Q215B","Contracted Services",06/03/2014 00:00:00,"30237893",276,"AGE CONCERN BRACKNELL FOREST"
"Bracknell Forest Council","http://opendatacommunities.org/id/unitary-authority/bracknell-forest","Bracknell Forest Council","00MA","Older People (Aged 65 or Over)","Day Care","Day centre Placements-Elderly - Q215B","Contracted Services",06/03/2014 00:00:00,"30237893",276,"AGE CONCERN BRACKNELL FOREST"
"Bracknell Forest Council","http://opendatacommunities.org/id/unitary-authority/bracknell-forest","Bracknell Forest Council","00MA","Older People (Aged 65 or Over)","Day Care","Day centre Placements-Elderly - Q215B","Contracted Services",06/03/2014 00:00:00,"30237893",368,"AGE CONCERN BRACKNELL FOREST"
"Bracknell Forest Council","http://opendatacommunities.org/id/unitary-authority/bracknell-forest","Bracknell Forest Council","00MA","Older People (Aged 65 or Over)","Day Care","Day centre Placements-Elderly - Q215B","Contracted Services",06/03/2014 00:00:00,"30237893",264.5,"AGE CONCERN BRACKNELL FOREST"
"Bracknell Forest Council","http://opendatacommunities.org/id/unitary-authority/bracknell-forest","Bracknell Forest Council","00MA","Older People (Aged 65 or Over)","Day Care","Day centre Placements-Elderly - Q215B","Contracted Services",06/03/2014 00:00:00,"30237893",184,"AGE CONCERN BRACKNELL FOREST"
"Bracknell Forest Council","http://opendatacommunities.org/id/unitary-authority/bracknell-forest","Bracknell Forest Council","00MA","Older People (Aged 65 or Over)","Day Care","Day Centre Placements - Elderly EMI - Q115B","Contracted Services",06/03/2014 00:00:00,"30237893",276,"AGE CONCERN BRACKNELL FOREST"
"Bracknell Forest Council","http://opendatacommunities.org/id/unitary-authority/bracknell-forest","Bracknell Forest Council","00MA","Older People (Aged 65 or Over)","Day Care","Day centre Placements-Elderly - Q215B","Contracted Services",06/03/2014 00:00:00,"30237893",92,"AGE CONCERN BRACKNELL FOREST"
"Bracknell Forest Council","http://opendatacommunities.org/id/unitary-authority/bracknell-forest","Bracknell Forest Council","00MA","Older People (Aged 65 or Over)","Home Care","Home Care-Elderly  - Q214B","Contracted Services",20/03/2014 00:00:00,"30238804",1808.8,"BRIGHT YELLOW SOLUTIONS LTD"
"Bracknell Forest Council","http://opendatacommunities.org/id/unitary-authority/bracknell-forest","Bracknell Forest Council","00MA","Older People (Aged 65 or Over)","Home Care","Home Care-Elderly  - Q214B","Contracted Services",20/03/2014 00:00:00,"30238804",516.8,"BRIGHT YELLOW SOLUTIONS LTD"
"Bracknell Forest Council","http://opendatacommunities.org/id/unitary-authority/bracknell-forest","Bracknell Forest Council","00MA","Older People (Aged 65 or Over)","Home Care","Home Care-Elderly  - Q214B","Contracted Services",20/03/2014 00:00:00,"30238804",912,"BRIGHT YELLOW SOLUTIONS LTD"
"Bracknell Forest Council","http://opendatacommunities.org/id/unitary-authority/bracknell-forest","Bracknell Forest Council","00MA","Physical Disability/Sensory Impairment","Homecare","Home Care-Phys Disab - Q214A","Contracted Services",20/03/2014 00:00:00,"30238804",733.4,"BRIGHT YELLOW SOLUTIONS LTD"
"Bracknell Forest Council","http://opendatacommunities.org/id/unitary-authority/bracknell-forest","Bracknell Forest Council","00MA","Older People (Aged 65 or Over)","Home Care","Homecare PD 65 and Over - Q214B","Contracted Services",20/03/2014 00:00:00,"30238804",3803.8,"BRIGHT YELLOW SOLUTIONS LTD"
"Bracknell Forest Council","http://opendatacommunities.org/id/unitary-authority/bracknell-forest","Bracknell Forest Council","00MA","Mental Health Needs (Under 65)","Homecare","Home Care Mental Illness - Q154A","Contracted Services",20/03/2014 00:00:00,"30238804",117.8,"BRIGHT YELLOW SOLUTIONS LTD"
"Bracknell Forest Council","http://opendatacommunities.org/id/unitary-authority/bracknell-forest","Bracknell Forest Council","00MA","Older People (Aged 65 or Over)","Home Care","Homecare EMI - Q114B","Contracted Services",01/04/2014 00:00:00,"30239783",30.39,"BRIGHT YELLOW SOLUTIONS LTD"
"Bracknell Forest Council","http://opendatacommunities.org/id/unitary-authority/bracknell-forest","Bracknell Forest Council","00MA","Older People (Aged 65 or Over)","Home Care","Home Care-Elderly  - Q214B","Contracted Services",01/04/2014 00:00:00,"30239783",7.6,"BRIGHT YELLOW SOLUTIONS LTD"
"Bracknell Forest Council","http://opendatacommunities.org/id/unitary-authority/bracknell-forest","Bracknell Forest Council","00MA","Physical Disability/Sensory Impairment","Homecare","Home Care-Phys Disab - Q214A","Contracted Services",01/04/2014 00:00:00,"30239783",7.6,"BRIGHT YELLOW SOLUTIONS LTD"
"Bracknell Forest Council","http://opendatacommunities.org/id/unitary-authority/bracknell-forest","Bracknell Forest Council","00MA","Older People (Aged 65 or Over)","Home Care","Home Care-Elderly  - Q214B","Contracted Services",01/04/2014 00:00:00,"30239783",11.4,"BRIGHT YELLOW SOLUTIONS LTD"
"Bracknell Forest Council","http://opendatacommunities.org/id/unitary-authority/bracknell-forest","Bracknell Forest Council","00MA","Management and Support Services - CSC","Others","Managing Change (Q.P.)","Subscriptions",21/02/2014 00:00:00,"6542319",1547.37,"BRITISH ASSC FOR ADOPTION & FOSTERING"
"Bracknell Forest Council","http://opendatacommunities.org/id/unitary-authority/bracknell-forest","Bracknell Forest Council","00MA","Commissioning and Social Work","Commissioning and Social Work","Family Placement","Professional Subscriptions & Legal Practising Cert",07/03/2014 00:00:00,"6544388",552.96,"BRITISH ASSC FOR ADOPTION & FOSTERING"
"Bracknell Forest Council","http://opendatacommunities.org/id/unitary-authority/bracknell-forest","Bracknell Forest Council","00MA","Central Support Services - COF","Information Technology","Telephone Holding Account","Telephones - Rental & Call Charges",10/03/2014 00:00:00,"6543365",23277.6,"BRITISH TELECOM"
"Bracknell Forest Council","http://opendatacommunities.org/id/unitary-authority/bracknell-forest","Bracknell Forest Council","00MA","Central Support Services - COF","Information Technology","Communications","Equipment - Rental",29/03/2014 00:00:00,"6544663",12446.5,"BRITISH TELECOM"
"Bracknell Forest Council","http://opendatacommunities.org/id/unitary-authority/bracknell-forest","Bracknell Forest Council","00MA","Older People (Aged 65 or Over)","Day Care","Day centre Placements-Elderly - Q215B","Contracted Services",06/03/2014 00:00:00,"30237893",184,"AGE CONCERN BRACKNELL FOREST"
"Bracknell Forest Council","http://opendatacommunities.org/id/unitary-authority/bracknell-forest","Bracknell Forest Council","00MA","Mental Health Needs (Under 65)","Day Care","Day Centre Placements - Elderly EMI Under 65 - Q115A","Contracted Services",06/03/2014 00:00:00,"30237893",92,"AGE CONCERN BRACKNELL FOREST"
"Bracknell Forest Council","http://opendatacommunities.org/id/unitary-authority/bracknell-forest","Bracknell Forest Council","00MA","Older People (Aged 65 or Over)","Day Care","Day centre Placements-Elderly - Q215B","Contracted Services",18/03/2014 00:00:00,"30238585",184,"AGE CONCERN BRACKNELL FOREST"
"Bracknell Forest Council","http://opendatacommunities.org/id/unitary-authority/bracknell-forest","Bracknell Forest Council","00MA","Recreation, Sports and Leisure","Indoor Sports & Recreation Facilities","Leisure DSO - Leisure Centre Maintenance","Swimming Pool Chemicals",27/02/2014 00:00:00,"6543421",2527.2,"AIR PRODUCTS PLC"
"Bracknell Forest Council","http://opendatacommunities.org/id/unitary-authority/bracknell-forest","Bracknell Forest Council","00MA","Children Looked After","Fostering services","BFBC Fostering Allowances","Client Training & Support",17/02/2014 00:00:00,"6542496",2200,"AKAMAS CARE AND EDUCATION"
"Bracknell Forest Council","http://opendatacommunities.org/id/unitary-authority/bracknell-forest","Bracknell Forest Council","00MA","Mental Health Needs (Under 65)","Residential Care Home Placements","Residential Placements-Mental Illness - Q151A","Contracted Services",11/03/2014 00:00:00,"30238130",1253.56,"ALDWICK RESIDENTIAL CARE HOME"
"Bracknell Forest Council","http://opendatacommunities.org/id/unitary-authority/bracknell-forest","Bracknell Forest Council","00MA","Mental Health Needs (Under 65)","Residential Care Home Placements","Residential Placements-Mental Illness - Q151A","Contracted Services",09/04/2014 00:00:00,"30240736",1269.67,"ALDWICK RESIDENTIAL CARE HOME"
"Bracknell Forest Council","http://opendatacommunities.org/id/unitary-authority/bracknell-forest","Bracknell Forest Council","00MA","Children's and Young People's Safety","Local safeguarding children board","Safeguarding Childrens Board","Consultants Fees",31/03/2014 00:00:00,"6545115",5000,"ALEX WALTERS CONSULTANCY LTD"
"Bracknell Forest Council","http://opendatacommunities.org/id/unitary-authority/bracknell-forest","Bracknell Forest Council","00MA","Traffic Management & Road Safety","Traffic Management","Traffic Management","Contracted Services",14/03/2014 00:00:00,"6544193",655.76,"ALEXANDER ADVERTISING(INT)LTD"
"Bracknell Forest Council","http://opendatacommunities.org/id/unitary-authority/bracknell-forest","Bracknell Forest Council","00MA","","","Safe Routes to School","Construction - Other Direct Expenses",14/03/2014 00:00:00,"6544194",1309.89,"ALEXANDER ADVERTISING(INT)LTD"
"Bracknell Forest Council","http://opendatacommunities.org/id/unitary-authority/bracknell-forest","Bracknell Forest Council","00MA","Recreation, Sports and Leisure","Indoor Sports & Recreation Facilities","Coral Reef - Catering & Bar","Catering Consumables",10/03/2014 00:00:00,"6543609",506.27,"ALLIANCE DISPOSABLES LTD"
"Bracknell Forest Council","http://opendatacommunities.org/id/unitary-authority/bracknell-forest","Bracknell Forest Council","00MA","Business Support","Premises Development","Easthampstead Park Centre - Catering","Cleaning materials",11/03/2014 00:00:00,"30239321",722.94,"ALLIANCE DISPOSABLES LTD"
"Bracknell Forest Council","http://opendatacommunities.org/id/unitary-authority/bracknell-forest","Bracknell Forest Council","00MA","Business Support","Premises Development","Easthampstead Park Centre - Catering","Cleaning materials",28/03/2014 00:00:00,"30240713",165.56,"ALLIANCE DISPOSABLES LTD"
"Bracknell Forest Council","http://opendatacommunities.org/id/unitary-authority/bracknell-forest","Bracknell Forest Council","00MA","Central Support Services - COF","Information Technology","Communications","Computer Software",29/03/2014 00:00:00,"6544663",9500,"BRITISH TELECOM"
"Bracknell Forest Council","http://opendatacommunities.org/id/unitary-authority/bracknell-forest","Bracknell Forest Council","00MA","Services to Young People","Other Services to Young People","Youth Parliament","Youth & Community Activities",13/03/2014 00:00:00,"6543619",640,"BRITISH YOUTH COUNCIL"
"Bracknell Forest Council","http://opendatacommunities.org/id/unitary-authority/bracknell-forest","Bracknell Forest Council","00MA","Recreation, Sports and Leisure","Indoor Sports & Recreation Facilities","Leisure Centre - Catering General","Cost of Goods Sold",05/03/2014 00:00:00,"30238319",189.69,"BRITVIC SOFT DRINKS LTD"
"Bracknell Forest Council","http://opendatacommunities.org/id/unitary-authority/bracknell-forest","Bracknell Forest Council","00MA","Recreation, Sports and Leisure","Golf Courses","Leisure DSO - Downshire Catering","Cost of Goods Sold",05/03/2014 00:00:00,"30238319",265.36,"BRITVIC SOFT DRINKS LTD"
"Bracknell Forest Council","http://opendatacommunities.org/id/unitary-authority/bracknell-forest","Bracknell Forest Council","00MA","Recreation, Sports and Leisure","Indoor Sports & Recreation Facilities","Leisure Centre - Catering General","Cost of Goods Sold",05/03/2014 00:00:00,"30238319",312.26,"BRITVIC SOFT DRINKS LTD"
"Bracknell Forest Council","http://opendatacommunities.org/id/unitary-authority/bracknell-forest","Bracknell Forest Council","00MA","Recreation, Sports and Leisure","Golf Courses","Leisure DSO - Downshire Catering","Cost of Goods Sold",12/03/2014 00:00:00,"30238708",345.01,"BRITVIC SOFT DRINKS LTD"
"Bracknell Forest Council","http://opendatacommunities.org/id/unitary-authority/bracknell-forest","Bracknell Forest Council","00MA","Recreation, Sports and Leisure","Indoor Sports & Recreation Facilities","Leisure Centre - Catering General","Cost of Goods Sold",12/03/2014 00:00:00,"30239321",333.73,"BRITVIC SOFT DRINKS LTD"
"Bracknell Forest Council","http://opendatacommunities.org/id/unitary-authority/bracknell-forest","Bracknell Forest Council","00MA","Recreation, Sports and Leisure","Indoor Sports & Recreation Facilities","Leisure Centre - Catering General","Cost of Goods Sold",19/03/2014 00:00:00,"30239321",297.75,"BRITVIC SOFT DRINKS LTD"
"Bracknell Forest Council","http://opendatacommunities.org/id/unitary-authority/bracknell-forest","Bracknell Forest Council","00MA","Recreation, Sports and Leisure","Indoor Sports & Recreation Facilities","Coral Reef - Catering & Bar","Cost of Goods Sold",17/03/2014 00:00:00,"30239321",486.44,"BRITVIC SOFT DRINKS LTD"
"Bracknell Forest Council","http://opendatacommunities.org/id/unitary-authority/bracknell-forest","Bracknell Forest Council","00MA","Recreation, Sports and Leisure","Indoor Sports & Recreation Facilities","Coral Reef - Catering & Bar","Cost of Goods Sold",24/03/2014 00:00:00,"30239321",593.47,"BRITVIC SOFT DRINKS LTD"
"Bracknell Forest Council","http://opendatacommunities.org/id/unitary-authority/bracknell-forest","Bracknell Forest Council","00MA","Recreation, Sports and Leisure","Indoor Sports & Recreation Facilities","Leisure Centre - Catering General","Cost of Goods Sold",26/03/2014 00:00:00,"30239983",129.89,"BRITVIC SOFT DRINKS LTD"
"Bracknell Forest Council","http://opendatacommunities.org/id/unitary-authority/bracknell-forest","Bracknell Forest Council","00MA","Recreation, Sports and Leisure","Golf Courses","Leisure DSO - Downshire Catering","Cost of Goods Sold",26/03/2014 00:00:00,"30239983",227.28,"BRITVIC SOFT DRINKS LTD"
"Bracknell Forest Council","http://opendatacommunities.org/id/unitary-authority/bracknell-forest","Bracknell Forest Council","00MA","Recreation, Sports and Leisure","Indoor Sports & Recreation Facilities","Coral Reef - Catering & Bar","Cost of Goods Sold",31/03/2014 00:00:00,"30239983",575.76,"BRITVIC SOFT DRINKS LTD"
"Bracknell Forest Council","http://opendatacommunities.org/id/unitary-authority/bracknell-forest","Bracknell Forest Council","00MA","Business Support","Premises Development","Easthampstead Park Centre - Catering","Cleaning materials",31/03/2014 00:00:00,"30240713",31.54,"ALLIANCE DISPOSABLES LTD"
"Bracknell Forest Council","http://opendatacommunities.org/id/unitary-authority/bracknell-forest","Bracknell Forest Council","00MA","Vehicles &  Plant","Vehicles and Plant Summary Account","Vehicles and Plant","Petrol",28/02/2014 00:00:00,"6542011",5441.71,"ALLSTAR BUSINESS SOLUTIONS LTD"
"Bracknell Forest Council","http://opendatacommunities.org/id/unitary-authority/bracknell-forest","Bracknell Forest Council","00MA","Vehicles &  Plant","Vehicles and Plant Summary Account","Vehicles and Plant","Petrol",31/03/2014 00:00:00,"6545894",5657.94,"ALLSTAR BUSINESS SOLUTIONS LTD"
"Bracknell Forest Council","http://opendatacommunities.org/id/unitary-authority/bracknell-forest","Bracknell Forest Council","00MA","Services to Young People","Adult and Community Learning","Open Learning Centre - Brakenhale","Minor Improvement Schemes",18/02/2014 00:00:00,"6544776",934.8,"ALPHA FURNITURE"
"Bracknell Forest Council","http://opendatacommunities.org/id/unitary-authority/bracknell-forest","Bracknell Forest Council","00MA","","","Disabled Facilities Grant","Grants Paid",06/03/2014 00:00:00,"6542380",11249,"ALPHA PROPERTY SERVICES"
"Bracknell Forest Council","http://opendatacommunities.org/id/unitary-authority/bracknell-forest","Bracknell Forest Council","00MA","","","Disabled Facilities Grant","Grants Paid",31/03/2014 00:00:00,"6544439",9249,"ALPHA PROPERTY SERVICES"
"Bracknell Forest Council","http://opendatacommunities.org/id/unitary-authority/bracknell-forest","Bracknell Forest Council","00MA","Vehicles &  Plant","Vehicles and Plant Summary Account","Vehicles and Plant","Operating Lease Charge",01/03/2014 00:00:00,"6543246",534.99,"ALPHABET (GB) LTD"
"Bracknell Forest Council","http://opendatacommunities.org/id/unitary-authority/bracknell-forest","Bracknell Forest Council","00MA","Central Support Services - COF","Information Technology","Technical  Services","Equipment - R&M",25/03/2014 00:00:00,"6544762",6570,"ALTMAN INTEGRATED TECHNOLOGIES LTD"
"Bracknell Forest Council","http://opendatacommunities.org/id/unitary-authority/bracknell-forest","Bracknell Forest Council","00MA","","","Server Refresh","IT Consultants",25/03/2014 00:00:00,"6544762",1642.5,"ALTMAN INTEGRATED TECHNOLOGIES LTD"
"Bracknell Forest Council","http://opendatacommunities.org/id/unitary-authority/bracknell-forest","Bracknell Forest Council","00MA","Older People (Aged 65 or Over)","Nursing Home Placements","Nursing Home Placements-Elderly - Q211B","Contracted Services",11/03/2014 00:00:00,"30238130",-909.56,"AMBERBROOK MANAGEMENT LTD"
"Bracknell Forest Council","http://opendatacommunities.org/id/unitary-authority/bracknell-forest","Bracknell Forest Council","00MA","Older People (Aged 65 or Over)","Nursing Home Placements","Nursing EMI Placements - Elderly - Q110B","Contracted Services",11/03/2014 00:00:00,"30238130",2754.36,"AMBERBROOK MANAGEMENT LTD"
"Bracknell Forest Council","http://opendatacommunities.org/id/unitary-authority/bracknell-forest","Bracknell Forest Council","00MA","Older People (Aged 65 or Over)","Nursing Home Placements","Nursing EMI Placements - Elderly - Q110B","Contracted Services",11/03/2014 00:00:00,"30238130",2754.4,"AMBERBROOK MANAGEMENT LTD"
"Bracknell Forest Council","http://opendatacommunities.org/id/unitary-authority/bracknell-forest","Bracknell Forest Council","00MA","Older People (Aged 65 or Over)","Nursing Home Placements","Nursing Home Placements-Elderly - Q211B","Contracted Services",11/03/2014 00:00:00,"30238130",2461.44,"AMBERBROOK MANAGEMENT LTD"
"Bracknell Forest Council","http://opendatacommunities.org/id/unitary-authority/bracknell-forest","Bracknell Forest Council","00MA","Older People (Aged 65 or Over)","Nursing Home Placements","Nursing EMI Placements - Elderly - Q110B","Contracted Services",11/03/2014 00:00:00,"30238130",2461.44,"AMBERBROOK MANAGEMENT LTD"
"Bracknell Forest Council","http://opendatacommunities.org/id/unitary-authority/bracknell-forest","Bracknell Forest Council","00MA","Older People (Aged 65 or Over)","Residential Care Home Placements","Residential Placements-Elderly - Q210B","Contracted Services",11/03/2014 00:00:00,"30238130",2011.2,"AMBERBROOK MANAGEMENT LTD"
"Bracknell Forest Council","http://opendatacommunities.org/id/unitary-authority/bracknell-forest","Bracknell Forest Council","00MA","Physical Disability/Sensory Impairment","Nursing Home Placements","Nursing Home Placements-Physical Disabty - Q210A","Contracted Services",11/03/2014 00:00:00,"30238130",2754.4,"AMBERBROOK MANAGEMENT LTD"
"Bracknell Forest Council","http://opendatacommunities.org/id/unitary-authority/bracknell-forest","Bracknell Forest Council","00MA","Older People (Aged 65 or Over)","Nursing Home Placements","Nursing Home Placements-Elderly - Q211B","Contracted Services",11/03/2014 00:00:00,"30238130",2461.44,"AMBERBROOK MANAGEMENT LTD"
"Bracknell Forest Council","http://opendatacommunities.org/id/unitary-authority/bracknell-forest","Bracknell Forest Council","00MA","","","Wooden Hill Primary","Consultant Fees",24/02/2014 00:00:00,"6543240",885.42,"ATKINS LTD"
"Bracknell Forest Council","http://opendatacommunities.org/id/unitary-authority/bracknell-forest","Bracknell Forest Council","00MA","","","Cranbourne Primary","Consultant Fees",24/02/2014 00:00:00,"6543240",885.42,"ATKINS LTD"
"Bracknell Forest Council","http://opendatacommunities.org/id/unitary-authority/bracknell-forest","Bracknell Forest Council","00MA","","","Winkfield St Marys primary","Consultant Fees",24/02/2014 00:00:00,"6543240",885.42,"ATKINS LTD"
"Bracknell Forest Council","http://opendatacommunities.org/id/unitary-authority/bracknell-forest","Bracknell Forest Council","00MA","","","Garth Hill Post 16 Expansion","Consultant Fees",24/02/2014 00:00:00,"6543240",885.42,"ATKINS LTD"
"Bracknell Forest Council","http://opendatacommunities.org/id/unitary-authority/bracknell-forest","Bracknell Forest Council","00MA","","","Asset Management Plan","Consultant Fees",18/03/2014 00:00:00,"6543372",5715.2,"ATKINS LTD"
"Bracknell Forest Council","http://opendatacommunities.org/id/unitary-authority/bracknell-forest","Bracknell Forest Council","00MA","Other School Related Education Services","Access","Site Allocation Development Plan","Consultants Fees",19/03/2014 00:00:00,"6543446",1335,"ATKINS LTD"
"Bracknell Forest Council","http://opendatacommunities.org/id/unitary-authority/bracknell-forest","Bracknell Forest Council","00MA","","","Owlsmoor Suitability","Consultant Fees",19/03/2014 00:00:00,"6543448",14940.95,"ATKINS LTD"
"Bracknell Forest Council","http://opendatacommunities.org/id/unitary-authority/bracknell-forest","Bracknell Forest Council","00MA","","","Cranborne Primary-MTC","Consultant Fees",28/02/2014 00:00:00,"6543846",975,"ATKINS LTD"
"Bracknell Forest Council","http://opendatacommunities.org/id/unitary-authority/bracknell-forest","Bracknell Forest Council","00MA","Economic Development","Economic Development","Economic Development","Licences",19/03/2014 00:00:00,"6544774",2500,"ATOM CONTENT"
"Bracknell Forest Council","http://opendatacommunities.org/id/unitary-authority/bracknell-forest","Bracknell Forest Council","00MA","Culture and Heritage","Arts Development and Support","Cultural Strategy","Other Fees for Bought-in Services",27/03/2014 00:00:00,"6545468",3054,"ATOM CREATIVE SOLUTIONS"
"Bracknell Forest Council","http://opendatacommunities.org/id/unitary-authority/bracknell-forest","Bracknell Forest Council","00MA","Central Support Services - COF","Information Technology","Information Technology - Management","Computer -Purchase",18/03/2014 00:00:00,"6544220",4644,"AUDIOCOM PENDAX LTD"
"Bracknell Forest Council","http://opendatacommunities.org/id/unitary-authority/bracknell-forest","Bracknell Forest Council","00MA","","","TS Meeting Rooms - Display Screens","Construction - Contract Payments",18/03/2014 00:00:00,"6544221",1089,"AUDIOCOM PENDAX LTD"
"Bracknell Forest Council","http://opendatacommunities.org/id/unitary-authority/bracknell-forest","Bracknell Forest Council","00MA","Registration Births, Deaths & Marriages","Registration births, deaths and marriages","Registration Marriages","Equipment - Purchase",27/03/2014 00:00:00,"6545500",833,"AUDIOCOM PENDAX LTD"
"Bracknell Forest Council","http://opendatacommunities.org/id/unitary-authority/bracknell-forest","Bracknell Forest Council","00MA","Central Support Services - COF","Information Technology","Information Technology - Management","Computer -Purchase",28/03/2014 00:00:00,"6545597",562.5,"AUDIOCOM PENDAX LTD"
"Bracknell Forest Council","http://opendatacommunities.org/id/unitary-authority/bracknell-forest","Bracknell Forest Council","00MA","","","TS Meeting Rooms - Display Screens","Construction - Contract Payments",27/03/2014 00:00:00,"6545638",4619,"AUDIOCOM PENDAX LTD"
"Bracknell Forest Council","http://opendatacommunities.org/id/unitary-authority/bracknell-forest","Bracknell Forest Council","00MA","Management and Support Services - CYPL","Holding Codes - net nil","Education Library Service","Other Fees for Bought-in Services",18/03/2014 00:00:00,"6543805",550,"AUTHORS ALOUD UK"
"Bracknell Forest Council","http://opendatacommunities.org/id/unitary-authority/bracknell-forest","Bracknell Forest Council","00MA","Learning Disability (under 65)","Residential Care Home Placements","Residential Placements-Lrng Disab - Q121A","Contracted Services",11/03/2014 00:00:00,"30238130",5260.52,"AUTISM SPECIALISED CARE HOMES LTD"
"Bracknell Forest Council","http://opendatacommunities.org/id/unitary-authority/bracknell-forest","Bracknell Forest Council","00MA","Learning Disability (under 65)","Residential Care Home Placements","Residential Placements-Lrng Disab - Q121A","Contracted Services",09/04/2014 00:00:00,"30240736",5260.52,"AUTISM SPECIALISED CARE HOMES LTD"
"Bracknell Forest Council","http://opendatacommunities.org/id/unitary-authority/bracknell-forest","Bracknell Forest Council","00MA","Learning Disability (under 65)","Residential Care Home Placements","Residential Placements-Lrng Disab - Q121A","Contracted Services",11/03/2014 00:00:00,"30238130",6025.84,"AVON AUTISTIC FOUNDATION"
"Bracknell Forest Council","http://opendatacommunities.org/id/unitary-authority/bracknell-forest","Bracknell Forest Council","00MA","Learning Disability (under 65)","Residential Care Home Placements","Residential Placements-Lrng Disab - Q121A","Contracted Services",09/04/2014 00:00:00,"30240736",6025.84,"AVON AUTISTIC FOUNDATION"
"Bracknell Forest Council","http://opendatacommunities.org/id/unitary-authority/bracknell-forest","Bracknell Forest Council","00MA","","","Sandhurst Secondary-MTC","Construction - Contract Payments",27/03/2014 00:00:00,"6545337",3161.39,"B.T.U. (MAINTENANCE) LTD"
"Bracknell Forest Council","http://opendatacommunities.org/id/unitary-authority/bracknell-forest","Bracknell Forest Council","00MA","Cemeteries, Crematoria & Mortuary Services","Cemeteries & Crematorium","Easthampstead Park Cemetery & Crematorium","Contract Cleaning",24/02/2014 00:00:00,"6542226",857,"BAC CLEANING SERVICES"
"Bracknell Forest Council","http://opendatacommunities.org/id/unitary-authority/bracknell-forest","Bracknell Forest Council","00MA","Cemeteries, Crematoria & Mortuary Services","Cemeteries & Crematorium","Easthampstead Park Cemetery & Crematorium","Contract Cleaning",27/03/2014 00:00:00,"6545655",857,"BAC CLEANING SERVICES"
"Bracknell Forest Council","http://opendatacommunities.org/id/unitary-authority/bracknell-forest","Bracknell Forest Council","00MA","Services to Young People","Other Services to Young People","Great Hollands Youth Centre","Contracted Services",28/02/2014 00:00:00,"6542915",3000,"BACYP"
"Bracknell Forest Council","http://opendatacommunities.org/id/unitary-authority/bracknell-forest","Bracknell Forest Council","00MA","Recreation, Sports and Leisure","Golf Courses","Leisure DSO - Downshire Golf Course","R&M - Service Contracts",28/02/2014 00:00:00,"6542995",1360,"BADCOCK SERVICES LIMITED"
"Bracknell Forest Council","http://opendatacommunities.org/id/unitary-authority/bracknell-forest","Bracknell Forest Council","00MA","Street Lighting (including Energy Costs)","Street Lighting","Lighting","Contracted Services",21/03/2014 00:00:00,"6543427",102146.09,"BALFOUR BEATTY INFRASTRUCTURE SERVICES"
"Bracknell Forest Council","http://opendatacommunities.org/id/unitary-authority/bracknell-forest","Bracknell Forest Council","00MA","Recreation, Sports and Leisure","Indoor Sports & Recreation Facilities","Leisure DSO - Coral Reef Maintenance","R&M - Reactive",27/02/2014 00:00:00,"6543071",681.38,"BALLCOCK & BITS"
"Bracknell Forest Council","http://opendatacommunities.org/id/unitary-authority/bracknell-forest","Bracknell Forest Council","00MA","Other Adult Services","Substance Abuse (Addictions)","New Hope Running Costs - Q253D","Office Stationery",04/04/2014 00:00:00,"30240349",11.68,"BANNER"
"Bracknell Forest Council","http://opendatacommunities.org/id/unitary-authority/bracknell-forest","Bracknell Forest Council","00MA","Other Adult Services","Substance Abuse (Addictions)","New Hope Running Costs - Q253D","Office Stationery",04/04/2014 00:00:00,"30240349",11.68,"BANNER"
"Bracknell Forest Council","http://opendatacommunities.org/id/unitary-authority/bracknell-forest","Bracknell Forest Council","00MA","Other Adult Services","Substance Abuse (Addictions)","New Hope Running Costs - Q253D","Office Stationery",04/04/2014 00:00:00,"30240349",24.12,"BANNER"
"Bracknell Forest Council","http://opendatacommunities.org/id/unitary-authority/bracknell-forest","Bracknell Forest Council","00MA","Other Adult Services","Substance Abuse (Addictions)","New Hope Running Costs - Q253D","Office Stationery",04/04/2014 00:00:00,"30240349",25.28,"BANNER"
"Bracknell Forest Council","http://opendatacommunities.org/id/unitary-authority/bracknell-forest","Bracknell Forest Council","00MA","Other Adult Services","Substance Abuse (Addictions)","New Hope Running Costs - Q253D","Office Stationery",04/04/2014 00:00:00,"30240349",48.24,"BANNER"
"Bracknell Forest Council","http://opendatacommunities.org/id/unitary-authority/bracknell-forest","Bracknell Forest Council","00MA","Other Adult Services","Substance Abuse (Addictions)","New Hope Running Costs - Q253D","Office Stationery",04/04/2014 00:00:00,"30240349",70.08,"BANNER"
"Bracknell Forest Council","http://opendatacommunities.org/id/unitary-authority/bracknell-forest","Bracknell Forest Council","00MA","Libraries","Library Management & Administration","Library Administration","Office Stationery",04/04/2014 00:00:00,"30240349",1.28,"BANNER"
"Bracknell Forest Council","http://opendatacommunities.org/id/unitary-authority/bracknell-forest","Bracknell Forest Council","00MA","Culture and Heritage","Heritage Museums & Galleries","The Look Out","Office Stationery",04/04/2014 00:00:00,"30240349",0.66,"BANNER"
"Bracknell Forest Council","http://opendatacommunities.org/id/unitary-authority/bracknell-forest","Bracknell Forest Council","00MA","Culture and Heritage","Heritage Museums & Galleries","The Look Out","Office Stationery",04/04/2014 00:00:00,"30240349",27.8,"BANNER"
"Bracknell Forest Council","http://opendatacommunities.org/id/unitary-authority/bracknell-forest","Bracknell Forest Council","00MA","Culture and Heritage","Heritage Museums & Galleries","The Look Out","Office Stationery",04/04/2014 00:00:00,"30240349",140.8,"BANNER"
"Bracknell Forest Council","http://opendatacommunities.org/id/unitary-authority/bracknell-forest","Bracknell Forest Council","00MA","Central Support Services - COF","Finance","Finance Departmental Administration","Office Stationery",04/04/2014 00:00:00,"30240349",1.79,"BANNER"
"Bracknell Forest Council","http://opendatacommunities.org/id/unitary-authority/bracknell-forest","Bracknell Forest Council","00MA","Central Support Services - COF","Finance","Finance Departmental Administration","Office Stationery",04/04/2014 00:00:00,"30240349",1.84,"BANNER"
"Bracknell Forest Council","http://opendatacommunities.org/id/unitary-authority/bracknell-forest","Bracknell Forest Council","00MA","Central Support Services - COF","Finance","Finance Departmental Administration","Office Stationery",04/04/2014 00:00:00,"30240349",2.4,"BANNER"
"Bracknell Forest Council","http://opendatacommunities.org/id/unitary-authority/bracknell-forest","Bracknell Forest Council","00MA","Central Support Services - COF","Finance","Finance Departmental Administration","Office Stationery",04/04/2014 00:00:00,"30240349",62.4,"BANNER"
"Bracknell Forest Council","http://opendatacommunities.org/id/unitary-authority/bracknell-forest","Bracknell Forest Council","00MA","Early Years","Children's Centres","GSSG The Sycamores Children's Centre","Office Stationery",04/04/2014 00:00:00,"30240349",17.33,"BANNER"
"Bracknell Forest Council","http://opendatacommunities.org/id/unitary-authority/bracknell-forest","Bracknell Forest Council","00MA","Early Years","Children's Centres","GSSG The Sycamores Children's Centre","Office Stationery",04/04/2014 00:00:00,"30240349",17.69,"BANNER"
"Bracknell Forest Council","http://opendatacommunities.org/id/unitary-authority/bracknell-forest","Bracknell Forest Council","00MA","Early Years","Children's Centres","GSSG The Sycamores Children's Centre","Office Stationery",04/04/2014 00:00:00,"30240349",20.37,"BANNER"
"Bracknell Forest Council","http://opendatacommunities.org/id/unitary-authority/bracknell-forest","Bracknell Forest Council","00MA","Early Years","Children's Centres","GSSG The Sycamores Children's Centre","Office Stationery",04/04/2014 00:00:00,"30240349",20.7,"BANNER"
"Bracknell Forest Council","http://opendatacommunities.org/id/unitary-authority/bracknell-forest","Bracknell Forest Council","00MA","Early Years","Children's Centres","GSSG The Sycamores Children's Centre","Office Stationery",04/04/2014 00:00:00,"30240349",22.75,"BANNER"
"Bracknell Forest Council","http://opendatacommunities.org/id/unitary-authority/bracknell-forest","Bracknell Forest Council","00MA","Early Years","Children's Centres","GSSG The Sycamores Children's Centre","Office Stationery",04/04/2014 00:00:00,"30240349",22.86,"BANNER"
"Bracknell Forest Council","http://opendatacommunities.org/id/unitary-authority/bracknell-forest","Bracknell Forest Council","00MA","Early Years","Children's Centres","GSSG The Sycamores Children's Centre","Office Stationery",04/04/2014 00:00:00,"30240349",22.94,"BANNER"
"Bracknell Forest Council","http://opendatacommunities.org/id/unitary-authority/bracknell-forest","Bracknell Forest Council","00MA","Mental Health Needs (Under 65)","Supported and Other Accommodation","Group Homes - Q605R","Office Stationery",04/04/2014 00:00:00,"30240349",200,"BANNER"
"Bracknell Forest Council","http://opendatacommunities.org/id/unitary-authority/bracknell-forest","Bracknell Forest Council","00MA","Mental Health Needs (Under 65)","Supported and Other Accommodation","Group Homes - Q605R","Office Stationery",04/04/2014 00:00:00,"30240349",207,"BANNER"
"Bracknell Forest Council","http://opendatacommunities.org/id/unitary-authority/bracknell-forest","Bracknell Forest Council","00MA","Mental Health Needs (Under 65)","Supported and Other Accommodation","Group Homes - Q605R","Office Stationery",04/04/2014 00:00:00,"30240349",241,"BANNER"
"Bracknell Forest Council","http://opendatacommunities.org/id/unitary-authority/bracknell-forest","Bracknell Forest Council","00MA","Mental Health Needs (Under 65)","Supported and Other Accommodation","Group Homes - Q605R","Office Stationery",04/04/2014 00:00:00,"30240349",304,"BANNER"
"Bracknell Forest Council","http://opendatacommunities.org/id/unitary-authority/bracknell-forest","Bracknell Forest Council","00MA","Mental Health Needs (Under 65)","Assessment & Care Management","CMHT - Q159M","Office Stationery",04/04/2014 00:00:00,"30240349",2.02,"BANNER"
"Bracknell Forest Council","http://opendatacommunities.org/id/unitary-authority/bracknell-forest","Bracknell Forest Council","00MA","Mental Health Needs (Under 65)","Assessment & Care Management","CMHT - Q159M","Office Stationery",04/04/2014 00:00:00,"30240349",2.2,"BANNER"
"Bracknell Forest Council","http://opendatacommunities.org/id/unitary-authority/bracknell-forest","Bracknell Forest Council","00MA","Mental Health Needs (Under 65)","Assessment & Care Management","CMHT - Q159M","Office Stationery",04/04/2014 00:00:00,"30240349",2.97,"BANNER"
"Bracknell Forest Council","http://opendatacommunities.org/id/unitary-authority/bracknell-forest","Bracknell Forest Council","00MA","Mental Health Needs (Under 65)","Assessment & Care Management","CMHT - Q159M","Office Stationery",04/04/2014 00:00:00,"30240349",3.33,"BANNER"
"Bracknell Forest Council","http://opendatacommunities.org/id/unitary-authority/bracknell-forest","Bracknell Forest Council","00MA","Mental Health Needs (Under 65)","Assessment & Care Management","CMHT - Q159M","Office Stationery",04/04/2014 00:00:00,"30240349",3.98,"BANNER"
"Bracknell Forest Council","http://opendatacommunities.org/id/unitary-authority/bracknell-forest","Bracknell Forest Council","00MA","Mental Health Needs (Under 65)","Assessment & Care Management","CMHT - Q159M","Office Stationery",04/04/2014 00:00:00,"30240349",4,"BANNER"
"Bracknell Forest Council","http://opendatacommunities.org/id/unitary-authority/bracknell-forest","Bracknell Forest Council","00MA","Mental Health Needs (Under 65)","Assessment & Care Management","CMHT - Q159M","Office Stationery",04/04/2014 00:00:00,"30240349",5.86,"BANNER"
"Bracknell Forest Council","http://opendatacommunities.org/id/unitary-authority/bracknell-forest","Bracknell Forest Council","00MA","Central Support Services - COF","Finance","Finance Departmental Administration","Office Stationery",04/04/2014 00:00:00,"30240349",120.68,"BANNER"
"Bracknell Forest Council","http://opendatacommunities.org/id/unitary-authority/bracknell-forest","Bracknell Forest Council","00MA","Management and Support Services - CYPL","Unallocated Schools Budget Related Expenditure","Primary Resource Centre","Office Stationery",04/04/2014 00:00:00,"30240349",2.37,"BANNER"
"Bracknell Forest Council","http://opendatacommunities.org/id/unitary-authority/bracknell-forest","Bracknell Forest Council","00MA","Management and Support Services - CYPL","Unallocated Schools Budget Related Expenditure","Primary Resource Centre","Office Stationery",04/04/2014 00:00:00,"30240349",2.42,"BANNER"
"Bracknell Forest Council","http://opendatacommunities.org/id/unitary-authority/bracknell-forest","Bracknell Forest Council","00MA","Mental Health Needs (Under 65)","Supported and Other Accommodation","Group Homes - Q605R","Office Stationery",04/04/2014 00:00:00,"30240349",522,"BANNER"
"Bracknell Forest Council","http://opendatacommunities.org/id/unitary-authority/bracknell-forest","Bracknell Forest Council","00MA","Service Management & Support Services","Service Management & Support Services","Departmental Office Services","Office Stationery",04/04/2014 00:00:00,"30240349",0.3,"BANNER"
"Bracknell Forest Council","http://opendatacommunities.org/id/unitary-authority/bracknell-forest","Bracknell Forest Council","00MA","Service Management & Support Services","Service Management & Support Services","Departmental Office Services","Office Stationery",04/04/2014 00:00:00,"30240349",0.31,"BANNER"
"Bracknell Forest Council","http://opendatacommunities.org/id/unitary-authority/bracknell-forest","Bracknell Forest Council","00MA","Service Management & Support Services","Service Management & Support Services","Departmental Office Services","Office Stationery",04/04/2014 00:00:00,"30240349",0.31,"BANNER"
"Bracknell Forest Council","http://opendatacommunities.org/id/unitary-authority/bracknell-forest","Bracknell Forest Council","00MA","Service Management & Support Services","Service Management & Support Services","Departmental Office Services","Office Stationery",04/04/2014 00:00:00,"30240349",0.35,"BANNER"
"Bracknell Forest Council","http://opendatacommunities.org/id/unitary-authority/bracknell-forest","Bracknell Forest Council","00MA","Conducting Elections","Other Elections","Elections - European","Office Stationery",04/04/2014 00:00:00,"30240349",5.36,"BANNER"
"Bracknell Forest Council","http://opendatacommunities.org/id/unitary-authority/bracknell-forest","Bracknell Forest Council","00MA","Conducting Elections","Other Elections","Elections - European","Office Stationery",04/04/2014 00:00:00,"30240349",7,"BANNER"
"Bracknell Forest Council","http://opendatacommunities.org/id/unitary-authority/bracknell-forest","Bracknell Forest Council","00MA","Conducting Elections","Other Elections","Elections - European","Office Stationery",04/04/2014 00:00:00,"30240349",24.77,"BANNER"
"Bracknell Forest Council","http://opendatacommunities.org/id/unitary-authority/bracknell-forest","Bracknell Forest Council","00MA","Conducting Elections","Other Elections","Elections - European","Office Stationery",04/04/2014 00:00:00,"30240349",31.28,"BANNER"
"Bracknell Forest Council","http://opendatacommunities.org/id/unitary-authority/bracknell-forest","Bracknell Forest Council","00MA","Conducting Elections","Other Elections","Elections - European","Office Stationery",04/04/2014 00:00:00,"30240349",54.14,"BANNER"
"Bracknell Forest Council","http://opendatacommunities.org/id/unitary-authority/bracknell-forest","Bracknell Forest Council","00MA","Conducting Elections","Other Elections","Elections - European","Office Stationery",04/04/2014 00:00:00,"30240349",58.83,"BANNER"
"Bracknell Forest Council","http://opendatacommunities.org/id/unitary-authority/bracknell-forest","Bracknell Forest Council","00MA","Older People (Aged 65 or Over)","Residential Care Home Placements","Heathlands EPH - Q603R","Office Stationery",04/04/2014 00:00:00,"30240349",24.96,"BANNER"
"Bracknell Forest Council","http://opendatacommunities.org/id/unitary-authority/bracknell-forest","Bracknell Forest Council","00MA","Democratic Representation & Management COF","Democratic Representation & Management - COF","Committee Servicing","Office Stationery",04/04/2014 00:00:00,"30240349",3.2,"BANNER"
"Bracknell Forest Council","http://opendatacommunities.org/id/unitary-authority/bracknell-forest","Bracknell Forest Council","00MA","Democratic Representation & Management COF","Democratic Representation & Management - COF","Committee Servicing","Office Stationery",04/04/2014 00:00:00,"30240349",9.84,"BANNER"
"Bracknell Forest Council","http://opendatacommunities.org/id/unitary-authority/bracknell-forest","Bracknell Forest Council","00MA","Democratic Representation & Management COF","Democratic Representation & Management - COF","Committee Servicing","Office Stationery",04/04/2014 00:00:00,"30240349",18.87,"BANNER"
"Bracknell Forest Council","http://opendatacommunities.org/id/unitary-authority/bracknell-forest","Bracknell Forest Council","00MA","Democratic Representation & Management COF","Democratic Representation & Management - COF","Committee Servicing","Office Stationery",04/04/2014 00:00:00,"30240349",26.3,"BANNER"
"Bracknell Forest Council","http://opendatacommunities.org/id/unitary-authority/bracknell-forest","Bracknell Forest Council","00MA","Central Support Services - COF","Information Technology","Information Technology - Management","Office Stationery",04/04/2014 00:00:00,"30240349",-20.04,"BANNER"
"Bracknell Forest Council","http://opendatacommunities.org/id/unitary-authority/bracknell-forest","Bracknell Forest Council","00MA","Central Support Services - COF","Information Technology","Information Technology - Management","Office Stationery",04/04/2014 00:00:00,"30240349",0.14,"BANNER"
"Bracknell Forest Council","http://opendatacommunities.org/id/unitary-authority/bracknell-forest","Bracknell Forest Council","00MA","Management and Support Services - CYPL","Holding Codes - net nil","Education Library Service","Office Stationery",04/04/2014 00:00:00,"30240349",0.35,"BANNER"
"Bracknell Forest Council","http://opendatacommunities.org/id/unitary-authority/bracknell-forest","Bracknell Forest Council","00MA","Management and Support Services - CYPL","Holding Codes - net nil","Education Library Service","Office Stationery",04/04/2014 00:00:00,"30240349",0.65,"BANNER"
"Bracknell Forest Council","http://opendatacommunities.org/id/unitary-authority/bracknell-forest","Bracknell Forest Council","00MA","Management and Support Services - CYPL","Holding Codes - net nil","Education Library Service","Office Stationery",04/04/2014 00:00:00,"30240349",0.68,"BANNER"
"Bracknell Forest Council","http://opendatacommunities.org/id/unitary-authority/bracknell-forest","Bracknell Forest Council","00MA","Management and Support Services - CYPL","Holding Codes - net nil","Education Library Service","Office Stationery",04/04/2014 00:00:00,"30240349",0.99,"BANNER"
"Bracknell Forest Council","http://opendatacommunities.org/id/unitary-authority/bracknell-forest","Bracknell Forest Council","00MA","Central Support Services - COF","Policy Unit","Chief Executive's Office","Office Stationery",04/04/2014 00:00:00,"30240349",0.7,"BANNER"
"Bracknell Forest Council","http://opendatacommunities.org/id/unitary-authority/bracknell-forest","Bracknell Forest Council","00MA","Central Support Services - COF","Policy Unit","Chief Executive's Office","Office Stationery",04/04/2014 00:00:00,"30240349",2,"BANNER"
"Bracknell Forest Council","http://opendatacommunities.org/id/unitary-authority/bracknell-forest","Bracknell Forest Council","00MA","Central Support Services - COF","Policy Unit","Chief Executive's Office","Office Stationery",04/04/2014 00:00:00,"30240349",2.04,"BANNER"
"Bracknell Forest Council","http://opendatacommunities.org/id/unitary-authority/bracknell-forest","Bracknell Forest Council","00MA","Corporate Management COF","Corporate Management COF","Chief Executive & Support","Office Stationery",04/04/2014 00:00:00,"30240349",24.96,"BANNER"
"Bracknell Forest Council","http://opendatacommunities.org/id/unitary-authority/bracknell-forest","Bracknell Forest Council","00MA","Service Management & Support Services","Service Management & Support Services","Departmental Office Services","Office Stationery",04/04/2014 00:00:00,"30240349",62.4,"BANNER"
"Bracknell Forest Council","http://opendatacommunities.org/id/unitary-authority/bracknell-forest","Bracknell Forest Council","00MA","Service Management & Support Services","Service Management & Support Services","Departmental Office Services","Office Stationery",04/04/2014 00:00:00,"30240349",62.4,"BANNER"
"Bracknell Forest Council","http://opendatacommunities.org/id/unitary-authority/bracknell-forest","Bracknell Forest Council","00MA","Service Management & Support Services","Service Management & Support Services","Departmental Office Services","Office Stationery",04/04/2014 00:00:00,"30240349",124.8,"BANNER"
"Bracknell Forest Council","http://opendatacommunities.org/id/unitary-authority/bracknell-forest","Bracknell Forest Council","00MA","Early Years","Children's Centres","GSSG The Sycamores Children's Centre","Office Stationery",04/04/2014 00:00:00,"30240349",1.5,"BANNER"
"Bracknell Forest Council","http://opendatacommunities.org/id/unitary-authority/bracknell-forest","Bracknell Forest Council","00MA","Early Years","Children's Centres","GSSG The Sycamores Children's Centre","Office Stationery",04/04/2014 00:00:00,"30240349",2.5,"BANNER"
"Bracknell Forest Council","http://opendatacommunities.org/id/unitary-authority/bracknell-forest","Bracknell Forest Council","00MA","Early Years","Children's Centres","GSSG The Sycamores Children's Centre","Office Stationery",04/04/2014 00:00:00,"30240349",2.52,"BANNER"
"Bracknell Forest Council","http://opendatacommunities.org/id/unitary-authority/bracknell-forest","Bracknell Forest Council","00MA","Early Years","Children's Centres","GSSG The Sycamores Children's Centre","Office Stationery",04/04/2014 00:00:00,"30240349",2.56,"BANNER"
"Bracknell Forest Council","http://opendatacommunities.org/id/unitary-authority/bracknell-forest","Bracknell Forest Council","00MA","Early Years","Children's Centres","GSSG The Sycamores Children's Centre","Office Stationery",04/04/2014 00:00:00,"30240349",2.77,"BANNER"
"Bracknell Forest Council","http://opendatacommunities.org/id/unitary-authority/bracknell-forest","Bracknell Forest Council","00MA","Early Years","Children's Centres","GSSG The Sycamores Children's Centre","Office Stationery",04/04/2014 00:00:00,"30240349",3.08,"BANNER"
"Bracknell Forest Council","http://opendatacommunities.org/id/unitary-authority/bracknell-forest","Bracknell Forest Council","00MA","Early Years","Children's Centres","GSSG The Sycamores Children's Centre","Office Stationery",04/04/2014 00:00:00,"30240349",3.8,"BANNER"
"Bracknell Forest Council","http://opendatacommunities.org/id/unitary-authority/bracknell-forest","Bracknell Forest Council","00MA","Central Support Services - COF","Finance","Finance Departmental Administration","Office Stationery",04/04/2014 00:00:00,"30240349",13.38,"BANNER"
"Bracknell Forest Council","http://opendatacommunities.org/id/unitary-authority/bracknell-forest","Bracknell Forest Council","00MA","Central Support Services - COF","Finance","Finance Departmental Administration","Office Stationery",04/04/2014 00:00:00,"30240349",13.82,"BANNER"
"Bracknell Forest Council","http://opendatacommunities.org/id/unitary-authority/bracknell-forest","Bracknell Forest Council","00MA","Central Support Services - COF","Finance","Finance Departmental Administration","Office Stationery",04/04/2014 00:00:00,"30240349",13.82,"BANNER"
"Bracknell Forest Council","http://opendatacommunities.org/id/unitary-authority/bracknell-forest","Bracknell Forest Council","00MA","Central Support Services - COF","Valuers","Property Services","Office Stationery",04/04/2014 00:00:00,"30240349",6.33,"BANNER"
"Bracknell Forest Council","http://opendatacommunities.org/id/unitary-authority/bracknell-forest","Bracknell Forest Council","00MA","Central Support Services - COF","Valuers","Property Services","Office Stationery",04/04/2014 00:00:00,"30240349",6.38,"BANNER"
"Bracknell Forest Council","http://opendatacommunities.org/id/unitary-authority/bracknell-forest","Bracknell Forest Council","00MA","Central Support Services - COF","Valuers","Property Services","Office Stationery",04/04/2014 00:00:00,"30240349",12.29,"BANNER"
"Bracknell Forest Council","http://opendatacommunities.org/id/unitary-authority/bracknell-forest","Bracknell Forest Council","00MA","Central Support Services - COF","Valuers","Property Services","Office Stationery",04/04/2014 00:00:00,"30240349",12.29,"BANNER"
"Bracknell Forest Council","http://opendatacommunities.org/id/unitary-authority/bracknell-forest","Bracknell Forest Council","00MA","Libraries","Library Management & Administration","Library Administration","Office Stationery",04/04/2014 00:00:00,"30240349",4.92,"BANNER"
"Bracknell Forest Council","http://opendatacommunities.org/id/unitary-authority/bracknell-forest","Bracknell Forest Council","00MA","Libraries","Library Management & Administration","Library Administration","Office Stationery",04/04/2014 00:00:00,"30240349",4.92,"BANNER"
"Bracknell Forest Council","http://opendatacommunities.org/id/unitary-authority/bracknell-forest","Bracknell Forest Council","00MA","Libraries","Library Management & Administration","Library Administration","Office Stationery",04/04/2014 00:00:00,"30240349",4.92,"BANNER"
"Bracknell Forest Council","http://opendatacommunities.org/id/unitary-authority/bracknell-forest","Bracknell Forest Council","00MA","Central Support Services - COF","Policy Unit","Chief Executive's Office","Office Stationery",04/04/2014 00:00:00,"30240349",3.16,"BANNER"
"Bracknell Forest Council","http://opendatacommunities.org/id/unitary-authority/bracknell-forest","Bracknell Forest Council","00MA","Central Support Services - COF","Policy Unit","Chief Executive's Office","Office Stationery",04/04/2014 00:00:00,"30240349",3.81,"BANNER"
"Bracknell Forest Council","http://opendatacommunities.org/id/unitary-authority/bracknell-forest","Bracknell Forest Council","00MA","Central Support Services - COF","Policy Unit","Chief Executive's Office","Office Stationery",04/04/2014 00:00:00,"30240349",4.72,"BANNER"
"Bracknell Forest Council","http://opendatacommunities.org/id/unitary-authority/bracknell-forest","Bracknell Forest Council","00MA","Service Management & Support Services","Service Management & Support Services","Departmental Office Services","Office Stationery",04/04/2014 00:00:00,"30240349",0.4,"BANNER"
"Bracknell Forest Council","http://opendatacommunities.org/id/unitary-authority/bracknell-forest","Bracknell Forest Council","00MA","Service Management & Support Services","Service Management & Support Services","Departmental Office Services","Office Stationery",04/04/2014 00:00:00,"30240349",0.4,"BANNER"
"Bracknell Forest Council","http://opendatacommunities.org/id/unitary-authority/bracknell-forest","Bracknell Forest Council","00MA","Service Management & Support Services","Service Management & Support Services","Departmental Office Services","Office Stationery",04/04/2014 00:00:00,"30240349",0.62,"BANNER"
"Bracknell Forest Council","http://opendatacommunities.org/id/unitary-authority/bracknell-forest","Bracknell Forest Council","00MA","Service Management & Support Services","Service Management & Support Services","Departmental Office Services","Office Stationery",04/04/2014 00:00:00,"30240349",0.63,"BANNER"
"Bracknell Forest Council","http://opendatacommunities.org/id/unitary-authority/bracknell-forest","Bracknell Forest Council","00MA","Service Management & Support Services","Service Management & Support Services","Departmental Office Services","Office Stationery",04/04/2014 00:00:00,"30240349",0.63,"BANNER"
"Bracknell Forest Council","http://opendatacommunities.org/id/unitary-authority/bracknell-forest","Bracknell Forest Council","00MA","Other Adult Services","Substance Abuse (Addictions)","Residential Placements - Q254D","Other Support to Clients",11/03/2014 00:00:00,"6543597",1071.43,"BROADWAY"
"Bracknell Forest Council","http://opendatacommunities.org/id/unitary-authority/bracknell-forest","Bracknell Forest Council","00MA","Other Adult Services","Substance Abuse (Addictions)","Residential Placements - Q254D","Other Support to Clients",11/03/2014 00:00:00,"6543598",2500,"BROADWAY"
"Bracknell Forest Council","http://opendatacommunities.org/id/unitary-authority/bracknell-forest","Bracknell Forest Council","00MA","Other Adult Services","Substance Abuse (Addictions)","Residential Placements - Q254D","Other Support to Clients",11/03/2014 00:00:00,"6543599",2500,"BROADWAY"
"Bracknell Forest Council","http://opendatacommunities.org/id/unitary-authority/bracknell-forest","Bracknell Forest Council","00MA","Management and Support Services - CYPL","Holding Codes - net nil","Education Library Service - Resources","Learning Resources - Purchase",17/03/2014 00:00:00,"6543984",4906.5,"BROWNS BOOKS FOR STUDENTS"
"Bracknell Forest Council","http://opendatacommunities.org/id/unitary-authority/bracknell-forest","Bracknell Forest Council","00MA","Management and Support Services - CYPL","Strategy, Resources and Early Interventions","Information Technology - Section","Consultants Fees",20/03/2014 00:00:00,"6543986",8032,"BRP ENERGY SERVICES LTD"
"Bracknell Forest Council","http://opendatacommunities.org/id/unitary-authority/bracknell-forest","Bracknell Forest Council","00MA","","","Time Square Refurbishment Works","Construction - Contract Payments",07/02/2014 00:00:00,"6543468",281195,"BRYMOR CONSTRUCTION LTD"
"Bracknell Forest Council","http://opendatacommunities.org/id/unitary-authority/bracknell-forest","Bracknell Forest Council","00MA","","","Time Square Refurbishment Works","Construction - Contract Payments",09/04/2014 00:00:00,"6545722",168074,"BRYMOR CONSTRUCTION LTD"
"Bracknell Forest Council","http://opendatacommunities.org/id/unitary-authority/bracknell-forest","Bracknell Forest Council","00MA","","","IT Developments","IT Hardware",07/03/2014 00:00:00,"6542764",1050,"BT INET"
"Bracknell Forest Council","http://opendatacommunities.org/id/unitary-authority/bracknell-forest","Bracknell Forest Council","00MA","Service Management & Support Services","Service Management & Support Services","Departmental Administration","Basic Pay",27/03/2014 00:00:00,"6544175",9000,"BT INET"
"Bracknell Forest Council","http://opendatacommunities.org/id/unitary-authority/bracknell-forest","Bracknell Forest Council","00MA","Central Support Services - COF","Personnel","Step up to Social Care","Training Costs",17/03/2014 00:00:00,"6543790",92170,"BUCKINGHAMSHIRE NEW UNIVERSITY"
"Bracknell Forest Council","http://opendatacommunities.org/id/unitary-authority/bracknell-forest","Bracknell Forest Council","00MA","Early Years","Centrally managed Expenditure - Early Years","Early Years and Childcare","Grants and Donations",27/03/2014 00:00:00,"30239566",8016,"BUSY BEES MONTESSORI SCHOOL"
"Bracknell Forest Council","http://opendatacommunities.org/id/unitary-authority/bracknell-forest","Bracknell Forest Council","00MA","Children Looked After","Residential care","Children's Home Placements","Contracted Services",01/03/2014 00:00:00,"6543304",4574.71,"BY THE BRIDGE"
"Bracknell Forest Council","http://opendatacommunities.org/id/unitary-authority/bracknell-forest","Bracknell Forest Council","00MA","Service Management & Support Services","Service Management & Support Services","Departmental IT","Computer Software",13/02/2014 00:00:00,"6541485",1202.1,"BYTES TECHNOLOGY GROUP LTD"
"Bracknell Forest Council","http://opendatacommunities.org/id/unitary-authority/bracknell-forest","Bracknell Forest Council","00MA","Central Support Services - COF","Personnel","LSC - PSSC Grant","Training Costs",04/03/2014 00:00:00,"6542269",519.66,"BYTES TECHNOLOGY GROUP LTD"
"Bracknell Forest Council","http://opendatacommunities.org/id/unitary-authority/bracknell-forest","Bracknell Forest Council","00MA","Service Management & Support Services","Service Management & Support Services","Departmental Office Services","Office Stationery",04/04/2014 00:00:00,"30240349",0.65,"BANNER"
"Bracknell Forest Council","http://opendatacommunities.org/id/unitary-authority/bracknell-forest","Bracknell Forest Council","00MA","Service Management & Support Services","Service Management & Support Services","Departmental Office Services","Office Stationery",04/04/2014 00:00:00,"30240349",0.66,"BANNER"
"Bracknell Forest Council","http://opendatacommunities.org/id/unitary-authority/bracknell-forest","Bracknell Forest Council","00MA","Central Support Services - COF","Valuers","Property Services","Office Stationery",04/04/2014 00:00:00,"30240349",12.48,"BANNER"
"Bracknell Forest Council","http://opendatacommunities.org/id/unitary-authority/bracknell-forest","Bracknell Forest Council","00MA","Central Support Services - COF","Valuers","Property Services","Office Stationery",04/04/2014 00:00:00,"30240349",21.33,"BANNER"
"Bracknell Forest Council","http://opendatacommunities.org/id/unitary-authority/bracknell-forest","Bracknell Forest Council","00MA","Central Support Services - COF","Valuers","Property Services","Office Stationery",04/04/2014 00:00:00,"30240349",24.96,"BANNER"
"Bracknell Forest Council","http://opendatacommunities.org/id/unitary-authority/bracknell-forest","Bracknell Forest Council","00MA","Miscellaneous Public Health Services","Public Health Teams","Public Health - Berkshire Shared Team","Office Stationery",04/04/2014 00:00:00,"30240349",14.42,"BANNER"
"Bracknell Forest Council","http://opendatacommunities.org/id/unitary-authority/bracknell-forest","Bracknell Forest Council","00MA","Miscellaneous Public Health Services","Public Health Teams","Public Health - Berkshire Shared Team","Office Stationery",04/04/2014 00:00:00,"30240349",18.17,"BANNER"
"Bracknell Forest Council","http://opendatacommunities.org/id/unitary-authority/bracknell-forest","Bracknell Forest Council","00MA","Miscellaneous Public Health Services","Public Health Teams","Public Health - Berkshire Shared Team","Office Stationery",04/04/2014 00:00:00,"30240349",29.68,"BANNER"
"Bracknell Forest Council","http://opendatacommunities.org/id/unitary-authority/bracknell-forest","Bracknell Forest Council","00MA","Miscellaneous Public Health Services","Public Health Teams","Public Health - Berkshire Shared Team","Office Stationery",04/04/2014 00:00:00,"30240349",29.68,"BANNER"
"Bracknell Forest Council","http://opendatacommunities.org/id/unitary-authority/bracknell-forest","Bracknell Forest Council","00MA","Miscellaneous Public Health Services","Public Health Teams","Public Health - Berkshire Shared Team","Office Stationery",04/04/2014 00:00:00,"30240349",36,"BANNER"
"Bracknell Forest Council","http://opendatacommunities.org/id/unitary-authority/bracknell-forest","Bracknell Forest Council","00MA","Other School Related Education Services","Learner Support","Learning & Achievement","Office Stationery",04/04/2014 00:00:00,"30240349",11.68,"BANNER"
"Bracknell Forest Council","http://opendatacommunities.org/id/unitary-authority/bracknell-forest","Bracknell Forest Council","00MA","Other School Related Education Services","Learner Support","Learning & Achievement","Office Stationery",04/04/2014 00:00:00,"30240349",11.68,"BANNER"
"Bracknell Forest Council","http://opendatacommunities.org/id/unitary-authority/bracknell-forest","Bracknell Forest Council","00MA","Other School Related Education Services","Learner Support","Learning & Achievement","Office Stationery",04/04/2014 00:00:00,"30240349",11.68,"BANNER"
"Bracknell Forest Council","http://opendatacommunities.org/id/unitary-authority/bracknell-forest","Bracknell Forest Council","00MA","Older People (Aged 65 or Over)","Residential Care Home Placements","Heathlands EPH - Q603R","Office Stationery",04/04/2014 00:00:00,"30240349",5.21,"BANNER"
"Bracknell Forest Council","http://opendatacommunities.org/id/unitary-authority/bracknell-forest","Bracknell Forest Council","00MA","Older People (Aged 65 or Over)","Residential Care Home Placements","Heathlands EPH - Q603R","Office Stationery",04/04/2014 00:00:00,"30240349",18.4,"BANNER"
"Bracknell Forest Council","http://opendatacommunities.org/id/unitary-authority/bracknell-forest","Bracknell Forest Council","00MA","Central Support Services - COF","Information Technology","Technical  Services","Equipment - R&M",27/03/2014 00:00:00,"6545476",14393.2,"BYTES TECHNOLOGY GROUP LTD"
"Bracknell Forest Council","http://opendatacommunities.org/id/unitary-authority/bracknell-forest","Bracknell Forest Council","00MA","Central Support Services - COF","Information Technology","Technical  Services","Licences",28/03/2014 00:00:00,"6545633",13433.43,"BYTES TECHNOLOGY GROUP LTD"
"Bracknell Forest Council","http://opendatacommunities.org/id/unitary-authority/bracknell-forest","Bracknell Forest Council","00MA","Central Support Services - COF","Information Technology","Technical  Services","Licences",31/03/2014 00:00:00,"6545697",35005.5,"BYTES TECHNOLOGY GROUP LTD"
"Bracknell Forest Council","http://opendatacommunities.org/id/unitary-authority/bracknell-forest","Bracknell Forest Council","00MA","Central Support Services - COF","Information Technology","Technical  Services","Licences",31/03/2014 00:00:00,"6545699",12098.43,"BYTES TECHNOLOGY GROUP LTD"
"Bracknell Forest Council","http://opendatacommunities.org/id/unitary-authority/bracknell-forest","Bracknell Forest Council","00MA","Children Looked After","Other children looked after services","Larchwood","R&M - Reactive",28/02/2014 00:00:00,"6543033",2650,"C J M HARVEY CONSTRUCTION LTD"
"Bracknell Forest Council","http://opendatacommunities.org/id/unitary-authority/bracknell-forest","Bracknell Forest Council","00MA","Business Support","Premises Development","Easthampstead Park Conference Centre","Minor Improvement Schemes",27/03/2014 00:00:00,"6544515",9050,"C J M HARVEY CONSTRUCTION LTD"
"Bracknell Forest Council","http://opendatacommunities.org/id/unitary-authority/bracknell-forest","Bracknell Forest Council","00MA","Recreation, Sports and Leisure","Indoor Sports & Recreation Facilities","Coral Reef - Catering & Bar","Catering Consumables",05/02/2014 00:00:00,"6542056",535.52,"C& S CATERING SUPPLIES LTD"
"Bracknell Forest Council","http://opendatacommunities.org/id/unitary-authority/bracknell-forest","Bracknell Forest Council","00MA","Recreation, Sports and Leisure","Indoor Sports & Recreation Facilities","Coral Reef - Catering & Bar","Catering Consumables",19/03/2014 00:00:00,"6545427",604.91,"C& S CATERING SUPPLIES LTD"
"Bracknell Forest Council","http://opendatacommunities.org/id/unitary-authority/bracknell-forest","Bracknell Forest Council","00MA","Recreation, Sports and Leisure","Indoor Sports & Recreation Facilities","Coral Reef - Catering & Bar","Catering Consumables",26/03/2014 00:00:00,"6545604",604.21,"C& S CATERING SUPPLIES LTD"
"Bracknell Forest Council","http://opendatacommunities.org/id/unitary-authority/bracknell-forest","Bracknell Forest Council","00MA","Traffic Management & Road Safety","Traffic Management","Traffic Monitoring","Contracted Services",26/02/2014 00:00:00,"6542407",850,"CA TRAFFIC LIMITED"
"Bracknell Forest Council","http://opendatacommunities.org/id/unitary-authority/bracknell-forest","Bracknell Forest Council","00MA","Children Looked After","Fostering services","Independent Fostering (Non BFBC)","Contracted Services",24/02/2014 00:00:00,"6543300",1871.26,"CABRINI CHILDRENS SOCIETY"
"Bracknell Forest Council","http://opendatacommunities.org/id/unitary-authority/bracknell-forest","Bracknell Forest Council","00MA","Children Looked After","Fostering services","Independent Fostering (Non BFBC)","Contracted Services",28/02/2014 00:00:00,"6543493",1318.5,"CABRINI CHILDRENS SOCIETY"
"Bracknell Forest Council","http://opendatacommunities.org/id/unitary-authority/bracknell-forest","Bracknell Forest Council","00MA","Children Looked After","Fostering services","Independent Fostering (Non BFBC)","Contracted Services",10/03/2014 00:00:00,"6544416",1861.26,"CABRINI CHILDRENS SOCIETY"
"Bracknell Forest Council","http://opendatacommunities.org/id/unitary-authority/bracknell-forest","Bracknell Forest Council","00MA","Children Looked After","Fostering services","Independent Fostering (Non BFBC)","Contracted Services",26/03/2014 00:00:00,"6545372",1871.26,"CABRINI CHILDRENS SOCIETY"
"Bracknell Forest Council","http://opendatacommunities.org/id/unitary-authority/bracknell-forest","Bracknell Forest Council","00MA","Management and Support Services - CYPL","Holding Codes - net nil","Education Library Service","Office Stationery",04/04/2014 00:00:00,"30240349",19.45,"BANNER"
"Bracknell Forest Council","http://opendatacommunities.org/id/unitary-authority/bracknell-forest","Bracknell Forest Council","00MA","Management and Support Services - CYPL","Holding Codes - net nil","Education Library Service","Office Stationery",04/04/2014 00:00:00,"30240349",28.16,"BANNER"
"Bracknell Forest Council","http://opendatacommunities.org/id/unitary-authority/bracknell-forest","Bracknell Forest Council","00MA","Early Years","Children's Centres","GSSG The Sycamores Children's Centre","Office Stationery",04/04/2014 00:00:00,"30240349",0.32,"BANNER"
"Bracknell Forest Council","http://opendatacommunities.org/id/unitary-authority/bracknell-forest","Bracknell Forest Council","00MA","Early Years","Children's Centres","GSSG The Sycamores Children's Centre","Office Stationery",04/04/2014 00:00:00,"30240349",0.53,"BANNER"
"Bracknell Forest Council","http://opendatacommunities.org/id/unitary-authority/bracknell-forest","Bracknell Forest Council","00MA","Early Years","Children's Centres","GSSG The Sycamores Children's Centre","Office Stationery",04/04/2014 00:00:00,"30240349",0.55,"BANNER"
"Bracknell Forest Council","http://opendatacommunities.org/id/unitary-authority/bracknell-forest","Bracknell Forest Council","00MA","Early Years","Children's Centres","GSSG The Sycamores Children's Centre","Office Stationery",04/04/2014 00:00:00,"30240349",0.64,"BANNER"
"Bracknell Forest Council","http://opendatacommunities.org/id/unitary-authority/bracknell-forest","Bracknell Forest Council","00MA","Early Years","Children's Centres","GSSG The Sycamores Children's Centre","Office Stationery",04/04/2014 00:00:00,"30240349",0.8,"BANNER"
"Bracknell Forest Council","http://opendatacommunities.org/id/unitary-authority/bracknell-forest","Bracknell Forest Council","00MA","Early Years","Children's Centres","GSSG The Sycamores Children's Centre","Office Stationery",04/04/2014 00:00:00,"30240349",1.08,"BANNER"
"Bracknell Forest Council","http://opendatacommunities.org/id/unitary-authority/bracknell-forest","Bracknell Forest Council","00MA","Early Years","Children's Centres","The Oaks Children's Centre","Office Stationery",04/04/2014 00:00:00,"30240349",0.49,"BANNER"
"Bracknell Forest Council","http://opendatacommunities.org/id/unitary-authority/bracknell-forest","Bracknell Forest Council","00MA","Management and Support Services - CYPL","Unallocated Schools Budget Related Expenditure","Primary Resource Centre","Office Stationery",04/04/2014 00:00:00,"30240349",39.57,"BANNER"
"Bracknell Forest Council","http://opendatacommunities.org/id/unitary-authority/bracknell-forest","Bracknell Forest Council","00MA","Management and Support Services - CYPL","Unallocated Schools Budget Related Expenditure","Primary Resource Centre","Office Stationery",04/04/2014 00:00:00,"30240349",52.2,"BANNER"
"Bracknell Forest Council","http://opendatacommunities.org/id/unitary-authority/bracknell-forest","Bracknell Forest Council","00MA","Central Support Services - COF","Finance","Finance Departmental Administration","Office Stationery",04/04/2014 00:00:00,"30240349",0.7,"BANNER"
"Bracknell Forest Council","http://opendatacommunities.org/id/unitary-authority/bracknell-forest","Bracknell Forest Council","00MA","Central Support Services - COF","Finance","Finance Departmental Administration","Office Stationery",04/04/2014 00:00:00,"30240349",0.7,"BANNER"
"Bracknell Forest Council","http://opendatacommunities.org/id/unitary-authority/bracknell-forest","Bracknell Forest Council","00MA","Central Support Services - COF","Finance","Finance Departmental Administration","Office Stationery",04/04/2014 00:00:00,"30240349",0.7,"BANNER"
"Bracknell Forest Council","http://opendatacommunities.org/id/unitary-authority/bracknell-forest","Bracknell Forest Council","00MA","Central Support Services - COF","Finance","Finance Departmental Administration","Office Stationery",04/04/2014 00:00:00,"30240349",0.99,"BANNER"
"Bracknell Forest Council","http://opendatacommunities.org/id/unitary-authority/bracknell-forest","Bracknell Forest Council","00MA","Central Support Services - COF","Finance","Finance Departmental Administration","Office Stationery",04/04/2014 00:00:00,"30240349",1.3,"BANNER"
"Bracknell Forest Council","http://opendatacommunities.org/id/unitary-authority/bracknell-forest","Bracknell Forest Council","00MA","Central Support Services - COF","Personnel","Personnel Services","Office Stationery",04/04/2014 00:00:00,"30240349",54.28,"BANNER"
"Bracknell Forest Council","http://opendatacommunities.org/id/unitary-authority/bracknell-forest","Bracknell Forest Council","00MA","Other School Related Education Services","Learner Support","Learning & Achievement","Office Stationery",04/04/2014 00:00:00,"30240349",69.35,"BANNER"
"Bracknell Forest Council","http://opendatacommunities.org/id/unitary-authority/bracknell-forest","Bracknell Forest Council","00MA","Other School Related Education Services","Learner Support","Learning & Achievement","Office Stationery",04/04/2014 00:00:00,"30240349",75.46,"BANNER"
"Bracknell Forest Council","http://opendatacommunities.org/id/unitary-authority/bracknell-forest","Bracknell Forest Council","00MA","Other School Related Education Services","Learner Support","Learning & Achievement","Office Stationery",04/04/2014 00:00:00,"30240349",75.46,"BANNER"
"Bracknell Forest Council","http://opendatacommunities.org/id/unitary-authority/bracknell-forest","Bracknell Forest Council","00MA","Management and Support Services - CYPL","Holding Codes - net nil","Education Library Service","Office Stationery",04/04/2014 00:00:00,"30240349",19.07,"BANNER"
"Bracknell Forest Council","http://opendatacommunities.org/id/unitary-authority/bracknell-forest","Bracknell Forest Council","00MA","Registration Births, Deaths & Marriages","Registration births, deaths and marriages","Registration Marriages","Office Stationery",04/04/2014 00:00:00,"30240349",3.87,"BANNER"
"Bracknell Forest Council","http://opendatacommunities.org/id/unitary-authority/bracknell-forest","Bracknell Forest Council","00MA","Registration Births, Deaths & Marriages","Registration births, deaths and marriages","Registration Marriages","Office Stationery",04/04/2014 00:00:00,"30240349",7.2,"BANNER"
"Bracknell Forest Council","http://opendatacommunities.org/id/unitary-authority/bracknell-forest","Bracknell Forest Council","00MA","Registration Births, Deaths & Marriages","Registration births, deaths and marriages","Registration Marriages","Office Stationery",04/04/2014 00:00:00,"30240349",10.86,"BANNER"
"Bracknell Forest Council","http://opendatacommunities.org/id/unitary-authority/bracknell-forest","Bracknell Forest Council","00MA","Registration Births, Deaths & Marriages","Registration births, deaths and marriages","Registration Marriages","Office Stationery",04/04/2014 00:00:00,"30240349",13.68,"BANNER"
"Bracknell Forest Council","http://opendatacommunities.org/id/unitary-authority/bracknell-forest","Bracknell Forest Council","00MA","Registration Births, Deaths & Marriages","Registration births, deaths and marriages","Registration Marriages","Office Stationery",04/04/2014 00:00:00,"30240349",49.92,"BANNER"
"Bracknell Forest Council","http://opendatacommunities.org/id/unitary-authority/bracknell-forest","Bracknell Forest Council","00MA","Conducting Elections","Other Elections","Elections - European","Office Stationery",04/04/2014 00:00:00,"30240349",108.28,"BANNER"
"Bracknell Forest Council","http://opendatacommunities.org/id/unitary-authority/bracknell-forest","Bracknell Forest Council","00MA","Services to Young People","Other Services to Young People","Great Hollands Youth Centre","Office Stationery",04/04/2014 00:00:00,"30240349",1.32,"BANNER"
"Bracknell Forest Council","http://opendatacommunities.org/id/unitary-authority/bracknell-forest","Bracknell Forest Council","00MA","Services to Young People","Other Services to Young People","Great Hollands Youth Centre","Office Stationery",04/04/2014 00:00:00,"30240349",1.68,"BANNER"
"Bracknell Forest Council","http://opendatacommunities.org/id/unitary-authority/bracknell-forest","Bracknell Forest Council","00MA","Services to Young People","Other Services to Young People","Great Hollands Youth Centre","Office Stationery",04/04/2014 00:00:00,"30240349",2.28,"BANNER"
"Bracknell Forest Council","http://opendatacommunities.org/id/unitary-authority/bracknell-forest","Bracknell Forest Council","00MA","Services to Young People","Other Services to Young People","Great Hollands Youth Centre","Office Stationery",04/04/2014 00:00:00,"30240349",2.34,"BANNER"
"Bracknell Forest Council","http://opendatacommunities.org/id/unitary-authority/bracknell-forest","Bracknell Forest Council","00MA","Services to Young People","Other Services to Young People","Great Hollands Youth Centre","Office Stationery",04/04/2014 00:00:00,"30240349",3.52,"BANNER"
"Bracknell Forest Council","http://opendatacommunities.org/id/unitary-authority/bracknell-forest","Bracknell Forest Council","00MA","Services to Young People","Other Services to Young People","Great Hollands Youth Centre","Office Stationery",04/04/2014 00:00:00,"30240349",4.23,"BANNER"
"Bracknell Forest Council","http://opendatacommunities.org/id/unitary-authority/bracknell-forest","Bracknell Forest Council","00MA","Services to Young People","Other Services to Young People","Great Hollands Youth Centre","Office Stationery",04/04/2014 00:00:00,"30240349",5.73,"BANNER"
"Bracknell Forest Council","http://opendatacommunities.org/id/unitary-authority/bracknell-forest","Bracknell Forest Council","00MA","Other School Related Education Services","Learner Support","Learning & Achievement","Office Stationery",04/04/2014 00:00:00,"30240349",4.8,"BANNER"
"Bracknell Forest Council","http://opendatacommunities.org/id/unitary-authority/bracknell-forest","Bracknell Forest Council","00MA","Other School Related Education Services","Learner Support","Learning & Achievement","Office Stationery",04/04/2014 00:00:00,"30240349",5.84,"BANNER"
"Bracknell Forest Council","http://opendatacommunities.org/id/unitary-authority/bracknell-forest","Bracknell Forest Council","00MA","Other School Related Education Services","Learner Support","Learning & Achievement","Office Stationery",04/04/2014 00:00:00,"30240349",7.4,"BANNER"
"Bracknell Forest Council","http://opendatacommunities.org/id/unitary-authority/bracknell-forest","Bracknell Forest Council","00MA","Other School Related Education Services","Learner Support","Learning & Achievement","Office Stationery",04/04/2014 00:00:00,"30240349",9.37,"BANNER"
"Bracknell Forest Council","http://opendatacommunities.org/id/unitary-authority/bracknell-forest","Bracknell Forest Council","00MA","Other School Related Education Services","Learner Support","Learning & Achievement","Office Stationery",04/04/2014 00:00:00,"30240349",10.57,"BANNER"
"Bracknell Forest Council","http://opendatacommunities.org/id/unitary-authority/bracknell-forest","Bracknell Forest Council","00MA","Other School Related Education Services","Learner Support","Learning & Achievement","Office Stationery",04/04/2014 00:00:00,"30240349",11.68,"BANNER"
"Bracknell Forest Council","http://opendatacommunities.org/id/unitary-authority/bracknell-forest","Bracknell Forest Council","00MA","Other School Related Education Services","Learner Support","Learning & Achievement","Office Stationery",04/04/2014 00:00:00,"30240349",11.68,"BANNER"
"Bracknell Forest Council","http://opendatacommunities.org/id/unitary-authority/bracknell-forest","Bracknell Forest Council","00MA","Early Years","Children's Centres","The Oaks Children's Centre","Office Stationery",04/04/2014 00:00:00,"30240349",26.38,"BANNER"
"Bracknell Forest Council","http://opendatacommunities.org/id/unitary-authority/bracknell-forest","Bracknell Forest Council","00MA","Early Years","Children's Centres","The Alders Children's Centre","Office Stationery",04/04/2014 00:00:00,"30240349",0.52,"BANNER"
"Bracknell Forest Council","http://opendatacommunities.org/id/unitary-authority/bracknell-forest","Bracknell Forest Council","00MA","Early Years","Children's Centres","The Alders Children's Centre","Office Stationery",04/04/2014 00:00:00,"30240349",1.04,"BANNER"
"Bracknell Forest Council","http://opendatacommunities.org/id/unitary-authority/bracknell-forest","Bracknell Forest Council","00MA","Early Years","Children's Centres","The Alders Children's Centre","Office Stationery",04/04/2014 00:00:00,"30240349",1.4,"BANNER"
"Bracknell Forest Council","http://opendatacommunities.org/id/unitary-authority/bracknell-forest","Bracknell Forest Council","00MA","Early Years","Children's Centres","The Alders Children's Centre","Office Stationery",04/04/2014 00:00:00,"30240349",3.18,"BANNER"
"Bracknell Forest Council","http://opendatacommunities.org/id/unitary-authority/bracknell-forest","Bracknell Forest Council","00MA","Early Years","Children's Centres","The Alders Children's Centre","Office Stationery",04/04/2014 00:00:00,"30240349",4.43,"BANNER"
"Bracknell Forest Council","http://opendatacommunities.org/id/unitary-authority/bracknell-forest","Bracknell Forest Council","00MA","Early Years","Children's Centres","The Oaks Children's Centre","Office Stationery",04/04/2014 00:00:00,"30240349",52.68,"BANNER"
"Bracknell Forest Council","http://opendatacommunities.org/id/unitary-authority/bracknell-forest","Bracknell Forest Council","00MA","Mental Health Needs (Under 65)","Assessment & Care Management","CMHT - Q159M","Office Stationery",04/04/2014 00:00:00,"30240349",13.22,"BANNER"
"Bracknell Forest Council","http://opendatacommunities.org/id/unitary-authority/bracknell-forest","Bracknell Forest Council","00MA","Mental Health Needs (Under 65)","Assessment & Care Management","CMHT - Q159M","Office Stationery",04/04/2014 00:00:00,"30240349",13.22,"BANNER"
"Bracknell Forest Council","http://opendatacommunities.org/id/unitary-authority/bracknell-forest","Bracknell Forest Council","00MA","Central Support Services - COF","Finance","Finance Departmental Administration","Office Stationery",04/04/2014 00:00:00,"30240349",4.37,"BANNER"
"Bracknell Forest Council","http://opendatacommunities.org/id/unitary-authority/bracknell-forest","Bracknell Forest Council","00MA","Central Support Services - COF","Finance","Finance Departmental Administration","Office Stationery",04/04/2014 00:00:00,"30240349",4.4,"BANNER"
"Bracknell Forest Council","http://opendatacommunities.org/id/unitary-authority/bracknell-forest","Bracknell Forest Council","00MA","Central Support Services - COF","Finance","Finance Departmental Administration","Office Stationery",04/04/2014 00:00:00,"30240349",4.52,"BANNER"
"Bracknell Forest Council","http://opendatacommunities.org/id/unitary-authority/bracknell-forest","Bracknell Forest Council","00MA","Central Support Services - COF","Finance","Finance Departmental Administration","Office Stationery",04/04/2014 00:00:00,"30240349",8.04,"BANNER"
"Bracknell Forest Council","http://opendatacommunities.org/id/unitary-authority/bracknell-forest","Bracknell Forest Council","00MA","Central Support Services - COF","Finance","Finance Departmental Administration","Office Stationery",04/04/2014 00:00:00,"30240349",10.73,"BANNER"
"Bracknell Forest Council","http://opendatacommunities.org/id/unitary-authority/bracknell-forest","Bracknell Forest Council","00MA","Central Support Services - COF","Finance","Finance Departmental Administration","Office Stationery",04/04/2014 00:00:00,"30240349",10.8,"BANNER"
"Bracknell Forest Council","http://opendatacommunities.org/id/unitary-authority/bracknell-forest","Bracknell Forest Council","00MA","Central Support Services - COF","Finance","Finance Departmental Administration","Office Stationery",04/04/2014 00:00:00,"30240349",11.64,"BANNER"
"Bracknell Forest Council","http://opendatacommunities.org/id/unitary-authority/bracknell-forest","Bracknell Forest Council","00MA","Mental Health Needs (Under 65)","Assessment & Care Management","CMHT - Q159M","Office Stationery",04/04/2014 00:00:00,"30240349",17.32,"BANNER"
"Bracknell Forest Council","http://opendatacommunities.org/id/unitary-authority/bracknell-forest","Bracknell Forest Council","00MA","Mental Health Needs (Under 65)","Assessment & Care Management","CMHT - Q159M","Office Stationery",04/04/2014 00:00:00,"30240349",20.85,"BANNER"
"Bracknell Forest Council","http://opendatacommunities.org/id/unitary-authority/bracknell-forest","Bracknell Forest Council","00MA","Service Management & Support Services","Service Management & Support Services","Departmental Office Services","Office Stationery",04/04/2014 00:00:00,"30240349",29.68,"BANNER"
"Bracknell Forest Council","http://opendatacommunities.org/id/unitary-authority/bracknell-forest","Bracknell Forest Council","00MA","Service Management & Support Services","Service Management & Support Services","Departmental Office Services","Office Stationery",04/04/2014 00:00:00,"30240349",31.6,"BANNER"
"Bracknell Forest Council","http://opendatacommunities.org/id/unitary-authority/bracknell-forest","Bracknell Forest Council","00MA","Service Management & Support Services","Service Management & Support Services","Departmental Office Services","Office Stationery",04/04/2014 00:00:00,"30240349",34.75,"BANNER"
"Bracknell Forest Council","http://opendatacommunities.org/id/unitary-authority/bracknell-forest","Bracknell Forest Council","00MA","Service Management & Support Services","Service Management & Support Services","Departmental Office Services","Office Stationery",04/04/2014 00:00:00,"30240349",35.08,"BANNER"
"Bracknell Forest Council","http://opendatacommunities.org/id/unitary-authority/bracknell-forest","Bracknell Forest Council","00MA","Service Management & Support Services","Service Management & Support Services","Departmental Office Services","Office Stationery",04/04/2014 00:00:00,"30240349",37.44,"BANNER"
"Bracknell Forest Council","http://opendatacommunities.org/id/unitary-authority/bracknell-forest","Bracknell Forest Council","00MA","Service Management & Support Services","Service Management & Support Services","Departmental Office Services","Office Stationery",04/04/2014 00:00:00,"30240349",39.05,"BANNER"
"Bracknell Forest Council","http://opendatacommunities.org/id/unitary-authority/bracknell-forest","Bracknell Forest Council","00MA","Service Management & Support Services","Service Management & Support Services","Departmental Office Services","Office Stationery",04/04/2014 00:00:00,"30240349",62.4,"BANNER"
"Bracknell Forest Council","http://opendatacommunities.org/id/unitary-authority/bracknell-forest","Bracknell Forest Council","00MA","Service Management & Support Services","Service Management & Support Services","Departmental Office Services","Office Stationery",04/04/2014 00:00:00,"30240349",0.99,"BANNER"
"Bracknell Forest Council","http://opendatacommunities.org/id/unitary-authority/bracknell-forest","Bracknell Forest Council","00MA","Service Management & Support Services","Service Management & Support Services","Departmental Office Services","Office Stationery",04/04/2014 00:00:00,"30240349",1,"BANNER"
"Bracknell Forest Council","http://opendatacommunities.org/id/unitary-authority/bracknell-forest","Bracknell Forest Council","00MA","Service Management & Support Services","Service Management & Support Services","Departmental Office Services","Office Stationery",04/04/2014 00:00:00,"30240349",1.01,"BANNER"
"Bracknell Forest Council","http://opendatacommunities.org/id/unitary-authority/bracknell-forest","Bracknell Forest Council","00MA","Service Management & Support Services","Service Management & Support Services","Departmental Office Services","Office Stationery",04/04/2014 00:00:00,"30240349",1.2,"BANNER"
"Bracknell Forest Council","http://opendatacommunities.org/id/unitary-authority/bracknell-forest","Bracknell Forest Council","00MA","Service Management & Support Services","Service Management & Support Services","Departmental Office Services","Office Stationery",04/04/2014 00:00:00,"30240349",1.32,"BANNER"
"Bracknell Forest Council","http://opendatacommunities.org/id/unitary-authority/bracknell-forest","Bracknell Forest Council","00MA","Service Management & Support Services","Service Management & Support Services","Departmental Office Services","Office Stationery",04/04/2014 00:00:00,"30240349",1.42,"BANNER"
"Bracknell Forest Council","http://opendatacommunities.org/id/unitary-authority/bracknell-forest","Bracknell Forest Council","00MA","Service Management & Support Services","Service Management & Support Services","Departmental Office Services","Office Stationery",04/04/2014 00:00:00,"30240349",1.66,"BANNER"
"Bracknell Forest Council","http://opendatacommunities.org/id/unitary-authority/bracknell-forest","Bracknell Forest Council","00MA","Central Support Services - COF","Information Technology","Information Technology - Management","Office Stationery",04/04/2014 00:00:00,"30240349",5.01,"BANNER"
"Bracknell Forest Council","http://opendatacommunities.org/id/unitary-authority/bracknell-forest","Bracknell Forest Council","00MA","Democratic Representation & Management COF","Democratic Representation & Management - COF","Committee Servicing","Office Stationery",04/04/2014 00:00:00,"30240349",2.67,"BANNER"
"Bracknell Forest Council","http://opendatacommunities.org/id/unitary-authority/bracknell-forest","Bracknell Forest Council","00MA","Democratic Representation & Management COF","Democratic Representation & Management - COF","Committee Servicing","Office Stationery",04/04/2014 00:00:00,"30240349",2.81,"BANNER"
"Bracknell Forest Council","http://opendatacommunities.org/id/unitary-authority/bracknell-forest","Bracknell Forest Council","00MA","Central Support Services - COF","Finance","Finance Departmental Administration","Office Stationery",04/04/2014 00:00:00,"30240349",1.54,"BANNER"
"Bracknell Forest Council","http://opendatacommunities.org/id/unitary-authority/bracknell-forest","Bracknell Forest Council","00MA","Early Years","Children's Centres","The Alders Children's Centre","Office Stationery",04/04/2014 00:00:00,"30240349",80.21,"BANNER"
"Bracknell Forest Council","http://opendatacommunities.org/id/unitary-authority/bracknell-forest","Bracknell Forest Council","00MA","Early Years","Children's Centres","The Alders Children's Centre","Office Stationery",04/04/2014 00:00:00,"30240349",89.01,"BANNER"
"Bracknell Forest Council","http://opendatacommunities.org/id/unitary-authority/bracknell-forest","Bracknell Forest Council","00MA","Central Support Services - COF","Information Technology","Information Technology - Management","Office Stationery",04/04/2014 00:00:00,"30240349",7.1,"BANNER"
"Bracknell Forest Council","http://opendatacommunities.org/id/unitary-authority/bracknell-forest","Bracknell Forest Council","00MA","Central Support Services - COF","Information Technology","Information Technology - Management","Office Stationery",04/04/2014 00:00:00,"30240349",16.41,"BANNER"
"Bracknell Forest Council","http://opendatacommunities.org/id/unitary-authority/bracknell-forest","Bracknell Forest Council","00MA","Central Support Services - COF","Information Technology","Information Technology - Management","Office Stationery",04/04/2014 00:00:00,"30240349",19.52,"BANNER"
"Bracknell Forest Council","http://opendatacommunities.org/id/unitary-authority/bracknell-forest","Bracknell Forest Council","00MA","Central Support Services - COF","Information Technology","Information Technology - Management","Office Stationery",04/04/2014 00:00:00,"30240349",20.04,"BANNER"
"Bracknell Forest Council","http://opendatacommunities.org/id/unitary-authority/bracknell-forest","Bracknell Forest Council","00MA","Central Support Services - COF","Information Technology","Information Technology - Management","Office Stationery",04/04/2014 00:00:00,"30240349",20.04,"BANNER"
"Bracknell Forest Council","http://opendatacommunities.org/id/unitary-authority/bracknell-forest","Bracknell Forest Council","00MA","Central Support Services - COF","Information Technology","Information Technology - Management","Office Stationery",04/04/2014 00:00:00,"30240349",21.88,"BANNER"
"Bracknell Forest Council","http://opendatacommunities.org/id/unitary-authority/bracknell-forest","Bracknell Forest Council","00MA","Service Management & Support Services","Service Management & Support Services","Departmental Office Services","Office Stationery",04/04/2014 00:00:00,"30240349",1.8,"BANNER"
"Bracknell Forest Council","http://opendatacommunities.org/id/unitary-authority/bracknell-forest","Bracknell Forest Council","00MA","Service Management & Support Services","Service Management & Support Services","Departmental Office Services","Office Stationery",04/04/2014 00:00:00,"30240349",1.8,"BANNER"
"Bracknell Forest Council","http://opendatacommunities.org/id/unitary-authority/bracknell-forest","Bracknell Forest Council","00MA","Services to Young People","Other Services to Young People","Great Hollands Youth Centre","Office Stationery",04/04/2014 00:00:00,"30240349",8.12,"BANNER"
"Bracknell Forest Council","http://opendatacommunities.org/id/unitary-authority/bracknell-forest","Bracknell Forest Council","00MA","Services to Young People","Other Services to Young People","Great Hollands Youth Centre","Office Stationery",04/04/2014 00:00:00,"30240349",9.16,"BANNER"
"Bracknell Forest Council","http://opendatacommunities.org/id/unitary-authority/bracknell-forest","Bracknell Forest Council","00MA","Services to Young People","Other Services to Young People","Great Hollands Youth Centre","Office Stationery",04/04/2014 00:00:00,"30240349",13.5,"BANNER"
"Bracknell Forest Council","http://opendatacommunities.org/id/unitary-authority/bracknell-forest","Bracknell Forest Council","00MA","Services to Young People","Other Services to Young People","Great Hollands Youth Centre","Office Stationery",04/04/2014 00:00:00,"30240349",15.48,"BANNER"
"Bracknell Forest Council","http://opendatacommunities.org/id/unitary-authority/bracknell-forest","Bracknell Forest Council","00MA","Services to Young People","Other Services to Young People","Great Hollands Youth Centre","Office Stationery",04/04/2014 00:00:00,"30240349",56.64,"BANNER"
"Bracknell Forest Council","http://opendatacommunities.org/id/unitary-authority/bracknell-forest","Bracknell Forest Council","00MA","Service Management & Support Services","Service Management & Support Services","Departmental Office Services","Office Stationery",04/04/2014 00:00:00,"30240349",1.84,"BANNER"
"Bracknell Forest Council","http://opendatacommunities.org/id/unitary-authority/bracknell-forest","Bracknell Forest Council","00MA","Service Management & Support Services","Service Management & Support Services","Departmental Office Services","Office Stationery",04/04/2014 00:00:00,"30240349",2.02,"BANNER"
"Bracknell Forest Council","http://opendatacommunities.org/id/unitary-authority/bracknell-forest","Bracknell Forest Council","00MA","Service Management & Support Services","Service Management & Support Services","Departmental Office Services","Office Stationery",04/04/2014 00:00:00,"30240349",2.26,"BANNER"
"Bracknell Forest Council","http://opendatacommunities.org/id/unitary-authority/bracknell-forest","Bracknell Forest Council","00MA","Service Management & Support Services","Service Management & Support Services","Departmental Office Services","Office Stationery",04/04/2014 00:00:00,"30240349",2.9,"BANNER"
"Bracknell Forest Council","http://opendatacommunities.org/id/unitary-authority/bracknell-forest","Bracknell Forest Council","00MA","Service Management & Support Services","Service Management & Support Services","Departmental Office Services","Office Stationery",04/04/2014 00:00:00,"30240349",2.9,"BANNER"
"Bracknell Forest Council","http://opendatacommunities.org/id/unitary-authority/bracknell-forest","Bracknell Forest Council","00MA","Service Management & Support Services","Service Management & Support Services","Departmental Office Services","Office Stationery",04/04/2014 00:00:00,"30240349",4.89,"BANNER"
"Bracknell Forest Council","http://opendatacommunities.org/id/unitary-authority/bracknell-forest","Bracknell Forest Council","00MA","Service Management & Support Services","Service Management & Support Services","Departmental Office Services","Office Stationery",04/04/2014 00:00:00,"30240349",5.65,"BANNER"
"Bracknell Forest Council","http://opendatacommunities.org/id/unitary-authority/bracknell-forest","Bracknell Forest Council","00MA","Service Management & Support Services","Service Management & Support Services","Departmental Office Services","Office Stationery",04/04/2014 00:00:00,"30240349",5.68,"BANNER"
"Bracknell Forest Council","http://opendatacommunities.org/id/unitary-authority/bracknell-forest","Bracknell Forest Council","00MA","Service Management & Support Services","Service Management & Support Services","Departmental Office Services","Office Stationery",04/04/2014 00:00:00,"30240349",5.68,"BANNER"
"Bracknell Forest Council","http://opendatacommunities.org/id/unitary-authority/bracknell-forest","Bracknell Forest Council","00MA","Youth Justice","Youth Offender Teams","Youth Offending Team","Computer Software Maintenance",14/03/2014 00:00:00,"6543757",5204.85,"CACI LIMITED"
"Bracknell Forest Council","http://opendatacommunities.org/id/unitary-authority/bracknell-forest","Bracknell Forest Council","00MA","Youth Justice","Youth Offender Teams","Youth Offending Team","Computer Software Maintenance",14/03/2014 00:00:00,"6543762",5452,"CACI LIMITED"
"Bracknell Forest Council","http://opendatacommunities.org/id/unitary-authority/bracknell-forest","Bracknell Forest Council","00MA","Service Management & Support Services","Service Management & Support Services","Departmental IT","Computer Software Maintenance",28/02/2014 00:00:00,"6542246",7935,"CADLINE LTD"
"Bracknell Forest Council","http://opendatacommunities.org/id/unitary-authority/bracknell-forest","Bracknell Forest Council","00MA","Family Support Services","Other family support services","C&F Section 17 Under 11's Team","Other Support to Clients",31/01/2014 00:00:00,"6542281",3715.99,"CALL US"
"Bracknell Forest Council","http://opendatacommunities.org/id/unitary-authority/bracknell-forest","Bracknell Forest Council","00MA","Children Looked After","Residential care","Children's Home Placements","Voluntary Sector Service Providers",28/02/2014 00:00:00,"6545088",2667,"CALL US"
"Bracknell Forest Council","http://opendatacommunities.org/id/unitary-authority/bracknell-forest","Bracknell Forest Council","00MA","Family Support Services","Other family support services","C&F Section 17 Under 11's Team","Contracted Services",28/02/2014 00:00:00,"6545941",2130.85,"CALL US"
"Bracknell Forest Council","http://opendatacommunities.org/id/unitary-authority/bracknell-forest","Bracknell Forest Council","00MA","Recreation, Sports and Leisure","Indoor Sports & Recreation Facilities","Recreation Staff Accommodation","Gas",17/03/2014 00:00:00,"6544865",780.49,"CALOR GAS LTD"
"Bracknell Forest Council","http://opendatacommunities.org/id/unitary-authority/bracknell-forest","Bracknell Forest Council","00MA","Older People (Aged 65 or Over)","Residential Care Home Placements","Residential Placements MH 65 and Over - Q151B","Contracted Services",11/03/2014 00:00:00,"30238130",2433.12,"CAMBRIDGE HOUSE RESIDENTIAL HOME"
"Bracknell Forest Council","http://opendatacommunities.org/id/unitary-authority/bracknell-forest","Bracknell Forest Council","00MA","Older People (Aged 65 or Over)","Residential Care Home Placements","Residential Placements-Elderly - Q210B","Contracted Services",11/03/2014 00:00:00,"30238130",2160,"CAMBRIDGE HOUSE RESIDENTIAL HOME"
"Bracknell Forest Council","http://opendatacommunities.org/id/unitary-authority/bracknell-forest","Bracknell Forest Council","00MA","Older People (Aged 65 or Over)","Residential Care Home Placements","Residential EMI Placements - Elderly - Q111B","Contracted Services",11/03/2014 00:00:00,"30238130",2400,"CAMBRIDGE HOUSE RESIDENTIAL HOME"
"Bracknell Forest Council","http://opendatacommunities.org/id/unitary-authority/bracknell-forest","Bracknell Forest Council","00MA","Older People (Aged 65 or Over)","Residential Care Home Placements","Residential EMI Placements - Elderly - Q111B","Contracted Services",11/03/2014 00:00:00,"30238130",2477.67,"CAMBRIDGE HOUSE RESIDENTIAL HOME"
"Bracknell Forest Council","http://opendatacommunities.org/id/unitary-authority/bracknell-forest","Bracknell Forest Council","00MA","Older People (Aged 65 or Over)","Residential Care Home Placements","Residential EMI Placements - Elderly - Q111B","Contracted Services",11/03/2014 00:00:00,"30238130",2106.32,"CAMBRIDGE HOUSE RESIDENTIAL HOME"
"Bracknell Forest Council","http://opendatacommunities.org/id/unitary-authority/bracknell-forest","Bracknell Forest Council","00MA","Older People (Aged 65 or Over)","Residential Care Home Placements","Residential EMI Placements - Elderly - Q111B","Contracted Services",11/03/2014 00:00:00,"30238130",2300.12,"CAMBRIDGE HOUSE RESIDENTIAL HOME"
"Bracknell Forest Council","http://opendatacommunities.org/id/unitary-authority/bracknell-forest","Bracknell Forest Council","00MA","Service Management & Support Services","Service Management & Support Services","Departmental Office Services","Office Stationery",04/04/2014 00:00:00,"30240349",6.29,"BANNER"
"Bracknell Forest Council","http://opendatacommunities.org/id/unitary-authority/bracknell-forest","Bracknell Forest Council","00MA","Service Management & Support Services","Service Management & Support Services","Departmental Office Services","Office Stationery",04/04/2014 00:00:00,"30240349",7.42,"BANNER"
"Bracknell Forest Council","http://opendatacommunities.org/id/unitary-authority/bracknell-forest","Bracknell Forest Council","00MA","Service Management & Support Services","Service Management & Support Services","Departmental Office Services","Office Stationery",04/04/2014 00:00:00,"30240349",7.66,"BANNER"
"Bracknell Forest Council","http://opendatacommunities.org/id/unitary-authority/bracknell-forest","Bracknell Forest Council","00MA","Other Adult Services","Substance Abuse (Addictions)","New Hope Running Costs - Q253D","Office Stationery",04/04/2014 00:00:00,"30240349",5.26,"BANNER"
"Bracknell Forest Council","http://opendatacommunities.org/id/unitary-authority/bracknell-forest","Bracknell Forest Council","00MA","Other School Related Education Services","Learner Support","Learning & Achievement","Office Stationery",04/04/2014 00:00:00,"30240349",150.92,"BANNER"
"Bracknell Forest Council","http://opendatacommunities.org/id/unitary-authority/bracknell-forest","Bracknell Forest Council","00MA","Other School Related Education Services","Learner Support","Learning & Achievement","Office Stationery",04/04/2014 00:00:00,"30240349",173.1,"BANNER"
"Bracknell Forest Council","http://opendatacommunities.org/id/unitary-authority/bracknell-forest","Bracknell Forest Council","00MA","Other School Related Education Services","Learner Support","Learning & Achievement","Office Stationery",04/04/2014 00:00:00,"30240349",1.54,"BANNER"
"Bracknell Forest Council","http://opendatacommunities.org/id/unitary-authority/bracknell-forest","Bracknell Forest Council","00MA","Other School Related Education Services","Learner Support","Learning & Achievement","Office Stationery",04/04/2014 00:00:00,"30240349",2.49,"BANNER"
"Bracknell Forest Council","http://opendatacommunities.org/id/unitary-authority/bracknell-forest","Bracknell Forest Council","00MA","Management and Support Services - CYPL","Unallocated Schools Budget Related Expenditure","Primary Resource Centre","Office Stationery",04/04/2014 00:00:00,"30240349",7,"BANNER"
"Bracknell Forest Council","http://opendatacommunities.org/id/unitary-authority/bracknell-forest","Bracknell Forest Council","00MA","Management and Support Services - CYPL","Unallocated Schools Budget Related Expenditure","Primary Resource Centre","Office Stationery",04/04/2014 00:00:00,"30240349",9.22,"BANNER"
"Bracknell Forest Council","http://opendatacommunities.org/id/unitary-authority/bracknell-forest","Bracknell Forest Council","00MA","Management and Support Services - CYPL","Unallocated Schools Budget Related Expenditure","Primary Resource Centre","Office Stationery",04/04/2014 00:00:00,"30240349",10.47,"BANNER"
"Bracknell Forest Council","http://opendatacommunities.org/id/unitary-authority/bracknell-forest","Bracknell Forest Council","00MA","Management and Support Services - CYPL","Unallocated Schools Budget Related Expenditure","Primary Resource Centre","Office Stationery",04/04/2014 00:00:00,"30240349",20,"BANNER"
"Bracknell Forest Council","http://opendatacommunities.org/id/unitary-authority/bracknell-forest","Bracknell Forest Council","00MA","Service Management & Support Services","Service Management & Support Services","Departmental Office Services","Office Stationery",04/04/2014 00:00:00,"30240349",8.04,"BANNER"
"Bracknell Forest Council","http://opendatacommunities.org/id/unitary-authority/bracknell-forest","Bracknell Forest Council","00MA","Service Management & Support Services","Service Management & Support Services","Departmental Office Services","Office Stationery",04/04/2014 00:00:00,"30240349",8.66,"BANNER"
"Bracknell Forest Council","http://opendatacommunities.org/id/unitary-authority/bracknell-forest","Bracknell Forest Council","00MA","Older People (Aged 65 or Over)","Residential Care Home Placements","Residential EMI Placements - Elderly - Q111B","Contracted Services",11/03/2014 00:00:00,"30238130",4181.36,"CAMBRIDGE HOUSE RESIDENTIAL HOME"
"Bracknell Forest Council","http://opendatacommunities.org/id/unitary-authority/bracknell-forest","Bracknell Forest Council","00MA","Older People (Aged 65 or Over)","Residential Care Home Placements","Residential EMI Placements - Elderly - Q111B","Contracted Services",11/03/2014 00:00:00,"30238130",2200,"CAMBRIDGE HOUSE RESIDENTIAL HOME"
"Bracknell Forest Council","http://opendatacommunities.org/id/unitary-authority/bracknell-forest","Bracknell Forest Council","00MA","Older People (Aged 65 or Over)","Residential Care Home Placements","Residential EMI Placements - Elderly - Q111B","Contracted Services",09/04/2014 00:00:00,"30240736",2430.85,"CAMBRIDGE HOUSE RESIDENTIAL HOME"
"Bracknell Forest Council","http://opendatacommunities.org/id/unitary-authority/bracknell-forest","Bracknell Forest Council","00MA","Older People (Aged 65 or Over)","Residential Care Home Placements","Residential EMI Placements - Elderly - Q111B","Contracted Services",09/04/2014 00:00:00,"30240736",2228.28,"CAMBRIDGE HOUSE RESIDENTIAL HOME"
"Bracknell Forest Council","http://opendatacommunities.org/id/unitary-authority/bracknell-forest","Bracknell Forest Council","00MA","Older People (Aged 65 or Over)","Residential Care Home Placements","Residential EMI Placements - Elderly - Q111B","Contracted Services",09/04/2014 00:00:00,"30240736",2430.85,"CAMBRIDGE HOUSE RESIDENTIAL HOME"
"Bracknell Forest Council","http://opendatacommunities.org/id/unitary-authority/bracknell-forest","Bracknell Forest Council","00MA","Older People (Aged 65 or Over)","Residential Care Home Placements","Residential EMI Placements - Elderly - Q111B","Contracted Services",09/04/2014 00:00:00,"30240736",-2217.97,"CAMBRIDGE HOUSE RESIDENTIAL HOME"
"Bracknell Forest Council","http://opendatacommunities.org/id/unitary-authority/bracknell-forest","Bracknell Forest Council","00MA","Older People (Aged 65 or Over)","Residential Care Home Placements","Residential EMI Placements - Elderly - Q111B","Contracted Services",09/04/2014 00:00:00,"30240736",4235.14,"CAMBRIDGE HOUSE RESIDENTIAL HOME"
"Bracknell Forest Council","http://opendatacommunities.org/id/unitary-authority/bracknell-forest","Bracknell Forest Council","00MA","Older People (Aged 65 or Over)","Residential Care Home Placements","Residential EMI Placements - Elderly - Q111B","Contracted Services",09/04/2014 00:00:00,"30240736",2133.41,"CAMBRIDGE HOUSE RESIDENTIAL HOME"
"Bracknell Forest Council","http://opendatacommunities.org/id/unitary-authority/bracknell-forest","Bracknell Forest Council","00MA","Older People (Aged 65 or Over)","Residential Care Home Placements","Residential Placements-Elderly - Q210B","Contracted Services",09/04/2014 00:00:00,"30240736",2187.77,"CAMBRIDGE HOUSE RESIDENTIAL HOME"
"Bracknell Forest Council","http://opendatacommunities.org/id/unitary-authority/bracknell-forest","Bracknell Forest Council","00MA","Older People (Aged 65 or Over)","Residential Care Home Placements","Residential Placements MH 65 and Over - Q151B","Contracted Services",09/04/2014 00:00:00,"30240736",2464.41,"CAMBRIDGE HOUSE RESIDENTIAL HOME"
"Bracknell Forest Council","http://opendatacommunities.org/id/unitary-authority/bracknell-forest","Bracknell Forest Council","00MA","Other Children's & Families Services","Adoption Services","Adoption Improvement Grant","Other Support to Clients",07/02/2014 00:00:00,"6541648",576,"CANTLEY SERVICES LTD"
"Bracknell Forest Council","http://opendatacommunities.org/id/unitary-authority/bracknell-forest","Bracknell Forest Council","00MA","Service Management & Support Services","Service Management & Support Services","Departmental Office Services","Office Stationery",04/04/2014 00:00:00,"30240349",8.74,"BANNER"
"Bracknell Forest Council","http://opendatacommunities.org/id/unitary-authority/bracknell-forest","Bracknell Forest Council","00MA","Service Management & Support Services","Service Management & Support Services","Departmental Office Services","Office Stationery",04/04/2014 00:00:00,"30240349",8.78,"BANNER"
"Bracknell Forest Council","http://opendatacommunities.org/id/unitary-authority/bracknell-forest","Bracknell Forest Council","00MA","Service Management & Support Services","Service Management & Support Services","Departmental Office Services","Office Stationery",04/04/2014 00:00:00,"30240349",9.26,"BANNER"
"Bracknell Forest Council","http://opendatacommunities.org/id/unitary-authority/bracknell-forest","Bracknell Forest Council","00MA","Service Management & Support Services","Service Management & Support Services","Departmental Office Services","Office Stationery",04/04/2014 00:00:00,"30240349",11.4,"BANNER"
"Bracknell Forest Council","http://opendatacommunities.org/id/unitary-authority/bracknell-forest","Bracknell Forest Council","00MA","Service Management & Support Services","Service Management & Support Services","Departmental Office Services","Office Stationery",04/04/2014 00:00:00,"30240349",13.11,"BANNER"
"Bracknell Forest Council","http://opendatacommunities.org/id/unitary-authority/bracknell-forest","Bracknell Forest Council","00MA","Service Management & Support Services","Service Management & Support Services","Departmental Office Services","Office Stationery",04/04/2014 00:00:00,"30240349",3.26,"BANNER"
"Bracknell Forest Council","http://opendatacommunities.org/id/unitary-authority/bracknell-forest","Bracknell Forest Council","00MA","Service Management & Support Services","Service Management & Support Services","Departmental Office Services","Office Stationery",04/04/2014 00:00:00,"30240349",3.39,"BANNER"
"Bracknell Forest Council","http://opendatacommunities.org/id/unitary-authority/bracknell-forest","Bracknell Forest Council","00MA","Service Management & Support Services","Service Management & Support Services","Departmental Office Services","Office Stationery",04/04/2014 00:00:00,"30240349",3.52,"BANNER"
"Bracknell Forest Council","http://opendatacommunities.org/id/unitary-authority/bracknell-forest","Bracknell Forest Council","00MA","Service Management & Support Services","Service Management & Support Services","Departmental Office Services","Office Stationery",04/04/2014 00:00:00,"30240349",3.63,"BANNER"
"Bracknell Forest Council","http://opendatacommunities.org/id/unitary-authority/bracknell-forest","Bracknell Forest Council","00MA","Service Management & Support Services","Service Management & Support Services","Departmental Office Services","Office Stationery",04/04/2014 00:00:00,"30240349",3.93,"BANNER"
"Bracknell Forest Council","http://opendatacommunities.org/id/unitary-authority/bracknell-forest","Bracknell Forest Council","00MA","Service Management & Support Services","Service Management & Support Services","Departmental Office Services","Office Stationery",04/04/2014 00:00:00,"30240349",4.72,"BANNER"
"Bracknell Forest Council","http://opendatacommunities.org/id/unitary-authority/bracknell-forest","Bracknell Forest Council","00MA","Service Management & Support Services","Service Management & Support Services","Departmental Office Services","Office Stationery",04/04/2014 00:00:00,"30240349",4.88,"BANNER"
"Bracknell Forest Council","http://opendatacommunities.org/id/unitary-authority/bracknell-forest","Bracknell Forest Council","00MA","Older People (Aged 65 or Over)","Residential Care Home Placements","Bridgewell Unit - Q274E","Office Stationery",04/04/2014 00:00:00,"30240349",0.25,"BANNER"
